Workbook

Sheet Conceptual Model
C2: Planet | D2: i | E2: o | F2: p | G2: a | H2: n | I2: e | J2: l | K2: diam | L2: orbit days | M2: Dele
A3: Planet 1 | C3: =H82 -> Mars | D3: =INDEX(planet[#All],MATCH($C3,planet[Name],0)+1,MATCH(D$2,planet[#Headers],0)) -> 1.84992 | E3: =INDEX(planet[#All],MATCH($C3,planet[Name],0)+1,MATCH(E$2,planet[#Headers],0)) -> 49.5664 | F3: =INDEX(planet[#All],MATCH($C3,planet[Name],0)+1,MATCH(F$2,planet[#Headers],0)) -> 336.0882 | G3: =INDEX(planet[#All],MATCH($C3,planet[Name],0)+1,MATCH(G$2,planet[#Headers],0)) -> 1.5236365 | H3: =INDEX(planet[#All],MATCH($C3,planet[Name],0)+1,MATCH(H$2,planet[#Headers],0)) -> 0.5240613 | I3: =INDEX(planet[#All],MATCH($C3,planet[Name],0)+1,MATCH(I$2,planet[#Headers],0)) -> 0.0934231 | J3: =INDEX(planet[#All],MATCH($C3,planet[Name],0)+1,MATCH(J$2,planet[#Headers],0)) -> 262.42784 | K3: =INDEX(planet[#All],MATCH($C3,planet[Name],0)+1,MATCH(K$2,planet[#Headers],0)) -> 6800 | L3: =INDEX(planet[#All],MATCH($C3,planet[Name],0)+1,MATCH(L$2,planet[#Headers],0)) -> 687 | M3: =INDEX(planet[#All],MATCH($C3,planet[Name],0)+1,MATCH(M$2,planet[#Headers],0)) -> 2450680.5
A4: Planet 2 | C4: =I82 -> Earth | D4: =INDEX(planet[#All],MATCH($C4,planet[Name],0)+1,MATCH(D$2,planet[#Headers],0)) -> 0.00041 | E4: =INDEX(planet[#All],MATCH($C4,planet[Name],0)+1,MATCH(E$2,planet[#Headers],0)) -> 349.2 | F4: =INDEX(planet[#All],MATCH($C4,planet[Name],0)+1,MATCH(F$2,planet[#Headers],0)) -> 102.8517 | G4: =INDEX(planet[#All],MATCH($C4,planet[Name],0)+1,MATCH(G$2,planet[#Headers],0)) -> 1.00002 | H4: =INDEX(planet[#All],MATCH($C4,planet[Name],0)+1,MATCH(H$2,planet[#Headers],0)) -> 0.9855796 | I4: =INDEX(planet[#All],MATCH($C4,planet[Name],0)+1,MATCH(I$2,planet[#Headers],0)) -> 0.0166967 | J4: =INDEX(planet[#All],MATCH($C4,planet[Name],0)+1,MATCH(J$2,planet[#Headers],0)) -> 328.40353 | K4: =INDEX(planet[#All],MATCH($C4,planet[Name],0)+1,MATCH(K$2,planet[#Headers],0)) -> 12750 | L4: =INDEX(planet[#All],MATCH($C4,planet[Name],0)+1,MATCH(L$2,planet[#Headers],0)) -> 365.25 | M4: =INDEX(planet[#All],MATCH($C4,planet[Name],0)+1,MATCH(M$2,planet[#Headers],0)) -> 2450680.5
A11: Orbit planet 1
A12: Orbit period | B12: =L3 -> 687 | C12: 1 | D12: 2 | E12: 3 | F12: 4 | G12: 5 | H12: 6 | I12: 7 | J12: 8 | K12: 9 | L12: 10 | M12: 11 | N12: 12 | O12: 13 | P12: 14 | Q12: 15 | R12: 16 | S12: 17 | T12: 18 | U12: 19 | V12: 20 | W12: 21 | X12: 22 | Y12: 23 | Z12: 24 | AA12: 25 | AB12: 26 | AC12: 27 | AD12: 28 | AE12: 29 | AF12: 30 | AG12: 31 | AH12: 32 | AI12: 33 | AJ12: 34 | AK12: 35 | AL12: 36
C13: =DATE(2019,1,1) -> 2019-01-01 | D13: =DATE(2019,1,1) -> 2019-01-01 | E13: 2019-01-01 | F13: 2019-01-01 | G13: 2019-01-01 | H13: 2019-01-01 | I13: 2019-01-01 | J13: 2019-01-01 | K13: 2019-01-01 | L13: 2019-01-01 | M13: 2019-01-01 | N13: 2019-01-01 | O13: 2019-01-01 | P13: 2019-01-01 | Q13: 2019-01-01 | R13: 2019-01-01 | S13: 2019-01-01 | T13: 2019-01-01 | U13: 2019-01-01 | V13: 2019-01-01 | W13: 2019-01-01 | X13: 2019-01-01 | Y13: 2019-01-01 | Z13: 2019-01-01 | AA13: 2019-01-01 | AB13: 2019-01-01 | AC13: 2019-01-01 | AD13: 2019-01-01 | AE13: 2019-01-01 | AF13: 2019-01-01 | AG13: 2019-01-01 | AH13: 2019-01-01 | AI13: 2019-01-01 | AJ13: 2019-01-01 | AK13: 2019-01-01 | AL13: 2019-01-01
A14: Time zone hrs | C14: 2 | D14: 2 | E14: 2 | F14: 2 | G14: 2 | H14: 2 | I14: 2 | J14: 2 | K14: 2 | L14: 2 | M14: 2 | N14: 2 | O14: 2 | P14: 2 | Q14: 2 | R14: 2 | S14: 2 | T14: 2 | U14: 2 | V14: 2 | W14: 2 | X14: 2 | Y14: 2 | Z14: 2 | AA14: 2 | AB14: 2 | AC14: 2 | AD14: 2 | AE14: 2 | AF14: 2 | AG14: 2 | AH14: 2 | AI14: 2 | AJ14: 2 | AK14: 2 | AL14: 2
A15: Offset days | C15: 0 | D15: =C15+$B$12/35 -> 19.62857143 | E15: 39.25714286 | F15: 58.88571429 | G15: 78.51428571 | H15: 98.14285714 | I15: 117.7714286 | J15: 137.4 | K15: 157.0285714 | L15: 176.6571429 | M15: 196.2857143 | N15: 215.9142857 | O15: 235.5428571 | P15: 255.1714286 | Q15: 274.8 | R15: 294.4285714 | S15: 314.0571429 | T15: 333.6857143 | U15: 353.3142857 | V15: 372.9428571 | W15: 392.5714286 | X15: 412.2 | Y15: 431.8285714 | Z15: 451.4571429 | AA15: 471.0857143 | AB15: 490.7142857 | AC15: 510.3428571 | AD15: 529.9714286 | AE15: 549.6 | AF15: 569.2285714 | AG15: 588.8571429 | AH15: 608.4857143 | AI15: 628.1142857 | AJ15: 647.7428571 | AK15: 667.3714286 | AL15: 687
A16: Unix Epoch | C16: =(C13-DATE(1970,1,1)-0.5-C14/24)+C15 -> 17896.42 | D16: 17916.05 | E16: 17935.67 | F16: 17955.30 | G16: 17974.93 | H16: 17994.56 | I16: 18014.19 | J16: 18033.82 | K16: 18053.45 | L16: 18073.07 | M16: 18092.70 | N16: 18112.33 | O16: 18131.96 | P16: 18151.59 | Q16: 18171.22 | R16: 18190.85 | S16: 18210.47 | T16: 18230.10 | U16: 18249.73 | V16: 18269.36 | W16: 18288.99 | X16: 18308.62 | Y16: 18328.25 | Z16: 18347.87 | AA16: 18367.50 | AB16: 18387.13 | AC16: 18406.76 | AD16: 18426.39 | AE16: 18446.02 | AF16: 18465.65 | AG16: 18485.27 | AH16: 18504.90 | AI16: 18524.53 | AJ16: 18544.16 | AK16: 18563.79 | AL16: 18583.42
A17: Julian Day | C17: =2440587.5 + C16 -> 2458483.9 | D17: 2458503.5 | E17: 2458523.2 | F17: 2458542.8 | G17: 2458562.4 | H17: 2458582.1 | I17: 2458601.7 | J17: 2458621.3 | K17: 2458640.9 | L17: 2458660.6 | M17: 2458680.2 | N17: 2458699.8 | O17: 2458719.5 | P17: 2458739.1 | Q17: 2458758.7 | R17: 2458778.3 | S17: 2458798.0 | T17: 2458817.6 | U17: 2458837.2 | V17: 2458856.9 | W17: 2458876.5 | X17: 2458896.1 | Y17: 2458915.7 | Z17: 2458935.4 | AA17: 2458955.0 | AB17: 2458974.6 | AC17: 2458994.3 | AD17: 2459013.9 | AE17: 2459033.5 | AF17: 2459053.1 | AG17: 2459072.8 | AH17: 2459092.4 | AI17: 2459112.0 | AJ17: 2459131.7 | AK17: 2459151.3 | AL17: 2459170.9
A18: Date | C18: =C13+C15 -> 2019-01-01 | D18: =D13+D15 -> 2019-01-20T15:05:08.571 | E18: 2019-02-09T06:10:17.143 | F18: 2019-02-28T21:15:25.714 | G18: 2019-03-20T12:20:34.286 | H18: 2019-04-09T03:25:42.857 | I18: 2019-04-28T18:30:51.429 | J18: 2019-05-18T09:36:00 | K18: 2019-06-07T00:41:08.571 | L18: 2019-06-26T15:46:17.143 | M18: 2019-07-16T06:51:25.714 | N18: 2019-08-04T21:56:34.286 | O18: 2019-08-24T13:01:42.857 | P18: 2019-09-13T04:06:51.429 | Q18: 2019-10-02T19:12:00 | R18: 2019-10-22T10:17:08.571 | S18: 2019-11-11T01:22:17.143 | T18: 2019-11-30T16:27:25.714 | U18: 2019-12-20T07:32:34.286 | V18: 2020-01-08T22:37:42.857 | W18: 2020-01-28T13:42:51.429 | X18: 2020-02-17T04:48:00 | Y18: 2020-03-07T19:53:08.571 | Z18: 2020-03-27T10:58:17.143 | AA18: 2020-04-16T02:03:25.714 | AB18: 2020-05-05T17:08:34.286 | AC18: 2020-05-25T08:13:42.857 | AD18: 2020-06-13T23:18:51.429 | AE18: 2020-07-03T14:24:00 | AF18: 2020-07-23T05:29:08.571 | AG18: 2020-08-11T20:34:17.143 | AH18: 2020-08-31T11:39:25.714 | AI18: 2020-09-20T02:44:34.286 | AJ18: 2020-10-09T17:49:42.857 | AK18: 2020-10-29T08:54:51.429 | AL18: 2020-11-18
C20: 1 | D20: 1 | E20: 1 | F20: 1 | G20: 1 | H20: 1 | I20: 1 | J20: 1 | K20: 1 | L20: 1 | M20: 1 | N20: 1 | O20: 1 | P20: 1 | Q20: 1 | R20: 1 | S20: 1 | T20: 1 | U20: 1 | V20: 1 | W20: 1 | X20: 1 | Y20: 1 | Z20: 1 | AA20: 1 | AB20: 1 | AC20: 1 | AD20: 1 | AE20: 1 | AF20: 1 | AG20: 1 | AH20: 1 | AI20: 1 | AJ20: 1 | AK20: 1 | AL20: 1
C21: =$C$3 -> Mars | D21: =$C$3 -> Mars | E21: Mars | F21: Mars | G21: Mars | H21: Mars | I21: Mars | J21: Mars | K21: Mars | L21: Mars | M21: Mars | N21: Mars | O21: Mars | P21: Mars | Q21: Mars | R21: Mars | S21: Mars | T21: Mars | U21: Mars | V21: Mars | W21: Mars | X21: Mars | Y21: Mars | Z21: Mars | AA21: Mars | AB21: Mars | AC21: Mars | AD21: Mars | AE21: Mars | AF21: Mars | AG21: Mars | AH21: Mars | AI21: Mars | AJ21: Mars | AK21: Mars | AL21: Mars
A22: D | B22: D | C22: =C$17-INDEX(ele[Dele],C$20) -> 7803.4 | D22: =D$17-INDEX(ele[Dele],D$20) -> 7823.0 | E22: =E$17-INDEX(ele[Dele],E$20) -> 7842.7 | F22: =F$17-INDEX(ele[Dele],F$20) -> 7862.3 | G22: =G$17-INDEX(ele[Dele],G$20) -> 7881.9 | H22: =H$17-INDEX(ele[Dele],H$20) -> 7901.6 | I22: =I$17-INDEX(ele[Dele],I$20) -> 7921.2 | J22: =J$17-INDEX(ele[Dele],J$20) -> 7940.8 | K22: =K$17-INDEX(ele[Dele],K$20) -> 7960.4 | L22: =L$17-INDEX(ele[Dele],L$20) -> 7980.1 | M22: =M$17-INDEX(ele[Dele],M$20) -> 7999.7 | N22: =N$17-INDEX(ele[Dele],N$20) -> 8019.3 | O22: =O$17-INDEX(ele[Dele],O$20) -> 8039.0 | P22: =P$17-INDEX(ele[Dele],P$20) -> 8058.6 | Q22: =Q$17-INDEX(ele[Dele],Q$20) -> 8078.2 | R22: =R$17-INDEX(ele[Dele],R$20) -> 8097.8 | S22: =S$17-INDEX(ele[Dele],S$20) -> 8117.5 | T22: =T$17-INDEX(ele[Dele],T$20) -> 8137.1 | U22: =U$17-INDEX(ele[Dele],U$20) -> 8156.7 | V22: =V$17-INDEX(ele[Dele],V$20) -> 8176.4 | W22: =W$17-INDEX(ele[Dele],W$20) -> 8196.0 | X22: =X$17-INDEX(ele[Dele],X$20) -> 8215.6 | Y22: =Y$17-INDEX(ele[Dele],Y$20) -> 8235.2 | Z22: =Z$17-INDEX(ele[Dele],Z$20) -> 8254.9 | AA22: =AA$17-INDEX(ele[Dele],AA$20) -> 8274.5 | AB22: =AB$17-INDEX(ele[Dele],AB$20) -> 8294.1 | AC22: =AC$17-INDEX(ele[Dele],AC$20) -> 8313.8 | AD22: =AD$17-INDEX(ele[Dele],AD$20) -> 8333.4 | AE22: =AE$17-INDEX(ele[Dele],AE$20) -> 8353.0 | AF22: =AF$17-INDEX(ele[Dele],AF$20) -> 8372.6 | AG22: =AG$17-INDEX(ele[Dele],AG$20) -> 8392.3 | AH22: =AH$17-INDEX(ele[Dele],AH$20) -> 8411.9 | AI22: =AI$17-INDEX(ele[Dele],AI$20) -> 8431.5 | AJ22: =AJ$17-INDEX(ele[Dele],AJ$20) -> 8451.2 | AK22: =AK$17-INDEX(ele[Dele],AK$20) -> 8470.8 | AL22: =AL$17-INDEX(ele[Dele],AL$20) -> 8490.4
A23: Mean anomaly | B23: M | C23: =MOD(INDEX(ele[n],C$20)*C22+INDEX(ele[l],C$20)-INDEX(ele[p],C$20),360) -> 55.8 | D23: =MOD(INDEX(ele[n],D$20)*D22+INDEX(ele[l],D$20)-INDEX(ele[p],D$20),360) -> 66.1 | E23: =MOD(INDEX(ele[n],E$20)*E22+INDEX(ele[l],E$20)-INDEX(ele[p],E$20),360) -> 76.4 | F23: =MOD(INDEX(ele[n],F$20)*F22+INDEX(ele[l],F$20)-INDEX(ele[p],F$20),360) -> 86.7 | G23: =MOD(INDEX(ele[n],G$20)*G22+INDEX(ele[l],G$20)-INDEX(ele[p],G$20),360) -> 97.0 | H23: =MOD(INDEX(ele[n],H$20)*H22+INDEX(ele[l],H$20)-INDEX(ele[p],H$20),360) -> 107.2 | I23: =MOD(INDEX(ele[n],I$20)*I22+INDEX(ele[l],I$20)-INDEX(ele[p],I$20),360) -> 117.5 | J23: =MOD(INDEX(ele[n],J$20)*J22+INDEX(ele[l],J$20)-INDEX(ele[p],J$20),360) -> 127.8 | K23: =MOD(INDEX(ele[n],K$20)*K22+INDEX(ele[l],K$20)-INDEX(ele[p],K$20),360) -> 138.1 | L23: =MOD(INDEX(ele[n],L$20)*L22+INDEX(ele[l],L$20)-INDEX(ele[p],L$20),360) -> 148.4 | M23: =MOD(INDEX(ele[n],M$20)*M22+INDEX(ele[l],M$20)-INDEX(ele[p],M$20),360) -> 158.7 | N23: =MOD(INDEX(ele[n],N$20)*N22+INDEX(ele[l],N$20)-INDEX(ele[p],N$20),360) -> 169.0 | O23: =MOD(INDEX(ele[n],O$20)*O22+INDEX(ele[l],O$20)-INDEX(ele[p],O$20),360) -> 179.2 | P23: =MOD(INDEX(ele[n],P$20)*P22+INDEX(ele[l],P$20)-INDEX(ele[p],P$20),360) -> 189.5 | Q23: =MOD(INDEX(ele[n],Q$20)*Q22+INDEX(ele[l],Q$20)-INDEX(ele[p],Q$20),360) -> 199.8 | R23: =MOD(INDEX(ele[n],R$20)*R22+INDEX(ele[l],R$20)-INDEX(ele[p],R$20),360) -> 210.1 | S23: =MOD(INDEX(ele[n],S$20)*S22+INDEX(ele[l],S$20)-INDEX(ele[p],S$20),360) -> 220.4 | T23: =MOD(INDEX(ele[n],T$20)*T22+INDEX(ele[l],T$20)-INDEX(ele[p],T$20),360) -> 230.7 | U23: =MOD(INDEX(ele[n],U$20)*U22+INDEX(ele[l],U$20)-INDEX(ele[p],U$20),360) -> 241.0 | V23: =MOD(INDEX(ele[n],V$20)*V22+INDEX(ele[l],V$20)-INDEX(ele[p],V$20),360) -> 251.3 | W23: =MOD(INDEX(ele[n],W$20)*W22+INDEX(ele[l],W$20)-INDEX(ele[p],W$20),360) -> 261.5 | X23: =MOD(INDEX(ele[n],X$20)*X22+INDEX(ele[l],X$20)-INDEX(ele[p],X$20),360) -> 271.8 | Y23: =MOD(INDEX(ele[n],Y$20)*Y22+INDEX(ele[l],Y$20)-INDEX(ele[p],Y$20),360) -> 282.1 | Z23: =MOD(INDEX(ele[n],Z$20)*Z22+INDEX(ele[l],Z$20)-INDEX(ele[p],Z$20),360) -> 292.4 | AA23: =MOD(INDEX(ele[n],AA$20)*AA22+INDEX(ele[l],AA$20)-INDEX(ele[p],AA$20),360) -> 302.7 | AB23: =MOD(INDEX(ele[n],AB$20)*AB22+INDEX(ele[l],AB$20)-INDEX(ele[p],AB$20),360) -> 313.0 | AC23: =MOD(INDEX(ele[n],AC$20)*AC22+INDEX(ele[l],AC$20)-INDEX(ele[p],AC$20),360) -> 323.3 | AD23: =MOD(INDEX(ele[n],AD$20)*AD22+INDEX(ele[l],AD$20)-INDEX(ele[p],AD$20),360) -> 333.5 | AE23: =MOD(INDEX(ele[n],AE$20)*AE22+INDEX(ele[l],AE$20)-INDEX(ele[p],AE$20),360) -> 343.8 | AF23: =MOD(INDEX(ele[n],AF$20)*AF22+INDEX(ele[l],AF$20)-INDEX(ele[p],AF$20),360) -> 354.1 | AG23: =MOD(INDEX(ele[n],AG$20)*AG22+INDEX(ele[l],AG$20)-INDEX(ele[p],AG$20),360) -> 4.4 | AH23: =MOD(INDEX(ele[n],AH$20)*AH22+INDEX(ele[l],AH$20)-INDEX(ele[p],AH$20),360) -> 14.7 | AI23: =MOD(INDEX(ele[n],AI$20)*AI22+INDEX(ele[l],AI$20)-INDEX(ele[p],AI$20),360) -> 25.0 | AJ23: =MOD(INDEX(ele[n],AJ$20)*AJ22+INDEX(ele[l],AJ$20)-INDEX(ele[p],AJ$20),360) -> 35.3 | AK23: =MOD(INDEX(ele[n],AK$20)*AK22+INDEX(ele[l],AK$20)-INDEX(ele[p],AK$20),360) -> 45.6 | AL23: =MOD(INDEX(ele[n],AL$20)*AL22+INDEX(ele[l],AL$20)-INDEX(ele[p],AL$20),360) -> 55.8
A24: True anomaly | B24: v | C24: =C$23 + 180/PI()*((2*INDEX(ele[e],C$20)-POWER(INDEX(ele[e],C$20),3)/4)*SIN(C$23/180*PI())+5/4*POWER(INDEX(ele[e],C$20),2)*SIN(2*C$23/180*PI())+13/12*POWER(INDEX(ele[e],C$20),3)*SIN(3*C$23/180*PI())) -> 65.2 | D24: =D$23 + 180/PI()*((2*INDEX(ele[e],D$20)-POWER(INDEX(ele[e],D$20),3)/4)*SIN(D$23/180*PI())+5/4*POWER(INDEX(ele[e],D$20),2)*SIN(2*D$23/180*PI())+13/12*POWER(INDEX(ele[e],D$20),3)*SIN(3*D$23/180*PI())) -> 76.3 | E24: =E$23 + 180/PI()*((2*INDEX(ele[e],E$20)-POWER(INDEX(ele[e],E$20),3)/4)*SIN(E$23/180*PI())+5/4*POWER(INDEX(ele[e],E$20),2)*SIN(2*E$23/180*PI())+13/12*POWER(INDEX(ele[e],E$20),3)*SIN(3*E$23/180*PI())) -> 87.0 | F24: =F$23 + 180/PI()*((2*INDEX(ele[e],F$20)-POWER(INDEX(ele[e],F$20),3)/4)*SIN(F$23/180*PI())+5/4*POWER(INDEX(ele[e],F$20),2)*SIN(2*F$23/180*PI())+13/12*POWER(INDEX(ele[e],F$20),3)*SIN(3*F$23/180*PI())) -> 97.4 | G24: =G$23 + 180/PI()*((2*INDEX(ele[e],G$20)-POWER(INDEX(ele[e],G$20),3)/4)*SIN(G$23/180*PI())+5/4*POWER(INDEX(ele[e],G$20),2)*SIN(2*G$23/180*PI())+13/12*POWER(INDEX(ele[e],G$20),3)*SIN(3*G$23/180*PI())) -> 107.4 | H24: =H$23 + 180/PI()*((2*INDEX(ele[e],H$20)-POWER(INDEX(ele[e],H$20),3)/4)*SIN(H$23/180*PI())+5/4*POWER(INDEX(ele[e],H$20),2)*SIN(2*H$23/180*PI())+13/12*POWER(INDEX(ele[e],H$20),3)*SIN(3*H$23/180*PI())) -> 117.1 | I24: =I$23 + 180/PI()*((2*INDEX(ele[e],I$20)-POWER(INDEX(ele[e],I$20),3)/4)*SIN(I$23/180*PI())+5/4*POWER(INDEX(ele[e],I$20),2)*SIN(2*I$23/180*PI())+13/12*POWER(INDEX(ele[e],I$20),3)*SIN(3*I$23/180*PI())) -> 126.5 | J24: =J$23 + 180/PI()*((2*INDEX(ele[e],J$20)-POWER(INDEX(ele[e],J$20),3)/4)*SIN(J$23/180*PI())+5/4*POWER(INDEX(ele[e],J$20),2)*SIN(2*J$23/180*PI())+13/12*POWER(INDEX(ele[e],J$20),3)*SIN(3*J$23/180*PI())) -> 135.7 | K24: =K$23 + 180/PI()*((2*INDEX(ele[e],K$20)-POWER(INDEX(ele[e],K$20),3)/4)*SIN(K$23/180*PI())+5/4*POWER(INDEX(ele[e],K$20),2)*SIN(2*K$23/180*PI())+13/12*POWER(INDEX(ele[e],K$20),3)*SIN(3*K$23/180*PI())) -> 144.7 | L24: =L$23 + 180/PI()*((2*INDEX(ele[e],L$20)-POWER(INDEX(ele[e],L$20),3)/4)*SIN(L$23/180*PI())+5/4*POWER(INDEX(ele[e],L$20),2)*SIN(2*L$23/180*PI())+13/12*POWER(INDEX(ele[e],L$20),3)*SIN(3*L$23/180*PI())) -> 153.5 | M24: =M$23 + 180/PI()*((2*INDEX(ele[e],M$20)-POWER(INDEX(ele[e],M$20),3)/4)*SIN(M$23/180*PI())+5/4*POWER(INDEX(ele[e],M$20),2)*SIN(2*M$23/180*PI())+13/12*POWER(INDEX(ele[e],M$20),3)*SIN(3*M$23/180*PI())) -> 162.2 | N24: =N$23 + 180/PI()*((2*INDEX(ele[e],N$20)-POWER(INDEX(ele[e],N$20),3)/4)*SIN(N$23/180*PI())+5/4*POWER(INDEX(ele[e],N$20),2)*SIN(2*N$23/180*PI())+13/12*POWER(INDEX(ele[e],N$20),3)*SIN(3*N$23/180*PI())) -> 170.8 | O24: =O$23 + 180/PI()*((2*INDEX(ele[e],O$20)-POWER(INDEX(ele[e],O$20),3)/4)*SIN(O$23/180*PI())+5/4*POWER(INDEX(ele[e],O$20),2)*SIN(2*O$23/180*PI())+13/12*POWER(INDEX(ele[e],O$20),3)*SIN(3*O$23/180*PI())) -> 179.4 | P24: =P$23 + 180/PI()*((2*INDEX(ele[e],P$20)-POWER(INDEX(ele[e],P$20),3)/4)*SIN(P$23/180*PI())+5/4*POWER(INDEX(ele[e],P$20),2)*SIN(2*P$23/180*PI())+13/12*POWER(INDEX(ele[e],P$20),3)*SIN(3*P$23/180*PI())) -> 187.9 | Q24: =Q$23 + 180/PI()*((2*INDEX(ele[e],Q$20)-POWER(INDEX(ele[e],Q$20),3)/4)*SIN(Q$23/180*PI())+5/4*POWER(INDEX(ele[e],Q$20),2)*SIN(2*Q$23/180*PI())+13/12*POWER(INDEX(ele[e],Q$20),3)*SIN(3*Q$23/180*PI())) -> 196.5 | R24: =R$23 + 180/PI()*((2*INDEX(ele[e],R$20)-POWER(INDEX(ele[e],R$20),3)/4)*SIN(R$23/180*PI())+5/4*POWER(INDEX(ele[e],R$20),2)*SIN(2*R$23/180*PI())+13/12*POWER(INDEX(ele[e],R$20),3)*SIN(3*R$23/180*PI())) -> 205.2 | S24: =S$23 + 180/PI()*((2*INDEX(ele[e],S$20)-POWER(INDEX(ele[e],S$20),3)/4)*SIN(S$23/180*PI())+5/4*POWER(INDEX(ele[e],S$20),2)*SIN(2*S$23/180*PI())+13/12*POWER(INDEX(ele[e],S$20),3)*SIN(3*S$23/180*PI())) -> 214.0 | T24: =T$23 + 180/PI()*((2*INDEX(ele[e],T$20)-POWER(INDEX(ele[e],T$20),3)/4)*SIN(T$23/180*PI())+5/4*POWER(INDEX(ele[e],T$20),2)*SIN(2*T$23/180*PI())+13/12*POWER(INDEX(ele[e],T$20),3)*SIN(3*T$23/180*PI())) -> 223.0 | U24: =U$23 + 180/PI()*((2*INDEX(ele[e],U$20)-POWER(INDEX(ele[e],U$20),3)/4)*SIN(U$23/180*PI())+5/4*POWER(INDEX(ele[e],U$20),2)*SIN(2*U$23/180*PI())+13/12*POWER(INDEX(ele[e],U$20),3)*SIN(3*U$23/180*PI())) -> 232.1 | V24: =V$23 + 180/PI()*((2*INDEX(ele[e],V$20)-POWER(INDEX(ele[e],V$20),3)/4)*SIN(V$23/180*PI())+5/4*POWER(INDEX(ele[e],V$20),2)*SIN(2*V$23/180*PI())+13/12*POWER(INDEX(ele[e],V$20),3)*SIN(3*V$23/180*PI())) -> 241.5 | W24: =W$23 + 180/PI()*((2*INDEX(ele[e],W$20)-POWER(INDEX(ele[e],W$20),3)/4)*SIN(W$23/180*PI())+5/4*POWER(INDEX(ele[e],W$20),2)*SIN(2*W$23/180*PI())+13/12*POWER(INDEX(ele[e],W$20),3)*SIN(3*W$23/180*PI())) -> 251.2 | X24: =X$23 + 180/PI()*((2*INDEX(ele[e],X$20)-POWER(INDEX(ele[e],X$20),3)/4)*SIN(X$23/180*PI())+5/4*POWER(INDEX(ele[e],X$20),2)*SIN(2*X$23/180*PI())+13/12*POWER(INDEX(ele[e],X$20),3)*SIN(3*X$23/180*PI())) -> 261.1 | Y24: =Y$23 + 180/PI()*((2*INDEX(ele[e],Y$20)-POWER(INDEX(ele[e],Y$20),3)/4)*SIN(Y$23/180*PI())+5/4*POWER(INDEX(ele[e],Y$20),2)*SIN(2*Y$23/180*PI())+13/12*POWER(INDEX(ele[e],Y$20),3)*SIN(3*Y$23/180*PI())) -> 271.4 | Z24: =Z$23 + 180/PI()*((2*INDEX(ele[e],Z$20)-POWER(INDEX(ele[e],Z$20),3)/4)*SIN(Z$23/180*PI())+5/4*POWER(INDEX(ele[e],Z$20),2)*SIN(2*Z$23/180*PI())+13/12*POWER(INDEX(ele[e],Z$20),3)*SIN(3*Z$23/180*PI())) -> 282.1 | AA24: =AA$23 + 180/PI()*((2*INDEX(ele[e],AA$20)-POWER(INDEX(ele[e],AA$20),3)/4)*SIN(AA$23/180*PI())+5/4*POWER(INDEX(ele[e],AA$20),2)*SIN(2*AA$23/180*PI())+13/12*POWER(INDEX(ele[e],AA$20),3)*SIN(3*AA$23/180*PI())) -> 293.1 | AB24: =AB$23 + 180/PI()*((2*INDEX(ele[e],AB$20)-POWER(INDEX(ele[e],AB$20),3)/4)*SIN(AB$23/180*PI())+5/4*POWER(INDEX(ele[e],AB$20),2)*SIN(2*AB$23/180*PI())+13/12*POWER(INDEX(ele[e],AB$20),3)*SIN(3*AB$23/180*PI())) -> 304.5 | AC24: =AC$23 + 180/PI()*((2*INDEX(ele[e],AC$20)-POWER(INDEX(ele[e],AC$20),3)/4)*SIN(AC$23/180*PI())+5/4*POWER(INDEX(ele[e],AC$20),2)*SIN(2*AC$23/180*PI())+13/12*POWER(INDEX(ele[e],AC$20),3)*SIN(3*AC$23/180*PI())) -> 316.2 | AD24: =AD$23 + 180/PI()*((2*INDEX(ele[e],AD$20)-POWER(INDEX(ele[e],AD$20),3)/4)*SIN(AD$23/180*PI())+5/4*POWER(INDEX(ele[e],AD$20),2)*SIN(2*AD$23/180*PI())+13/12*POWER(INDEX(ele[e],AD$20),3)*SIN(3*AD$23/180*PI())) -> 328.2 | AE24: =AE$23 + 180/PI()*((2*INDEX(ele[e],AE$20)-POWER(INDEX(ele[e],AE$20),3)/4)*SIN(AE$23/180*PI())+5/4*POWER(INDEX(ele[e],AE$20),2)*SIN(2*AE$23/180*PI())+13/12*POWER(INDEX(ele[e],AE$20),3)*SIN(3*AE$23/180*PI())) -> 340.5 | AF24: =AF$23 + 180/PI()*((2*INDEX(ele[e],AF$20)-POWER(INDEX(ele[e],AF$20),3)/4)*SIN(AF$23/180*PI())+5/4*POWER(INDEX(ele[e],AF$20),2)*SIN(2*AF$23/180*PI())+13/12*POWER(INDEX(ele[e],AF$20),3)*SIN(3*AF$23/180*PI())) -> 352.9 | AG24: =AG$23 + 180/PI()*((2*INDEX(ele[e],AG$20)-POWER(INDEX(ele[e],AG$20),3)/4)*SIN(AG$23/180*PI())+5/4*POWER(INDEX(ele[e],AG$20),2)*SIN(2*AG$23/180*PI())+13/12*POWER(INDEX(ele[e],AG$20),3)*SIN(3*AG$23/180*PI())) -> 5.3 | AH24: =AH$23 + 180/PI()*((2*INDEX(ele[e],AH$20)-POWER(INDEX(ele[e],AH$20),3)/4)*SIN(AH$23/180*PI())+5/4*POWER(INDEX(ele[e],AH$20),2)*SIN(2*AH$23/180*PI())+13/12*POWER(INDEX(ele[e],AH$20),3)*SIN(3*AH$23/180*PI())) -> 17.7 | AI24: =AI$23 + 180/PI()*((2*INDEX(ele[e],AI$20)-POWER(INDEX(ele[e],AI$20),3)/4)*SIN(AI$23/180*PI())+5/4*POWER(INDEX(ele[e],AI$20),2)*SIN(2*AI$23/180*PI())+13/12*POWER(INDEX(ele[e],AI$20),3)*SIN(3*AI$23/180*PI())) -> 30.0 | AJ24: =AJ$23 + 180/PI()*((2*INDEX(ele[e],AJ$20)-POWER(INDEX(ele[e],AJ$20),3)/4)*SIN(AJ$23/180*PI())+5/4*POWER(INDEX(ele[e],AJ$20),2)*SIN(2*AJ$23/180*PI())+13/12*POWER(INDEX(ele[e],AJ$20),3)*SIN(3*AJ$23/180*PI())) -> 42.1 | AK24: =AK$23 + 180/PI()*((2*INDEX(ele[e],AK$20)-POWER(INDEX(ele[e],AK$20),3)/4)*SIN(AK$23/180*PI())+5/4*POWER(INDEX(ele[e],AK$20),2)*SIN(2*AK$23/180*PI())+13/12*POWER(INDEX(ele[e],AK$20),3)*SIN(3*AK$23/180*PI())) -> 53.8 | AL24: =AL$23 + 180/PI()*((2*INDEX(ele[e],AL$20)-POWER(INDEX(ele[e],AL$20),3)/4)*SIN(AL$23/180*PI())+5/4*POWER(INDEX(ele[e],AL$20),2)*SIN(2*AL$23/180*PI())+13/12*POWER(INDEX(ele[e],AL$20),3)*SIN(3*AL$23/180*PI())) -> 65.3
A25: Radius vector of the object | B25: r | C25: =INDEX(ele[a],C$20) * (1 - POWER(INDEX(ele[e],C$20),2)) / (1 + INDEX(ele[e],C$20) * COS(C24/180*PI())) -> 1.45 | D25: =INDEX(ele[a],D$20) * (1 - POWER(INDEX(ele[e],D$20),2)) / (1 + INDEX(ele[e],D$20) * COS(D24/180*PI())) -> 1.48 | E25: =INDEX(ele[a],E$20) * (1 - POWER(INDEX(ele[e],E$20),2)) / (1 + INDEX(ele[e],E$20) * COS(E24/180*PI())) -> 1.50 | F25: =INDEX(ele[a],F$20) * (1 - POWER(INDEX(ele[e],F$20),2)) / (1 + INDEX(ele[e],F$20) * COS(F24/180*PI())) -> 1.53 | G25: =INDEX(ele[a],G$20) * (1 - POWER(INDEX(ele[e],G$20),2)) / (1 + INDEX(ele[e],G$20) * COS(G24/180*PI())) -> 1.55 | H25: =INDEX(ele[a],H$20) * (1 - POWER(INDEX(ele[e],H$20),2)) / (1 + INDEX(ele[e],H$20) * COS(H24/180*PI())) -> 1.58 | I25: =INDEX(ele[a],I$20) * (1 - POWER(INDEX(ele[e],I$20),2)) / (1 + INDEX(ele[e],I$20) * COS(I24/180*PI())) -> 1.60 | J25: =INDEX(ele[a],J$20) * (1 - POWER(INDEX(ele[e],J$20),2)) / (1 + INDEX(ele[e],J$20) * COS(J24/180*PI())) -> 1.62 | K25: =INDEX(ele[a],K$20) * (1 - POWER(INDEX(ele[e],K$20),2)) / (1 + INDEX(ele[e],K$20) * COS(K24/180*PI())) -> 1.63 | L25: =INDEX(ele[a],L$20) * (1 - POWER(INDEX(ele[e],L$20),2)) / (1 + INDEX(ele[e],L$20) * COS(L24/180*PI())) -> 1.65 | M25: =INDEX(ele[a],M$20) * (1 - POWER(INDEX(ele[e],M$20),2)) / (1 + INDEX(ele[e],M$20) * COS(M24/180*PI())) -> 1.66 | N25: =INDEX(ele[a],N$20) * (1 - POWER(INDEX(ele[e],N$20),2)) / (1 + INDEX(ele[e],N$20) * COS(N24/180*PI())) -> 1.66 | O25: =INDEX(ele[a],O$20) * (1 - POWER(INDEX(ele[e],O$20),2)) / (1 + INDEX(ele[e],O$20) * COS(O24/180*PI())) -> 1.67 | P25: =INDEX(ele[a],P$20) * (1 - POWER(INDEX(ele[e],P$20),2)) / (1 + INDEX(ele[e],P$20) * COS(P24/180*PI())) -> 1.66 | Q25: =INDEX(ele[a],Q$20) * (1 - POWER(INDEX(ele[e],Q$20),2)) / (1 + INDEX(ele[e],Q$20) * COS(Q24/180*PI())) -> 1.66 | R25: =INDEX(ele[a],R$20) * (1 - POWER(INDEX(ele[e],R$20),2)) / (1 + INDEX(ele[e],R$20) * COS(R24/180*PI())) -> 1.65 | S25: =INDEX(ele[a],S$20) * (1 - POWER(INDEX(ele[e],S$20),2)) / (1 + INDEX(ele[e],S$20) * COS(S24/180*PI())) -> 1.64 | T25: =INDEX(ele[a],T$20) * (1 - POWER(INDEX(ele[e],T$20),2)) / (1 + INDEX(ele[e],T$20) * COS(T24/180*PI())) -> 1.62 | U25: =INDEX(ele[a],U$20) * (1 - POWER(INDEX(ele[e],U$20),2)) / (1 + INDEX(ele[e],U$20) * COS(U24/180*PI())) -> 1.60 | V25: =INDEX(ele[a],V$20) * (1 - POWER(INDEX(ele[e],V$20),2)) / (1 + INDEX(ele[e],V$20) * COS(V24/180*PI())) -> 1.58 | W25: =INDEX(ele[a],W$20) * (1 - POWER(INDEX(ele[e],W$20),2)) / (1 + INDEX(ele[e],W$20) * COS(W24/180*PI())) -> 1.56 | X25: =INDEX(ele[a],X$20) * (1 - POWER(INDEX(ele[e],X$20),2)) / (1 + INDEX(ele[e],X$20) * COS(X24/180*PI())) -> 1.53 | Y25: =INDEX(ele[a],Y$20) * (1 - POWER(INDEX(ele[e],Y$20),2)) / (1 + INDEX(ele[e],Y$20) * COS(Y24/180*PI())) -> 1.51 | Z25: =INDEX(ele[a],Z$20) * (1 - POWER(INDEX(ele[e],Z$20),2)) / (1 + INDEX(ele[e],Z$20) * COS(Z24/180*PI())) -> 1.48 | AA25: =INDEX(ele[a],AA$20) * (1 - POWER(INDEX(ele[e],AA$20),2)) / (1 + INDEX(ele[e],AA$20) * COS(AA24/180*PI())) -> 1.46 | AB25: =INDEX(ele[a],AB$20) * (1 - POWER(INDEX(ele[e],AB$20),2)) / (1 + INDEX(ele[e],AB$20) * COS(AB24/180*PI())) -> 1.43 | AC25: =INDEX(ele[a],AC$20) * (1 - POWER(INDEX(ele[e],AC$20),2)) / (1 + INDEX(ele[e],AC$20) * COS(AC24/180*PI())) -> 1.41 | AD25: =INDEX(ele[a],AD$20) * (1 - POWER(INDEX(ele[e],AD$20),2)) / (1 + INDEX(ele[e],AD$20) * COS(AD24/180*PI())) -> 1.40 | AE25: =INDEX(ele[a],AE$20) * (1 - POWER(INDEX(ele[e],AE$20),2)) / (1 + INDEX(ele[e],AE$20) * COS(AE24/180*PI())) -> 1.39 | AF25: =INDEX(ele[a],AF$20) * (1 - POWER(INDEX(ele[e],AF$20),2)) / (1 + INDEX(ele[e],AF$20) * COS(AF24/180*PI())) -> 1.38 | AG25: =INDEX(ele[a],AG$20) * (1 - POWER(INDEX(ele[e],AG$20),2)) / (1 + INDEX(ele[e],AG$20) * COS(AG24/180*PI())) -> 1.38 | AH25: =INDEX(ele[a],AH$20) * (1 - POWER(INDEX(ele[e],AH$20),2)) / (1 + INDEX(ele[e],AH$20) * COS(AH24/180*PI())) -> 1.39 | AI25: =INDEX(ele[a],AI$20) * (1 - POWER(INDEX(ele[e],AI$20),2)) / (1 + INDEX(ele[e],AI$20) * COS(AI24/180*PI())) -> 1.40 | AJ25: =INDEX(ele[a],AJ$20) * (1 - POWER(INDEX(ele[e],AJ$20),2)) / (1 + INDEX(ele[e],AJ$20) * COS(AJ24/180*PI())) -> 1.41 | AK25: =INDEX(ele[a],AK$20) * (1 - POWER(INDEX(ele[e],AK$20),2)) / (1 + INDEX(ele[e],AK$20) * COS(AK24/180*PI())) -> 1.43 | AL25: =INDEX(ele[a],AL$20) * (1 - POWER(INDEX(ele[e],AL$20),2)) / (1 + INDEX(ele[e],AL$20) * COS(AL24/180*PI())) -> 1.45
A26: Angle of planet from ascending node (v+p-o) | B26: vpo | C26: =MOD(C$24+INDEX(ele[p],C$20)-INDEX(ele[o],C$20),360) -> 351.8 | D26: =MOD(D$24+INDEX(ele[p],D$20)-INDEX(ele[o],D$20),360) -> 2.8 | E26: =MOD(E$24+INDEX(ele[p],E$20)-INDEX(ele[o],E$20),360) -> 13.5 | F26: =MOD(F$24+INDEX(ele[p],F$20)-INDEX(ele[o],F$20),360) -> 23.9 | G26: =MOD(G$24+INDEX(ele[p],G$20)-INDEX(ele[o],G$20),360) -> 33.9 | H26: =MOD(H$24+INDEX(ele[p],H$20)-INDEX(ele[o],H$20),360) -> 43.6 | I26: =MOD(I$24+INDEX(ele[p],I$20)-INDEX(ele[o],I$20),360) -> 53.0 | J26: =MOD(J$24+INDEX(ele[p],J$20)-INDEX(ele[o],J$20),360) -> 62.2 | K26: =MOD(K$24+INDEX(ele[p],K$20)-INDEX(ele[o],K$20),360) -> 71.2 | L26: =MOD(L$24+INDEX(ele[p],L$20)-INDEX(ele[o],L$20),360) -> 80.0 | M26: =MOD(M$24+INDEX(ele[p],M$20)-INDEX(ele[o],M$20),360) -> 88.7 | N26: =MOD(N$24+INDEX(ele[p],N$20)-INDEX(ele[o],N$20),360) -> 97.3 | O26: =MOD(O$24+INDEX(ele[p],O$20)-INDEX(ele[o],O$20),360) -> 105.9 | P26: =MOD(P$24+INDEX(ele[p],P$20)-INDEX(ele[o],P$20),360) -> 114.5 | Q26: =MOD(Q$24+INDEX(ele[p],Q$20)-INDEX(ele[o],Q$20),360) -> 123.1 | R26: =MOD(R$24+INDEX(ele[p],R$20)-INDEX(ele[o],R$20),360) -> 131.8 | S26: =MOD(S$24+INDEX(ele[p],S$20)-INDEX(ele[o],S$20),360) -> 140.6 | T26: =MOD(T$24+INDEX(ele[p],T$20)-INDEX(ele[o],T$20),360) -> 149.5 | U26: =MOD(U$24+INDEX(ele[p],U$20)-INDEX(ele[o],U$20),360) -> 158.7 | V26: =MOD(V$24+INDEX(ele[p],V$20)-INDEX(ele[o],V$20),360) -> 168.1 | W26: =MOD(W$24+INDEX(ele[p],W$20)-INDEX(ele[o],W$20),360) -> 177.7 | X26: =MOD(X$24+INDEX(ele[p],X$20)-INDEX(ele[o],X$20),360) -> 187.7 | Y26: =MOD(Y$24+INDEX(ele[p],Y$20)-INDEX(ele[o],Y$20),360) -> 198.0 | Z26: =MOD(Z$24+INDEX(ele[p],Z$20)-INDEX(ele[o],Z$20),360) -> 208.6 | AA26: =MOD(AA$24+INDEX(ele[p],AA$20)-INDEX(ele[o],AA$20),360) -> 219.6 | AB26: =MOD(AB$24+INDEX(ele[p],AB$20)-INDEX(ele[o],AB$20),360) -> 231.0 | AC26: =MOD(AC$24+INDEX(ele[p],AC$20)-INDEX(ele[o],AC$20),360) -> 242.7 | AD26: =MOD(AD$24+INDEX(ele[p],AD$20)-INDEX(ele[o],AD$20),360) -> 254.8 | AE26: =MOD(AE$24+INDEX(ele[p],AE$20)-INDEX(ele[o],AE$20),360) -> 267.0 | AF26: =MOD(AF$24+INDEX(ele[p],AF$20)-INDEX(ele[o],AF$20),360) -> 279.4 | AG26: =MOD(AG$24+INDEX(ele[p],AG$20)-INDEX(ele[o],AG$20),360) -> 291.9 | AH26: =MOD(AH$24+INDEX(ele[p],AH$20)-INDEX(ele[o],AH$20),360) -> 304.3 | AI26: =MOD(AI$24+INDEX(ele[p],AI$20)-INDEX(ele[o],AI$20),360) -> 316.5 | AJ26: =MOD(AJ$24+INDEX(ele[p],AJ$20)-INDEX(ele[o],AJ$20),360) -> 328.6 | AK26: =MOD(AK$24+INDEX(ele[p],AK$20)-INDEX(ele[o],AK$20),360) -> 340.4 | AL26: =MOD(AL$24+INDEX(ele[p],AL$20)-INDEX(ele[o],AL$20),360) -> 351.8
A28: Heliocentric coordinates | B28: x | C28: =C$25 * (COS(INDEX(ele[o],C$20)/180*PI()) * COS(C$26/180*PI()) - SIN(INDEX(ele[o],C$20)/180*PI()) * SIN(C$26/180*PI()) * COS(INDEX(ele[i],C$20)/180*PI())) -> 1.091293 | D28: =D$25 * (COS(INDEX(ele[o],D$20)/180*PI()) * COS(D$26/180*PI()) - SIN(INDEX(ele[o],D$20)/180*PI()) * SIN(D$26/180*PI()) * COS(INDEX(ele[i],D$20)/180*PI())) -> 0.901493 | E28: =E$25 * (COS(INDEX(ele[o],E$20)/180*PI()) * COS(E$26/180*PI()) - SIN(INDEX(ele[o],E$20)/180*PI()) * SIN(E$26/180*PI()) * COS(INDEX(ele[i],E$20)/180*PI())) -> 0.679920 | F28: =F$25 * (COS(INDEX(ele[o],F$20)/180*PI()) * COS(F$26/180*PI()) - SIN(INDEX(ele[o],F$20)/180*PI()) * SIN(F$26/180*PI()) * COS(INDEX(ele[i],F$20)/180*PI())) -> 0.435564 | G28: =G$25 * (COS(INDEX(ele[o],G$20)/180*PI()) * COS(G$26/180*PI()) - SIN(INDEX(ele[o],G$20)/180*PI()) * SIN(G$26/180*PI()) * COS(INDEX(ele[i],G$20)/180*PI())) -> 0.177292 | H28: =H$25 * (COS(INDEX(ele[o],H$20)/180*PI()) * COS(H$26/180*PI()) - SIN(INDEX(ele[o],H$20)/180*PI()) * SIN(H$26/180*PI()) * COS(INDEX(ele[i],H$20)/180*PI())) -> -0.086452 | I28: =I$25 * (COS(INDEX(ele[o],I$20)/180*PI()) * COS(I$26/180*PI()) - SIN(INDEX(ele[o],I$20)/180*PI()) * SIN(I$26/180*PI()) * COS(INDEX(ele[i],I$20)/180*PI())) -> -0.347806 | J28: =J$25 * (COS(INDEX(ele[o],J$20)/180*PI()) * COS(J$26/180*PI()) - SIN(INDEX(ele[o],J$20)/180*PI()) * SIN(J$26/180*PI()) * COS(INDEX(ele[i],J$20)/180*PI())) -> -0.599585 | K28: =K$25 * (COS(INDEX(ele[o],K$20)/180*PI()) * COS(K$26/180*PI()) - SIN(INDEX(ele[o],K$20)/180*PI()) * SIN(K$26/180*PI()) * COS(INDEX(ele[i],K$20)/180*PI())) -> -0.835327 | L28: =L$25 * (COS(INDEX(ele[o],L$20)/180*PI()) * COS(L$26/180*PI()) - SIN(INDEX(ele[o],L$20)/180*PI()) * SIN(L$26/180*PI()) * COS(INDEX(ele[i],L$20)/180*PI())) -> -1.049316 | M28: =M$25 * (COS(INDEX(ele[o],M$20)/180*PI()) * COS(M$26/180*PI()) - SIN(INDEX(ele[o],M$20)/180*PI()) * SIN(M$26/180*PI()) * COS(INDEX(ele[i],M$20)/180*PI())) -> -1.236596 | N28: =N$25 * (COS(INDEX(ele[o],N$20)/180*PI()) * COS(N$26/180*PI()) - SIN(INDEX(ele[o],N$20)/180*PI()) * SIN(N$26/180*PI()) * COS(INDEX(ele[i],N$20)/180*PI())) -> -1.392949 | O28: =O$25 * (COS(INDEX(ele[o],O$20)/180*PI()) * COS(O$26/180*PI()) - SIN(INDEX(ele[o],O$20)/180*PI()) * SIN(O$26/180*PI()) * COS(INDEX(ele[i],O$20)/180*PI())) -> -1.514867 | P28: =P$25 * (COS(INDEX(ele[o],P$20)/180*PI()) * COS(P$26/180*PI()) - SIN(INDEX(ele[o],P$20)/180*PI()) * SIN(P$26/180*PI()) * COS(INDEX(ele[i],P$20)/180*PI())) -> -1.599506 | Q28: =Q$25 * (COS(INDEX(ele[o],Q$20)/180*PI()) * COS(Q$26/180*PI()) - SIN(INDEX(ele[o],Q$20)/180*PI()) * SIN(Q$26/180*PI()) * COS(INDEX(ele[i],Q$20)/180*PI())) -> -1.644670 | R28: =R$25 * (COS(INDEX(ele[o],R$20)/180*PI()) * COS(R$26/180*PI()) - SIN(INDEX(ele[o],R$20)/180*PI()) * SIN(R$26/180*PI()) * COS(INDEX(ele[i],R$20)/180*PI())) -> -1.648827 | S28: =S$25 * (COS(INDEX(ele[o],S$20)/180*PI()) * COS(S$26/180*PI()) - SIN(INDEX(ele[o],S$20)/180*PI()) * SIN(S$26/180*PI()) * COS(INDEX(ele[i],S$20)/180*PI())) -> -1.611166 | T28: =T$25 * (COS(INDEX(ele[o],T$20)/180*PI()) * COS(T$26/180*PI()) - SIN(INDEX(ele[o],T$20)/180*PI()) * SIN(T$26/180*PI()) * COS(INDEX(ele[i],T$20)/180*PI())) -> -1.531682 | U28: =U$25 * (COS(INDEX(ele[o],U$20)/180*PI()) * COS(U$26/180*PI()) - SIN(INDEX(ele[o],U$20)/180*PI()) * SIN(U$26/180*PI()) * COS(INDEX(ele[i],U$20)/180*PI())) -> -1.411277 | V28: =V$25 * (COS(INDEX(ele[o],V$20)/180*PI()) * COS(V$26/180*PI()) - SIN(INDEX(ele[o],V$20)/180*PI()) * SIN(V$26/180*PI()) * COS(INDEX(ele[i],V$20)/180*PI())) -> -1.251864 | W28: =W$25 * (COS(INDEX(ele[o],W$20)/180*PI()) * COS(W$26/180*PI()) - SIN(INDEX(ele[o],W$20)/180*PI()) * SIN(W$26/180*PI()) * COS(INDEX(ele[i],W$20)/180*PI())) -> -1.056472 | X28: =X$25 * (COS(INDEX(ele[o],X$20)/180*PI()) * COS(X$26/180*PI()) - SIN(INDEX(ele[o],X$20)/180*PI()) * SIN(X$26/180*PI()) * COS(INDEX(ele[i],X$20)/180*PI())) -> -0.829350 | Y28: =Y$25 * (COS(INDEX(ele[o],Y$20)/180*PI()) * COS(Y$26/180*PI()) - SIN(INDEX(ele[o],Y$20)/180*PI()) * SIN(Y$26/180*PI()) * COS(INDEX(ele[i],Y$20)/180*PI())) -> -0.576089 | Z28: =Z$25 * (COS(INDEX(ele[o],Z$20)/180*PI()) * COS(Z$26/180*PI()) - SIN(INDEX(ele[o],Z$20)/180*PI()) * SIN(Z$26/180*PI()) * COS(INDEX(ele[i],Z$20)/180*PI())) -> -0.303719 | AA28: =AA$25 * (COS(INDEX(ele[o],AA$20)/180*PI()) * COS(AA$26/180*PI()) - SIN(INDEX(ele[o],AA$20)/180*PI()) * SIN(AA$26/180*PI()) * COS(INDEX(ele[i],AA$20)/180*PI())) -> -0.020745 | AB28: =AB$25 * (COS(INDEX(ele[o],AB$20)/180*PI()) * COS(AB$26/180*PI()) - SIN(INDEX(ele[o],AB$20)/180*PI()) * SIN(AB$26/180*PI()) * COS(INDEX(ele[i],AB$20)/180*PI())) -> 0.262962 | AC28: =AC$25 * (COS(INDEX(ele[o],AC$20)/180*PI()) * COS(AC$26/180*PI()) - SIN(INDEX(ele[o],AC$20)/180*PI()) * SIN(AC$26/180*PI()) * COS(INDEX(ele[i],AC$20)/180*PI())) -> 0.536481 | AD28: =AD$25 * (COS(INDEX(ele[o],AD$20)/180*PI()) * COS(AD$26/180*PI()) - SIN(INDEX(ele[o],AD$20)/180*PI()) * SIN(AD$26/180*PI()) * COS(INDEX(ele[i],AD$20)/180*PI())) -> 0.788391 | AE28: =AE$25 * (COS(INDEX(ele[o],AE$20)/180*PI()) * COS(AE$26/180*PI()) - SIN(INDEX(ele[o],AE$20)/180*PI()) * SIN(AE$26/180*PI()) * COS(INDEX(ele[i],AE$20)/180*PI())) -> 1.007527 | AF28: =AF$25 * (COS(INDEX(ele[o],AF$20)/180*PI()) * COS(AF$26/180*PI()) - SIN(INDEX(ele[o],AF$20)/180*PI()) * SIN(AF$26/180*PI()) * COS(INDEX(ele[i],AF$20)/180*PI())) -> 1.183850 | AG28: =AG$25 * (COS(INDEX(ele[o],AG$20)/180*PI()) * COS(AG$26/180*PI()) - SIN(INDEX(ele[o],AG$20)/180*PI()) * SIN(AG$26/180*PI()) * COS(INDEX(ele[i],AG$20)/180*PI())) -> 1.309296 | AH28: =AH$25 * (COS(INDEX(ele[o],AH$20)/180*PI()) * COS(AH$26/180*PI()) - SIN(INDEX(ele[o],AH$20)/180*PI()) * SIN(AH$26/180*PI()) * COS(INDEX(ele[i],AH$20)/180*PI())) -> 1.378455 | AI28: =AI$25 * (COS(INDEX(ele[o],AI$20)/180*PI()) * COS(AI$26/180*PI()) - SIN(INDEX(ele[o],AI$20)/180*PI()) * SIN(AI$26/180*PI()) * COS(INDEX(ele[i],AI$20)/180*PI())) -> 1.388992 | AJ28: =AJ$25 * (COS(INDEX(ele[o],AJ$20)/180*PI()) * COS(AJ$26/180*PI()) - SIN(INDEX(ele[o],AJ$20)/180*PI()) * SIN(AJ$26/180*PI()) * COS(INDEX(ele[i],AJ$20)/180*PI())) -> 1.341712 | AK28: =AK$25 * (COS(INDEX(ele[o],AK$20)/180*PI()) * COS(AK$26/180*PI()) - SIN(INDEX(ele[o],AK$20)/180*PI()) * SIN(AK$26/180*PI()) * COS(INDEX(ele[i],AK$20)/180*PI())) -> 1.240300 | AL28: =AL$25 * (COS(INDEX(ele[o],AL$20)/180*PI()) * COS(AL$26/180*PI()) - SIN(INDEX(ele[o],AL$20)/180*PI()) * SIN(AL$26/180*PI()) * COS(INDEX(ele[i],AL$20)/180*PI())) -> 1.090792
B29: y | C29: =C$25 * (SIN(INDEX(ele[o],C$20)/180*PI()) * COS(C$26/180*PI()) + COS(INDEX(ele[o],C$20)/180*PI()) * SIN(C$26/180*PI()) * COS(INDEX(ele[i],C$20)/180*PI())) -> 0.960021 | D29: =D$25 * (SIN(INDEX(ele[o],D$20)/180*PI()) * COS(D$26/180*PI()) + COS(INDEX(ele[o],D$20)/180*PI()) * SIN(D$26/180*PI()) * COS(INDEX(ele[i],D$20)/180*PI())) -> 1.170839 | E29: =E$25 * (SIN(INDEX(ele[o],E$20)/180*PI()) * COS(E$26/180*PI()) + COS(INDEX(ele[o],E$20)/180*PI()) * SIN(E$26/180*PI()) * COS(INDEX(ele[i],E$20)/180*PI())) -> 1.340418 | F29: =F$25 * (SIN(INDEX(ele[o],F$20)/180*PI()) * COS(F$26/180*PI()) + COS(INDEX(ele[o],F$20)/180*PI()) * SIN(F$26/180*PI()) * COS(INDEX(ele[i],F$20)/180*PI())) -> 1.465146 | G29: =G$25 * (SIN(INDEX(ele[o],G$20)/180*PI()) * COS(G$26/180*PI()) + COS(INDEX(ele[o],G$20)/180*PI()) * SIN(G$26/180*PI()) * COS(INDEX(ele[i],G$20)/180*PI())) -> 1.543275 | H29: =H$25 * (SIN(INDEX(ele[o],H$20)/180*PI()) * COS(H$26/180*PI()) + COS(INDEX(ele[o],H$20)/180*PI()) * SIN(H$26/180*PI()) * COS(INDEX(ele[i],H$20)/180*PI())) -> 1.574637 | I29: =I$25 * (SIN(INDEX(ele[o],I$20)/180*PI()) * COS(I$26/180*PI()) + COS(INDEX(ele[o],I$20)/180*PI()) * SIN(I$26/180*PI()) * COS(INDEX(ele[i],I$20)/180*PI())) -> 1.560364 | J29: =J$25 * (SIN(INDEX(ele[o],J$20)/180*PI()) * COS(J$26/180*PI()) + COS(INDEX(ele[o],J$20)/180*PI()) * SIN(J$26/180*PI()) * COS(INDEX(ele[i],J$20)/180*PI())) -> 1.502647 | K29: =K$25 * (SIN(INDEX(ele[o],K$20)/180*PI()) * COS(K$26/180*PI()) + COS(INDEX(ele[o],K$20)/180*PI()) * SIN(K$26/180*PI()) * COS(INDEX(ele[i],K$20)/180*PI())) -> 1.404548 | L29: =L$25 * (SIN(INDEX(ele[o],L$20)/180*PI()) * COS(L$26/180*PI()) + COS(INDEX(ele[o],L$20)/180*PI()) * SIN(L$26/180*PI()) * COS(INDEX(ele[i],L$20)/180*PI())) -> 1.269833 | M29: =M$25 * (SIN(INDEX(ele[o],M$20)/180*PI()) * COS(M$26/180*PI()) + COS(INDEX(ele[o],M$20)/180*PI()) * SIN(M$26/180*PI()) * COS(INDEX(ele[i],M$20)/180*PI())) -> 1.102828 | N29: =N$25 * (SIN(INDEX(ele[o],N$20)/180*PI()) * COS(N$26/180*PI()) + COS(INDEX(ele[o],N$20)/180*PI()) * SIN(N$26/180*PI()) * COS(INDEX(ele[i],N$20)/180*PI())) -> 0.908295 | O29: =O$25 * (SIN(INDEX(ele[o],O$20)/180*PI()) * COS(O$26/180*PI()) + COS(INDEX(ele[o],O$20)/180*PI()) * SIN(O$26/180*PI()) * COS(INDEX(ele[i],O$20)/180*PI())) -> 0.691343 | P29: =P$25 * (SIN(INDEX(ele[o],P$20)/180*PI()) * COS(P$26/180*PI()) + COS(INDEX(ele[o],P$20)/180*PI()) * SIN(P$26/180*PI()) * COS(INDEX(ele[i],P$20)/180*PI())) -> 0.457382 | Q29: =Q$25 * (SIN(INDEX(ele[o],Q$20)/180*PI()) * COS(Q$26/180*PI()) + COS(INDEX(ele[o],Q$20)/180*PI()) * SIN(Q$26/180*PI()) * COS(INDEX(ele[i],Q$20)/180*PI())) -> 0.212104 | R29: =R$25 * (SIN(INDEX(ele[o],R$20)/180*PI()) * COS(R$26/180*PI()) + COS(INDEX(ele[o],R$20)/180*PI()) * SIN(R$26/180*PI()) * COS(INDEX(ele[i],R$20)/180*PI())) -> -0.038502 | S29: =S$25 * (SIN(INDEX(ele[o],S$20)/180*PI()) * COS(S$26/180*PI()) + COS(INDEX(ele[o],S$20)/180*PI()) * SIN(S$26/180*PI()) * COS(INDEX(ele[i],S$20)/180*PI())) -> -0.288157 | T29: =T$25 * (SIN(INDEX(ele[o],T$20)/180*PI()) * COS(T$26/180*PI()) + COS(INDEX(ele[o],T$20)/180*PI()) * SIN(T$26/180*PI()) * COS(INDEX(ele[i],T$20)/180*PI())) -> -0.530318 | U29: =U$25 * (SIN(INDEX(ele[o],U$20)/180*PI()) * COS(U$26/180*PI()) + COS(INDEX(ele[o],U$20)/180*PI()) * SIN(U$26/180*PI()) * COS(INDEX(ele[i],U$20)/180*PI())) -> -0.758244 | V29: =V$25 * (SIN(INDEX(ele[o],V$20)/180*PI()) * COS(V$26/180*PI()) + COS(INDEX(ele[o],V$20)/180*PI()) * SIN(V$26/180*PI()) * COS(INDEX(ele[i],V$20)/180*PI())) -> -0.965096 | W29: =W$25 * (SIN(INDEX(ele[o],W$20)/180*PI()) * COS(W$26/180*PI()) + COS(INDEX(ele[o],W$20)/180*PI()) * SIN(W$26/180*PI()) * COS(INDEX(ele[i],W$20)/180*PI())) -> -1.144063 | X29: =X$25 * (SIN(INDEX(ele[o],X$20)/180*PI()) * COS(X$26/180*PI()) + COS(INDEX(ele[o],X$20)/180*PI()) * SIN(X$26/180*PI()) * COS(INDEX(ele[i],X$20)/180*PI())) -> -1.288519 | Y29: =Y$25 * (SIN(INDEX(ele[o],Y$20)/180*PI()) * COS(Y$26/180*PI()) + COS(INDEX(ele[o],Y$20)/180*PI()) * SIN(Y$26/180*PI()) * COS(INDEX(ele[i],Y$20)/180*PI())) -> -1.392241 | Z29: =Z$25 * (SIN(INDEX(ele[o],Z$20)/180*PI()) * COS(Z$26/180*PI()) + COS(INDEX(ele[o],Z$20)/180*PI()) * SIN(Z$26/180*PI()) * COS(INDEX(ele[i],Z$20)/180*PI())) -> -1.449698 | AA29: =AA$25 * (SIN(INDEX(ele[o],AA$20)/180*PI()) * COS(AA$26/180*PI()) + COS(INDEX(ele[o],AA$20)/180*PI()) * SIN(AA$26/180*PI()) * COS(INDEX(ele[i],AA$20)/180*PI())) -> -1.456458 | AB29: =AB$25 * (SIN(INDEX(ele[o],AB$20)/180*PI()) * COS(AB$26/180*PI()) + COS(INDEX(ele[o],AB$20)/180*PI()) * SIN(AB$26/180*PI()) * COS(INDEX(ele[i],AB$20)/180*PI())) -> -1.409679 | AC29: =AC$25 * (SIN(INDEX(ele[o],AC$20)/180*PI()) * COS(AC$26/180*PI()) + COS(INDEX(ele[o],AC$20)/180*PI()) * SIN(AC$26/180*PI()) * COS(INDEX(ele[i],AC$20)/180*PI())) -> -1.308627 | AD29: =AD$25 * (SIN(INDEX(ele[o],AD$20)/180*PI()) * COS(AD$26/180*PI()) + COS(INDEX(ele[o],AD$20)/180*PI()) * SIN(AD$26/180*PI()) * COS(INDEX(ele[i],AD$20)/180*PI())) -> -1.155122 | AE29: =AE$25 * (SIN(INDEX(ele[o],AE$20)/180*PI()) * COS(AE$26/180*PI()) + COS(INDEX(ele[o],AE$20)/180*PI()) * SIN(AE$26/180*PI()) * COS(INDEX(ele[i],AE$20)/180*PI())) -> -0.953799 | AF29: =AF$25 * (SIN(INDEX(ele[o],AF$20)/180*PI()) * COS(AF$26/180*PI()) + COS(INDEX(ele[o],AF$20)/180*PI()) * SIN(AF$26/180*PI()) * COS(INDEX(ele[i],AF$20)/180*PI())) -> -0.712074 | AG29: =AG$25 * (SIN(INDEX(ele[o],AG$20)/180*PI()) * COS(AG$26/180*PI()) + COS(INDEX(ele[o],AG$20)/180*PI()) * SIN(AG$26/180*PI()) * COS(INDEX(ele[i],AG$20)/180*PI())) -> -0.439791 | AH29: =AH$25 * (SIN(INDEX(ele[o],AH$20)/180*PI()) * COS(AH$26/180*PI()) + COS(INDEX(ele[o],AH$20)/180*PI()) * SIN(AH$26/180*PI()) * COS(INDEX(ele[i],AH$20)/180*PI())) -> -0.148571 | AI29: =AI$25 * (SIN(INDEX(ele[o],AI$20)/180*PI()) * COS(AI$26/180*PI()) + COS(INDEX(ele[o],AI$20)/180*PI()) * SIN(AI$26/180*PI()) * COS(INDEX(ele[i],AI$20)/180*PI())) -> 0.149055 | AJ29: =AJ$25 * (SIN(INDEX(ele[o],AJ$20)/180*PI()) * COS(AJ$26/180*PI()) + COS(INDEX(ele[o],AJ$20)/180*PI()) * SIN(AJ$26/180*PI()) * COS(INDEX(ele[i],AJ$20)/180*PI())) -> 0.440588 | AK29: =AK$25 * (SIN(INDEX(ele[o],AK$20)/180*PI()) * COS(AK$26/180*PI()) + COS(INDEX(ele[o],AK$20)/180*PI()) * SIN(AK$26/180*PI()) * COS(INDEX(ele[i],AK$20)/180*PI())) -> 0.714454 | AL29: =AL$25 * (SIN(INDEX(ele[o],AL$20)/180*PI()) * COS(AL$26/180*PI()) + COS(INDEX(ele[o],AL$20)/180*PI()) * SIN(AL$26/180*PI()) * COS(INDEX(ele[i],AL$20)/180*PI())) -> 0.960694
B30: z | C30: =C$25 * (SIN(C$26/180*PI()) * SIN(INDEX(ele[i],C$20)/180*PI())) -> -0.006718 | D30: =D$25 * (SIN(D$26/180*PI()) * SIN(INDEX(ele[i],D$20)/180*PI())) -> 0.002364 | E30: =E$25 * (SIN(E$26/180*PI()) * SIN(INDEX(ele[i],E$20)/180*PI())) -> 0.011363 | F30: =F$25 * (SIN(F$26/180*PI()) * SIN(INDEX(ele[i],F$20)/180*PI())) -> 0.019983 | G30: =G$25 * (SIN(G$26/180*PI()) * SIN(INDEX(ele[i],G$20)/180*PI())) -> 0.027969 | H30: =H$25 * (SIN(H$26/180*PI()) * SIN(INDEX(ele[i],H$20)/180*PI())) -> 0.035110 | I30: =I$25 * (SIN(I$26/180*PI()) * SIN(INDEX(ele[i],I$20)/180*PI())) -> 0.041237 | J30: =J$25 * (SIN(J$26/180*PI()) * SIN(INDEX(ele[i],J$20)/180*PI())) -> 0.046217 | K30: =K$25 * (SIN(K$26/180*PI()) * SIN(INDEX(ele[i],K$20)/180*PI())) -> 0.049958 | L30: =L$25 * (SIN(L$26/180*PI()) * SIN(INDEX(ele[i],L$20)/180*PI())) -> 0.052397 | M30: =M$25 * (SIN(M$26/180*PI()) * SIN(INDEX(ele[i],M$20)/180*PI())) -> 0.053502 | N30: =N$25 * (SIN(N$26/180*PI()) * SIN(INDEX(ele[i],N$20)/180*PI())) -> 0.053271 | O30: =O$25 * (SIN(O$26/180*PI()) * SIN(INDEX(ele[i],O$20)/180*PI())) -> 0.051724 | P30: =P$25 * (SIN(P$26/180*PI()) * SIN(INDEX(ele[i],P$20)/180*PI())) -> 0.048904 | Q30: =Q$25 * (SIN(Q$26/180*PI()) * SIN(INDEX(ele[i],Q$20)/180*PI())) -> 0.044876 | R30: =R$25 * (SIN(R$26/180*PI()) * SIN(INDEX(ele[i],R$20)/180*PI())) -> 0.039729 | S30: =S$25 * (SIN(S$26/180*PI()) * SIN(INDEX(ele[i],S$20)/180*PI())) -> 0.033573 | T30: =T$25 * (SIN(T$26/180*PI()) * SIN(INDEX(ele[i],T$20)/180*PI())) -> 0.026546 | U30: =U$25 * (SIN(U$26/180*PI()) * SIN(INDEX(ele[i],U$20)/180*PI())) -> 0.018812 | V30: =V$25 * (SIN(V$26/180*PI()) * SIN(INDEX(ele[i],V$20)/180*PI())) -> 0.010560 | W30: =W$25 * (SIN(W$26/180*PI()) * SIN(INDEX(ele[i],W$20)/180*PI())) -> 0.002007 | X30: =X$25 * (SIN(X$26/180*PI()) * SIN(INDEX(ele[i],X$20)/180*PI())) -> -0.006603 | Y30: =Y$25 * (SIN(Y$26/180*PI()) * SIN(INDEX(ele[i],Y$20)/180*PI())) -> -0.015002 | Z30: =Z$25 * (SIN(Z$26/180*PI()) * SIN(INDEX(ele[i],Z$20)/180*PI())) -> -0.022901 | AA30: =AA$25 * (SIN(AA$26/180*PI()) * SIN(INDEX(ele[i],AA$20)/180*PI())) -> -0.029999 | AB30: =AB$25 * (SIN(AB$26/180*PI()) * SIN(INDEX(ele[i],AB$20)/180*PI())) -> -0.035994 | AC30: =AC$25 * (SIN(AC$26/180*PI()) * SIN(INDEX(ele[i],AC$20)/180*PI())) -> -0.040602 | AD30: =AD$25 * (SIN(AD$26/180*PI()) * SIN(INDEX(ele[i],AD$20)/180*PI())) -> -0.043579 | AE30: =AE$25 * (SIN(AE$26/180*PI()) * SIN(INDEX(ele[i],AE$20)/180*PI())) -> -0.044749 | AF30: =AF$25 * (SIN(AF$26/180*PI()) * SIN(INDEX(ele[i],AF$20)/180*PI())) -> -0.044020 | AG30: =AG$25 * (SIN(AG$26/180*PI()) * SIN(INDEX(ele[i],AG$20)/180*PI())) -> -0.041401 | AH30: =AH$25 * (SIN(AH$26/180*PI()) * SIN(INDEX(ele[i],AH$20)/180*PI())) -> -0.037000 | AI30: =AI$25 * (SIN(AI$26/180*PI()) * SIN(INDEX(ele[i],AI$20)/180*PI())) -> -0.031025 | AJ30: =AJ$25 * (SIN(AJ$26/180*PI()) * SIN(INDEX(ele[i],AJ$20)/180*PI())) -> -0.023756 | AK30: =AK$25 * (SIN(AK$26/180*PI()) * SIN(INDEX(ele[i],AK$20)/180*PI())) -> -0.015526 | AL30: =AL$25 * (SIN(AL$26/180*PI()) * SIN(INDEX(ele[i],AL$20)/180*PI())) -> -0.006692
A32: Orbit planet 2
A33: Orbit period | B33: =L4 -> 365.25 | C33: 1 | D33: 2 | E33: 3 | F33: 4 | G33: 5 | H33: 6 | I33: 7 | J33: 8 | K33: 9 | L33: 10 | M33: 11 | N33: 12 | O33: 13 | P33: 14 | Q33: 15 | R33: 16 | S33: 17 | T33: 18 | U33: 19 | V33: 20 | W33: 21 | X33: 22 | Y33: 23 | Z33: 24 | AA33: 25 | AB33: 26 | AC33: 27 | AD33: 28 | AE33: 29 | AF33: 30 | AG33: 31 | AH33: 32 | AI33: 33 | AJ33: 34 | AK33: 35 | AL33: 36
C34: =DATE(2019,1,1) -> 2019-01-01 | D34: =DATE(2019,1,1) -> 2019-01-01 | E34: 2019-01-01 | F34: 2019-01-01 | G34: 2019-01-01 | H34: 2019-01-01 | I34: 2019-01-01 | J34: 2019-01-01 | K34: 2019-01-01 | L34: 2019-01-01 | M34: 2019-01-01 | N34: 2019-01-01 | O34: 2019-01-01 | P34: 2019-01-01 | Q34: 2019-01-01 | R34: 2019-01-01 | S34: 2019-01-01 | T34: 2019-01-01 | U34: 2019-01-01 | V34: 2019-01-01 | W34: 2019-01-01 | X34: 2019-01-01 | Y34: 2019-01-01 | Z34: 2019-01-01 | AA34: 2019-01-01 | AB34: 2019-01-01 | AC34: 2019-01-01 | AD34: 2019-01-01 | AE34: 2019-01-01 | AF34: 2019-01-01 | AG34: 2019-01-01 | AH34: 2019-01-01 | AI34: 2019-01-01 | AJ34: 2019-01-01 | AK34: 2019-01-01 | AL34: 2019-01-01
A35: Time zone hrs | C35: 2 | D35: 2 | E35: 2 | F35: 2 | G35: 2 | H35: 2 | I35: 2 | J35: 2 | K35: 2 | L35: 2 | M35: 2 | N35: 2 | O35: 2 | P35: 2 | Q35: 2 | R35: 2 | S35: 2 | T35: 2 | U35: 2 | V35: 2 | W35: 2 | X35: 2 | Y35: 2 | Z35: 2 | AA35: 2 | AB35: 2 | AC35: 2 | AD35: 2 | AE35: 2 | AF35: 2 | AG35: 2 | AH35: 2 | AI35: 2 | AJ35: 2 | AK35: 2 | AL35: 2
A36: Offset days | C36: 0 | D36: =C36+$B$33/35 -> 10.43571429 | E36: =D36+$B$33/35 -> 20.87142857 | F36: 31.30714286 | G36: 41.74285714 | H36: 52.17857143 | I36: 62.61428571 | J36: 73.05 | K36: 83.48571429 | L36: 93.92142857 | M36: 104.3571429 | N36: 114.7928571 | O36: 125.2285714 | P36: 135.6642857 | Q36: 146.1 | R36: 156.5357143 | S36: 166.9714286 | T36: 177.4071429 | U36: 187.8428571 | V36: 198.2785714 | W36: 208.7142857 | X36: 219.15 | Y36: 229.5857143 | Z36: 240.0214286 | AA36: 250.4571429 | AB36: 260.8928571 | AC36: 271.3285714 | AD36: 281.7642857 | AE36: 292.2 | AF36: 302.6357143 | AG36: 313.0714286 | AH36: 323.5071429 | AI36: 333.9428571 | AJ36: 344.3785714 | AK36: 354.8142857 | AL36: 365.25
A37: Unix Epoch | C37: =(C34-DATE(1970,1,1)-0.5-C35/24)+C36 -> 17896.42 | D37: =(D34-DATE(1970,1,1)-0.5-D35/24)+D36 -> 17906.85 | E37: 17917.29 | F37: 17927.72 | G37: 17938.16 | H37: 17948.60 | I37: 17959.03 | J37: 17969.47 | K37: 17979.90 | L37: 17990.34 | M37: 18000.77 | N37: 18011.21 | O37: 18021.65 | P37: 18032.08 | Q37: 18042.52 | R37: 18052.95 | S37: 18063.39 | T37: 18073.82 | U37: 18084.26 | V37: 18094.70 | W37: 18105.13 | X37: 18115.57 | Y37: 18126.00 | Z37: 18136.44 | AA37: 18146.87 | AB37: 18157.31 | AC37: 18167.75 | AD37: 18178.18 | AE37: 18188.62 | AF37: 18199.05 | AG37: 18209.49 | AH37: 18219.92 | AI37: 18230.36 | AJ37: 18240.80 | AK37: 18251.23 | AL37: 18261.67
A38: Julian Day | C38: =2440587.5 + C37 -> 2458483.9 | D38: =2440587.5 + D37 -> 2458494.4 | E38: 2458504.8 | F38: 2458515.2 | G38: 2458525.7 | H38: 2458536.1 | I38: 2458546.5 | J38: 2458557.0 | K38: 2458567.4 | L38: 2458577.8 | M38: 2458588.3 | N38: 2458598.7 | O38: 2458609.1 | P38: 2458619.6 | Q38: 2458630.0 | R38: 2458640.5 | S38: 2458650.9 | T38: 2458661.3 | U38: 2458671.8 | V38: 2458682.2 | W38: 2458692.6 | X38: 2458703.1 | Y38: 2458713.5 | Z38: 2458723.9 | AA38: 2458734.4 | AB38: 2458744.8 | AC38: 2458755.2 | AD38: 2458765.7 | AE38: 2458776.1 | AF38: 2458786.6 | AG38: 2458797.0 | AH38: 2458807.4 | AI38: 2458817.9 | AJ38: 2458828.3 | AK38: 2458838.7 | AL38: 2458849.2
A39: Date | C39: =C34+C36 -> 2019-01-01 | D39: =D34+D36 -> 2019-01-11T10:27:25.714 | E39: 2019-01-21T20:54:51.429 | F39: 2019-02-01T07:22:17.143 | G39: 2019-02-11T17:49:42.857 | H39: 2019-02-22T04:17:08.571 | I39: 2019-03-04T14:44:34.286 | J39: 2019-03-15T01:12:00 | K39: 2019-03-25T11:39:25.714 | L39: 2019-04-04T22:06:51.429 | M39: 2019-04-15T08:34:17.143 | N39: 2019-04-25T19:01:42.857 | O39: 2019-05-06T05:29:08.571 | P39: 2019-05-16T15:56:34.286 | Q39: 2019-05-27T02:24:00 | R39: 2019-06-06T12:51:25.714 | S39: 2019-06-16T23:18:51.429 | T39: 2019-06-27T09:46:17.143 | U39: 2019-07-07T20:13:42.857 | V39: 2019-07-18T06:41:08.571 | W39: 2019-07-28T17:08:34.286 | X39: 2019-08-08T03:36:00 | Y39: 2019-08-18T14:03:25.714 | Z39: 2019-08-29T00:30:51.429 | AA39: 2019-09-08T10:58:17.143 | AB39: 2019-09-18T21:25:42.857 | AC39: 2019-09-29T07:53:08.571 | AD39: 2019-10-09T18:20:34.286 | AE39: 2019-10-20T04:48:00 | AF39: 2019-10-30T15:15:25.714 | AG39: 2019-11-10T01:42:51.429 | AH39: 2019-11-20T12:10:17.143 | AI39: 2019-11-30T22:37:42.857 | AJ39: 2019-12-11T09:05:08.571 | AK39: 2019-12-21T19:32:34.286 | AL39: 2020-01-01T06:00:00
C41: 2 | D41: 2 | E41: 2 | F41: 2 | G41: 2 | H41: 2 | I41: 2 | J41: 2 | K41: 2 | L41: 2 | M41: 2 | N41: 2 | O41: 2 | P41: 2 | Q41: 2 | R41: 2 | S41: 2 | T41: 2 | U41: 2 | V41: 2 | W41: 2 | X41: 2 | Y41: 2 | Z41: 2 | AA41: 2 | AB41: 2 | AC41: 2 | AD41: 2 | AE41: 2 | AF41: 2 | AG41: 2 | AH41: 2 | AI41: 2 | AJ41: 2 | AK41: 2 | AL41: 2
C42: =$C$4 -> Earth | D42: =$C$4 -> Earth | E42: Earth | F42: Earth | G42: Earth | H42: Earth | I42: Earth | J42: Earth | K42: Earth | L42: Earth | M42: Earth | N42: Earth | O42: Earth | P42: Earth | Q42: Earth | R42: Earth | S42: Earth | T42: Earth | U42: Earth | V42: Earth | W42: Earth | X42: Earth | Y42: Earth | Z42: Earth | AA42: Earth | AB42: Earth | AC42: Earth | AD42: Earth | AE42: Earth | AF42: Earth | AG42: Earth | AH42: Earth | AI42: Earth | AJ42: Earth | AK42: Earth | AL42: Earth
A43: D | B43: D | C43: =C$38-INDEX(ele[Dele],C$41) -> 7803.4 | D43: =D$38-INDEX(ele[Dele],D$41) -> 7813.9 | E43: =E$38-INDEX(ele[Dele],E$41) -> 7824.3 | F43: =F$38-INDEX(ele[Dele],F$41) -> 7834.7 | G43: =G$38-INDEX(ele[Dele],G$41) -> 7845.2 | H43: =H$38-INDEX(ele[Dele],H$41) -> 7855.6 | I43: =I$38-INDEX(ele[Dele],I$41) -> 7866.0 | J43: =J$38-INDEX(ele[Dele],J$41) -> 7876.5 | K43: =K$38-INDEX(ele[Dele],K$41) -> 7886.9 | L43: =L$38-INDEX(ele[Dele],L$41) -> 7897.3 | M43: =M$38-INDEX(ele[Dele],M$41) -> 7907.8 | N43: =N$38-INDEX(ele[Dele],N$41) -> 7918.2 | O43: =O$38-INDEX(ele[Dele],O$41) -> 7928.6 | P43: =P$38-INDEX(ele[Dele],P$41) -> 7939.1 | Q43: =Q$38-INDEX(ele[Dele],Q$41) -> 7949.5 | R43: =R$38-INDEX(ele[Dele],R$41) -> 7960.0 | S43: =S$38-INDEX(ele[Dele],S$41) -> 7970.4 | T43: =T$38-INDEX(ele[Dele],T$41) -> 7980.8 | U43: =U$38-INDEX(ele[Dele],U$41) -> 7991.3 | V43: =V$38-INDEX(ele[Dele],V$41) -> 8001.7 | W43: =W$38-INDEX(ele[Dele],W$41) -> 8012.1 | X43: =X$38-INDEX(ele[Dele],X$41) -> 8022.6 | Y43: =Y$38-INDEX(ele[Dele],Y$41) -> 8033.0 | Z43: =Z$38-INDEX(ele[Dele],Z$41) -> 8043.4 | AA43: =AA$38-INDEX(ele[Dele],AA$41) -> 8053.9 | AB43: =AB$38-INDEX(ele[Dele],AB$41) -> 8064.3 | AC43: =AC$38-INDEX(ele[Dele],AC$41) -> 8074.7 | AD43: =AD$38-INDEX(ele[Dele],AD$41) -> 8085.2 | AE43: =AE$38-INDEX(ele[Dele],AE$41) -> 8095.6 | AF43: =AF$38-INDEX(ele[Dele],AF$41) -> 8106.1 | AG43: =AG$38-INDEX(ele[Dele],AG$41) -> 8116.5 | AH43: =AH$38-INDEX(ele[Dele],AH$41) -> 8126.9 | AI43: =AI$38-INDEX(ele[Dele],AI$41) -> 8137.4 | AJ43: =AJ$38-INDEX(ele[Dele],AJ$41) -> 8147.8 | AK43: =AK$38-INDEX(ele[Dele],AK$41) -> 8158.2 | AL43: =AL$38-INDEX(ele[Dele],AL$41) -> 8168.7
A44: Mean anomaly | B44: M | C44: =MOD(INDEX(ele[n],C$41)*C43+INDEX(ele[l],C$41)-INDEX(ele[p],C$41),360) -> 356.4 | D44: =MOD(INDEX(ele[n],D$41)*D43+INDEX(ele[l],D$41)-INDEX(ele[p],D$41),360) -> 6.7 | E44: =MOD(INDEX(ele[n],E$41)*E43+INDEX(ele[l],E$41)-INDEX(ele[p],E$41),360) -> 17.0 | F44: =MOD(INDEX(ele[n],F$41)*F43+INDEX(ele[l],F$41)-INDEX(ele[p],F$41),360) -> 27.3 | G44: =MOD(INDEX(ele[n],G$41)*G43+INDEX(ele[l],G$41)-INDEX(ele[p],G$41),360) -> 37.6 | H44: =MOD(INDEX(ele[n],H$41)*H43+INDEX(ele[l],H$41)-INDEX(ele[p],H$41),360) -> 47.9 | I44: =MOD(INDEX(ele[n],I$41)*I43+INDEX(ele[l],I$41)-INDEX(ele[p],I$41),360) -> 58.2 | J44: =MOD(INDEX(ele[n],J$41)*J43+INDEX(ele[l],J$41)-INDEX(ele[p],J$41),360) -> 68.4 | K44: =MOD(INDEX(ele[n],K$41)*K43+INDEX(ele[l],K$41)-INDEX(ele[p],K$41),360) -> 78.7 | L44: =MOD(INDEX(ele[n],L$41)*L43+INDEX(ele[l],L$41)-INDEX(ele[p],L$41),360) -> 89.0 | M44: =MOD(INDEX(ele[n],M$41)*M43+INDEX(ele[l],M$41)-INDEX(ele[p],M$41),360) -> 99.3 | N44: =MOD(INDEX(ele[n],N$41)*N43+INDEX(ele[l],N$41)-INDEX(ele[p],N$41),360) -> 109.6 | O44: =MOD(INDEX(ele[n],O$41)*O43+INDEX(ele[l],O$41)-INDEX(ele[p],O$41),360) -> 119.9 | P44: =MOD(INDEX(ele[n],P$41)*P43+INDEX(ele[l],P$41)-INDEX(ele[p],P$41),360) -> 130.1 | Q44: =MOD(INDEX(ele[n],Q$41)*Q43+INDEX(ele[l],Q$41)-INDEX(ele[p],Q$41),360) -> 140.4 | R44: =MOD(INDEX(ele[n],R$41)*R43+INDEX(ele[l],R$41)-INDEX(ele[p],R$41),360) -> 150.7 | S44: =MOD(INDEX(ele[n],S$41)*S43+INDEX(ele[l],S$41)-INDEX(ele[p],S$41),360) -> 161.0 | T44: =MOD(INDEX(ele[n],T$41)*T43+INDEX(ele[l],T$41)-INDEX(ele[p],T$41),360) -> 171.3 | U44: =MOD(INDEX(ele[n],U$41)*U43+INDEX(ele[l],U$41)-INDEX(ele[p],U$41),360) -> 181.6 | V44: =MOD(INDEX(ele[n],V$41)*V43+INDEX(ele[l],V$41)-INDEX(ele[p],V$41),360) -> 191.9 | W44: =MOD(INDEX(ele[n],W$41)*W43+INDEX(ele[l],W$41)-INDEX(ele[p],W$41),360) -> 202.1 | X44: =MOD(INDEX(ele[n],X$41)*X43+INDEX(ele[l],X$41)-INDEX(ele[p],X$41),360) -> 212.4 | Y44: =MOD(INDEX(ele[n],Y$41)*Y43+INDEX(ele[l],Y$41)-INDEX(ele[p],Y$41),360) -> 222.7 | Z44: =MOD(INDEX(ele[n],Z$41)*Z43+INDEX(ele[l],Z$41)-INDEX(ele[p],Z$41),360) -> 233.0 | AA44: =MOD(INDEX(ele[n],AA$41)*AA43+INDEX(ele[l],AA$41)-INDEX(ele[p],AA$41),360) -> 243.3 | AB44: =MOD(INDEX(ele[n],AB$41)*AB43+INDEX(ele[l],AB$41)-INDEX(ele[p],AB$41),360) -> 253.6 | AC44: =MOD(INDEX(ele[n],AC$41)*AC43+INDEX(ele[l],AC$41)-INDEX(ele[p],AC$41),360) -> 263.9 | AD44: =MOD(INDEX(ele[n],AD$41)*AD43+INDEX(ele[l],AD$41)-INDEX(ele[p],AD$41),360) -> 274.1 | AE44: =MOD(INDEX(ele[n],AE$41)*AE43+INDEX(ele[l],AE$41)-INDEX(ele[p],AE$41),360) -> 284.4 | AF44: =MOD(INDEX(ele[n],AF$41)*AF43+INDEX(ele[l],AF$41)-INDEX(ele[p],AF$41),360) -> 294.7 | AG44: =MOD(INDEX(ele[n],AG$41)*AG43+INDEX(ele[l],AG$41)-INDEX(ele[p],AG$41),360) -> 305.0 | AH44: =MOD(INDEX(ele[n],AH$41)*AH43+INDEX(ele[l],AH$41)-INDEX(ele[p],AH$41),360) -> 315.3 | AI44: =MOD(INDEX(ele[n],AI$41)*AI43+INDEX(ele[l],AI$41)-INDEX(ele[p],AI$41),360) -> 325.6 | AJ44: =MOD(INDEX(ele[n],AJ$41)*AJ43+INDEX(ele[l],AJ$41)-INDEX(ele[p],AJ$41),360) -> 335.9 | AK44: =MOD(INDEX(ele[n],AK$41)*AK43+INDEX(ele[l],AK$41)-INDEX(ele[p],AK$41),360) -> 346.1 | AL44: =MOD(INDEX(ele[n],AL$41)*AL43+INDEX(ele[l],AL$41)-INDEX(ele[p],AL$41),360) -> 356.4
A45: True anomaly | B45: v | C45: =C$44 + 180/PI()*((2*INDEX(ele[e],C$41)-POWER(INDEX(ele[e],C$41),3)/4)*SIN(C$44/180*PI())+5/4*POWER(INDEX(ele[e],C$41),2)*SIN(2*C$44/180*PI())+13/12*POWER(INDEX(ele[e],C$41),3)*SIN(3*C$44/180*PI())) -> 356.3 | D45: =D$44 + 180/PI()*((2*INDEX(ele[e],D$41)-POWER(INDEX(ele[e],D$41),3)/4)*SIN(D$44/180*PI())+5/4*POWER(INDEX(ele[e],D$41),2)*SIN(2*D$44/180*PI())+13/12*POWER(INDEX(ele[e],D$41),3)*SIN(3*D$44/180*PI())) -> 7.0 | E45: =E$44 + 180/PI()*((2*INDEX(ele[e],E$41)-POWER(INDEX(ele[e],E$41),3)/4)*SIN(E$44/180*PI())+5/4*POWER(INDEX(ele[e],E$41),2)*SIN(2*E$44/180*PI())+13/12*POWER(INDEX(ele[e],E$41),3)*SIN(3*E$44/180*PI())) -> 17.6 | F45: =F$44 + 180/PI()*((2*INDEX(ele[e],F$41)-POWER(INDEX(ele[e],F$41),3)/4)*SIN(F$44/180*PI())+5/4*POWER(INDEX(ele[e],F$41),2)*SIN(2*F$44/180*PI())+13/12*POWER(INDEX(ele[e],F$41),3)*SIN(3*F$44/180*PI())) -> 28.2 | G45: =G$44 + 180/PI()*((2*INDEX(ele[e],G$41)-POWER(INDEX(ele[e],G$41),3)/4)*SIN(G$44/180*PI())+5/4*POWER(INDEX(ele[e],G$41),2)*SIN(2*G$44/180*PI())+13/12*POWER(INDEX(ele[e],G$41),3)*SIN(3*G$44/180*PI())) -> 38.8 | H45: =H$44 + 180/PI()*((2*INDEX(ele[e],H$41)-POWER(INDEX(ele[e],H$41),3)/4)*SIN(H$44/180*PI())+5/4*POWER(INDEX(ele[e],H$41),2)*SIN(2*H$44/180*PI())+13/12*POWER(INDEX(ele[e],H$41),3)*SIN(3*H$44/180*PI())) -> 49.3 | I45: =I$44 + 180/PI()*((2*INDEX(ele[e],I$41)-POWER(INDEX(ele[e],I$41),3)/4)*SIN(I$44/180*PI())+5/4*POWER(INDEX(ele[e],I$41),2)*SIN(2*I$44/180*PI())+13/12*POWER(INDEX(ele[e],I$41),3)*SIN(3*I$44/180*PI())) -> 59.8 | J45: =J$44 + 180/PI()*((2*INDEX(ele[e],J$41)-POWER(INDEX(ele[e],J$41),3)/4)*SIN(J$44/180*PI())+5/4*POWER(INDEX(ele[e],J$41),2)*SIN(2*J$44/180*PI())+13/12*POWER(INDEX(ele[e],J$41),3)*SIN(3*J$44/180*PI())) -> 70.2 | K45: =K$44 + 180/PI()*((2*INDEX(ele[e],K$41)-POWER(INDEX(ele[e],K$41),3)/4)*SIN(K$44/180*PI())+5/4*POWER(INDEX(ele[e],K$41),2)*SIN(2*K$44/180*PI())+13/12*POWER(INDEX(ele[e],K$41),3)*SIN(3*K$44/180*PI())) -> 80.6 | L45: =L$44 + 180/PI()*((2*INDEX(ele[e],L$41)-POWER(INDEX(ele[e],L$41),3)/4)*SIN(L$44/180*PI())+5/4*POWER(INDEX(ele[e],L$41),2)*SIN(2*L$44/180*PI())+13/12*POWER(INDEX(ele[e],L$41),3)*SIN(3*L$44/180*PI())) -> 90.9 | M45: =M$44 + 180/PI()*((2*INDEX(ele[e],M$41)-POWER(INDEX(ele[e],M$41),3)/4)*SIN(M$44/180*PI())+5/4*POWER(INDEX(ele[e],M$41),2)*SIN(2*M$44/180*PI())+13/12*POWER(INDEX(ele[e],M$41),3)*SIN(3*M$44/180*PI())) -> 101.2 | N45: =N$44 + 180/PI()*((2*INDEX(ele[e],N$41)-POWER(INDEX(ele[e],N$41),3)/4)*SIN(N$44/180*PI())+5/4*POWER(INDEX(ele[e],N$41),2)*SIN(2*N$44/180*PI())+13/12*POWER(INDEX(ele[e],N$41),3)*SIN(3*N$44/180*PI())) -> 111.4 | O45: =O$44 + 180/PI()*((2*INDEX(ele[e],O$41)-POWER(INDEX(ele[e],O$41),3)/4)*SIN(O$44/180*PI())+5/4*POWER(INDEX(ele[e],O$41),2)*SIN(2*O$44/180*PI())+13/12*POWER(INDEX(ele[e],O$41),3)*SIN(3*O$44/180*PI())) -> 121.5 | P45: =P$44 + 180/PI()*((2*INDEX(ele[e],P$41)-POWER(INDEX(ele[e],P$41),3)/4)*SIN(P$44/180*PI())+5/4*POWER(INDEX(ele[e],P$41),2)*SIN(2*P$44/180*PI())+13/12*POWER(INDEX(ele[e],P$41),3)*SIN(3*P$44/180*PI())) -> 131.6 | Q45: =Q$44 + 180/PI()*((2*INDEX(ele[e],Q$41)-POWER(INDEX(ele[e],Q$41),3)/4)*SIN(Q$44/180*PI())+5/4*POWER(INDEX(ele[e],Q$41),2)*SIN(2*Q$44/180*PI())+13/12*POWER(INDEX(ele[e],Q$41),3)*SIN(3*Q$44/180*PI())) -> 141.6 | R45: =R$44 + 180/PI()*((2*INDEX(ele[e],R$41)-POWER(INDEX(ele[e],R$41),3)/4)*SIN(R$44/180*PI())+5/4*POWER(INDEX(ele[e],R$41),2)*SIN(2*R$44/180*PI())+13/12*POWER(INDEX(ele[e],R$41),3)*SIN(3*R$44/180*PI())) -> 151.6 | S45: =S$44 + 180/PI()*((2*INDEX(ele[e],S$41)-POWER(INDEX(ele[e],S$41),3)/4)*SIN(S$44/180*PI())+5/4*POWER(INDEX(ele[e],S$41),2)*SIN(2*S$44/180*PI())+13/12*POWER(INDEX(ele[e],S$41),3)*SIN(3*S$44/180*PI())) -> 161.6 | T45: =T$44 + 180/PI()*((2*INDEX(ele[e],T$41)-POWER(INDEX(ele[e],T$41),3)/4)*SIN(T$44/180*PI())+5/4*POWER(INDEX(ele[e],T$41),2)*SIN(2*T$44/180*PI())+13/12*POWER(INDEX(ele[e],T$41),3)*SIN(3*T$44/180*PI())) -> 171.6 | U45: =U$44 + 180/PI()*((2*INDEX(ele[e],U$41)-POWER(INDEX(ele[e],U$41),3)/4)*SIN(U$44/180*PI())+5/4*POWER(INDEX(ele[e],U$41),2)*SIN(2*U$44/180*PI())+13/12*POWER(INDEX(ele[e],U$41),3)*SIN(3*U$44/180*PI())) -> 181.5 | V45: =V$44 + 180/PI()*((2*INDEX(ele[e],V$41)-POWER(INDEX(ele[e],V$41),3)/4)*SIN(V$44/180*PI())+5/4*POWER(INDEX(ele[e],V$41),2)*SIN(2*V$44/180*PI())+13/12*POWER(INDEX(ele[e],V$41),3)*SIN(3*V$44/180*PI())) -> 191.5 | W45: =W$44 + 180/PI()*((2*INDEX(ele[e],W$41)-POWER(INDEX(ele[e],W$41),3)/4)*SIN(W$44/180*PI())+5/4*POWER(INDEX(ele[e],W$41),2)*SIN(2*W$44/180*PI())+13/12*POWER(INDEX(ele[e],W$41),3)*SIN(3*W$44/180*PI())) -> 201.4 | X45: =X$44 + 180/PI()*((2*INDEX(ele[e],X$41)-POWER(INDEX(ele[e],X$41),3)/4)*SIN(X$44/180*PI())+5/4*POWER(INDEX(ele[e],X$41),2)*SIN(2*X$44/180*PI())+13/12*POWER(INDEX(ele[e],X$41),3)*SIN(3*X$44/180*PI())) -> 211.4 | Y45: =Y$44 + 180/PI()*((2*INDEX(ele[e],Y$41)-POWER(INDEX(ele[e],Y$41),3)/4)*SIN(Y$44/180*PI())+5/4*POWER(INDEX(ele[e],Y$41),2)*SIN(2*Y$44/180*PI())+13/12*POWER(INDEX(ele[e],Y$41),3)*SIN(3*Y$44/180*PI())) -> 221.4 | Z45: =Z$44 + 180/PI()*((2*INDEX(ele[e],Z$41)-POWER(INDEX(ele[e],Z$41),3)/4)*SIN(Z$44/180*PI())+5/4*POWER(INDEX(ele[e],Z$41),2)*SIN(2*Z$44/180*PI())+13/12*POWER(INDEX(ele[e],Z$41),3)*SIN(3*Z$44/180*PI())) -> 231.5 | AA45: =AA$44 + 180/PI()*((2*INDEX(ele[e],AA$41)-POWER(INDEX(ele[e],AA$41),3)/4)*SIN(AA$44/180*PI())+5/4*POWER(INDEX(ele[e],AA$41),2)*SIN(2*AA$44/180*PI())+13/12*POWER(INDEX(ele[e],AA$41),3)*SIN(3*AA$44/180*PI())) -> 241.6 | AB45: =AB$44 + 180/PI()*((2*INDEX(ele[e],AB$41)-POWER(INDEX(ele[e],AB$41),3)/4)*SIN(AB$44/180*PI())+5/4*POWER(INDEX(ele[e],AB$41),2)*SIN(2*AB$44/180*PI())+13/12*POWER(INDEX(ele[e],AB$41),3)*SIN(3*AB$44/180*PI())) -> 251.7 | AC45: =AC$44 + 180/PI()*((2*INDEX(ele[e],AC$41)-POWER(INDEX(ele[e],AC$41),3)/4)*SIN(AC$44/180*PI())+5/4*POWER(INDEX(ele[e],AC$41),2)*SIN(2*AC$44/180*PI())+13/12*POWER(INDEX(ele[e],AC$41),3)*SIN(3*AC$44/180*PI())) -> 262.0 | AD45: =AD$44 + 180/PI()*((2*INDEX(ele[e],AD$41)-POWER(INDEX(ele[e],AD$41),3)/4)*SIN(AD$44/180*PI())+5/4*POWER(INDEX(ele[e],AD$41),2)*SIN(2*AD$44/180*PI())+13/12*POWER(INDEX(ele[e],AD$41),3)*SIN(3*AD$44/180*PI())) -> 272.2 | AE45: =AE$44 + 180/PI()*((2*INDEX(ele[e],AE$41)-POWER(INDEX(ele[e],AE$41),3)/4)*SIN(AE$44/180*PI())+5/4*POWER(INDEX(ele[e],AE$41),2)*SIN(2*AE$44/180*PI())+13/12*POWER(INDEX(ele[e],AE$41),3)*SIN(3*AE$44/180*PI())) -> 282.6 | AF45: =AF$44 + 180/PI()*((2*INDEX(ele[e],AF$41)-POWER(INDEX(ele[e],AF$41),3)/4)*SIN(AF$44/180*PI())+5/4*POWER(INDEX(ele[e],AF$41),2)*SIN(2*AF$44/180*PI())+13/12*POWER(INDEX(ele[e],AF$41),3)*SIN(3*AF$44/180*PI())) -> 293.0 | AG45: =AG$44 + 180/PI()*((2*INDEX(ele[e],AG$41)-POWER(INDEX(ele[e],AG$41),3)/4)*SIN(AG$44/180*PI())+5/4*POWER(INDEX(ele[e],AG$41),2)*SIN(2*AG$44/180*PI())+13/12*POWER(INDEX(ele[e],AG$41),3)*SIN(3*AG$44/180*PI())) -> 303.4 | AH45: =AH$44 + 180/PI()*((2*INDEX(ele[e],AH$41)-POWER(INDEX(ele[e],AH$41),3)/4)*SIN(AH$44/180*PI())+5/4*POWER(INDEX(ele[e],AH$41),2)*SIN(2*AH$44/180*PI())+13/12*POWER(INDEX(ele[e],AH$41),3)*SIN(3*AH$44/180*PI())) -> 313.9 | AI45: =AI$44 + 180/PI()*((2*INDEX(ele[e],AI$41)-POWER(INDEX(ele[e],AI$41),3)/4)*SIN(AI$44/180*PI())+5/4*POWER(INDEX(ele[e],AI$41),2)*SIN(2*AI$44/180*PI())+13/12*POWER(INDEX(ele[e],AI$41),3)*SIN(3*AI$44/180*PI())) -> 324.5 | AJ45: =AJ$44 + 180/PI()*((2*INDEX(ele[e],AJ$41)-POWER(INDEX(ele[e],AJ$41),3)/4)*SIN(AJ$44/180*PI())+5/4*POWER(INDEX(ele[e],AJ$41),2)*SIN(2*AJ$44/180*PI())+13/12*POWER(INDEX(ele[e],AJ$41),3)*SIN(3*AJ$44/180*PI())) -> 335.1 | AK45: =AK$44 + 180/PI()*((2*INDEX(ele[e],AK$41)-POWER(INDEX(ele[e],AK$41),3)/4)*SIN(AK$44/180*PI())+5/4*POWER(INDEX(ele[e],AK$41),2)*SIN(2*AK$44/180*PI())+13/12*POWER(INDEX(ele[e],AK$41),3)*SIN(3*AK$44/180*PI())) -> 345.7 | AL45: =AL$44 + 180/PI()*((2*INDEX(ele[e],AL$41)-POWER(INDEX(ele[e],AL$41),3)/4)*SIN(AL$44/180*PI())+5/4*POWER(INDEX(ele[e],AL$41),2)*SIN(2*AL$44/180*PI())+13/12*POWER(INDEX(ele[e],AL$41),3)*SIN(3*AL$44/180*PI())) -> 356.3
A46: Radius vector of the object | B46: r | C46: =INDEX(ele[a],C$41) * (1 - POWER(INDEX(ele[e],C$41),2)) / (1 + INDEX(ele[e],C$41) * COS(C45/180*PI())) -> 0.98 | D46: =INDEX(ele[a],D$41) * (1 - POWER(INDEX(ele[e],D$41),2)) / (1 + INDEX(ele[e],D$41) * COS(D45/180*PI())) -> 0.98 | E46: =INDEX(ele[a],E$41) * (1 - POWER(INDEX(ele[e],E$41),2)) / (1 + INDEX(ele[e],E$41) * COS(E45/180*PI())) -> 0.98 | F46: =INDEX(ele[a],F$41) * (1 - POWER(INDEX(ele[e],F$41),2)) / (1 + INDEX(ele[e],F$41) * COS(F45/180*PI())) -> 0.99 | G46: =INDEX(ele[a],G$41) * (1 - POWER(INDEX(ele[e],G$41),2)) / (1 + INDEX(ele[e],G$41) * COS(G45/180*PI())) -> 0.99 | H46: =INDEX(ele[a],H$41) * (1 - POWER(INDEX(ele[e],H$41),2)) / (1 + INDEX(ele[e],H$41) * COS(H45/180*PI())) -> 0.99 | I46: =INDEX(ele[a],I$41) * (1 - POWER(INDEX(ele[e],I$41),2)) / (1 + INDEX(ele[e],I$41) * COS(I45/180*PI())) -> 0.99 | J46: =INDEX(ele[a],J$41) * (1 - POWER(INDEX(ele[e],J$41),2)) / (1 + INDEX(ele[e],J$41) * COS(J45/180*PI())) -> 0.99 | K46: =INDEX(ele[a],K$41) * (1 - POWER(INDEX(ele[e],K$41),2)) / (1 + INDEX(ele[e],K$41) * COS(K45/180*PI())) -> 1.00 | L46: =INDEX(ele[a],L$41) * (1 - POWER(INDEX(ele[e],L$41),2)) / (1 + INDEX(ele[e],L$41) * COS(L45/180*PI())) -> 1.00 | M46: =INDEX(ele[a],M$41) * (1 - POWER(INDEX(ele[e],M$41),2)) / (1 + INDEX(ele[e],M$41) * COS(M45/180*PI())) -> 1.00 | N46: =INDEX(ele[a],N$41) * (1 - POWER(INDEX(ele[e],N$41),2)) / (1 + INDEX(ele[e],N$41) * COS(N45/180*PI())) -> 1.01 | O46: =INDEX(ele[a],O$41) * (1 - POWER(INDEX(ele[e],O$41),2)) / (1 + INDEX(ele[e],O$41) * COS(O45/180*PI())) -> 1.01 | P46: =INDEX(ele[a],P$41) * (1 - POWER(INDEX(ele[e],P$41),2)) / (1 + INDEX(ele[e],P$41) * COS(P45/180*PI())) -> 1.01 | Q46: =INDEX(ele[a],Q$41) * (1 - POWER(INDEX(ele[e],Q$41),2)) / (1 + INDEX(ele[e],Q$41) * COS(Q45/180*PI())) -> 1.01 | R46: =INDEX(ele[a],R$41) * (1 - POWER(INDEX(ele[e],R$41),2)) / (1 + INDEX(ele[e],R$41) * COS(R45/180*PI())) -> 1.01 | S46: =INDEX(ele[a],S$41) * (1 - POWER(INDEX(ele[e],S$41),2)) / (1 + INDEX(ele[e],S$41) * COS(S45/180*PI())) -> 1.02 | T46: =INDEX(ele[a],T$41) * (1 - POWER(INDEX(ele[e],T$41),2)) / (1 + INDEX(ele[e],T$41) * COS(T45/180*PI())) -> 1.02 | U46: =INDEX(ele[a],U$41) * (1 - POWER(INDEX(ele[e],U$41),2)) / (1 + INDEX(ele[e],U$41) * COS(U45/180*PI())) -> 1.02 | V46: =INDEX(ele[a],V$41) * (1 - POWER(INDEX(ele[e],V$41),2)) / (1 + INDEX(ele[e],V$41) * COS(V45/180*PI())) -> 1.02 | W46: =INDEX(ele[a],W$41) * (1 - POWER(INDEX(ele[e],W$41),2)) / (1 + INDEX(ele[e],W$41) * COS(W45/180*PI())) -> 1.02 | X46: =INDEX(ele[a],X$41) * (1 - POWER(INDEX(ele[e],X$41),2)) / (1 + INDEX(ele[e],X$41) * COS(X45/180*PI())) -> 1.01 | Y46: =INDEX(ele[a],Y$41) * (1 - POWER(INDEX(ele[e],Y$41),2)) / (1 + INDEX(ele[e],Y$41) * COS(Y45/180*PI())) -> 1.01 | Z46: =INDEX(ele[a],Z$41) * (1 - POWER(INDEX(ele[e],Z$41),2)) / (1 + INDEX(ele[e],Z$41) * COS(Z45/180*PI())) -> 1.01 | AA46: =INDEX(ele[a],AA$41) * (1 - POWER(INDEX(ele[e],AA$41),2)) / (1 + INDEX(ele[e],AA$41) * COS(AA45/180*PI())) -> 1.01 | AB46: =INDEX(ele[a],AB$41) * (1 - POWER(INDEX(ele[e],AB$41),2)) / (1 + INDEX(ele[e],AB$41) * COS(AB45/180*PI())) -> 1.00 | AC46: =INDEX(ele[a],AC$41) * (1 - POWER(INDEX(ele[e],AC$41),2)) / (1 + INDEX(ele[e],AC$41) * COS(AC45/180*PI())) -> 1.00 | AD46: =INDEX(ele[a],AD$41) * (1 - POWER(INDEX(ele[e],AD$41),2)) / (1 + INDEX(ele[e],AD$41) * COS(AD45/180*PI())) -> 1.00 | AE46: =INDEX(ele[a],AE$41) * (1 - POWER(INDEX(ele[e],AE$41),2)) / (1 + INDEX(ele[e],AE$41) * COS(AE45/180*PI())) -> 1.00 | AF46: =INDEX(ele[a],AF$41) * (1 - POWER(INDEX(ele[e],AF$41),2)) / (1 + INDEX(ele[e],AF$41) * COS(AF45/180*PI())) -> 0.99 | AG46: =INDEX(ele[a],AG$41) * (1 - POWER(INDEX(ele[e],AG$41),2)) / (1 + INDEX(ele[e],AG$41) * COS(AG45/180*PI())) -> 0.99 | AH46: =INDEX(ele[a],AH$41) * (1 - POWER(INDEX(ele[e],AH$41),2)) / (1 + INDEX(ele[e],AH$41) * COS(AH45/180*PI())) -> 0.99 | AI46: =INDEX(ele[a],AI$41) * (1 - POWER(INDEX(ele[e],AI$41),2)) / (1 + INDEX(ele[e],AI$41) * COS(AI45/180*PI())) -> 0.99 | AJ46: =INDEX(ele[a],AJ$41) * (1 - POWER(INDEX(ele[e],AJ$41),2)) / (1 + INDEX(ele[e],AJ$41) * COS(AJ45/180*PI())) -> 0.98 | AK46: =INDEX(ele[a],AK$41) * (1 - POWER(INDEX(ele[e],AK$41),2)) / (1 + INDEX(ele[e],AK$41) * COS(AK45/180*PI())) -> 0.98 | AL46: =INDEX(ele[a],AL$41) * (1 - POWER(INDEX(ele[e],AL$41),2)) / (1 + INDEX(ele[e],AL$41) * COS(AL45/180*PI())) -> 0.98
A47: Angle of planet from ascending node (v+p-o) | B47: vpo | C47: =MOD(C$45+INDEX(ele[p],C$41)-INDEX(ele[o],C$41),360) -> 110.0 | D47: =MOD(D$45+INDEX(ele[p],D$41)-INDEX(ele[o],D$41),360) -> 120.6 | E47: =MOD(E$45+INDEX(ele[p],E$41)-INDEX(ele[o],E$41),360) -> 131.2 | F47: =MOD(F$45+INDEX(ele[p],F$41)-INDEX(ele[o],F$41),360) -> 141.8 | G47: =MOD(G$45+INDEX(ele[p],G$41)-INDEX(ele[o],G$41),360) -> 152.4 | H47: =MOD(H$45+INDEX(ele[p],H$41)-INDEX(ele[o],H$41),360) -> 163.0 | I47: =MOD(I$45+INDEX(ele[p],I$41)-INDEX(ele[o],I$41),360) -> 173.4 | J47: =MOD(J$45+INDEX(ele[p],J$41)-INDEX(ele[o],J$41),360) -> 183.9 | K47: =MOD(K$45+INDEX(ele[p],K$41)-INDEX(ele[o],K$41),360) -> 194.3 | L47: =MOD(L$45+INDEX(ele[p],L$41)-INDEX(ele[o],L$41),360) -> 204.6 | M47: =MOD(M$45+INDEX(ele[p],M$41)-INDEX(ele[o],M$41),360) -> 214.8 | N47: =MOD(N$45+INDEX(ele[p],N$41)-INDEX(ele[o],N$41),360) -> 225.0 | O47: =MOD(O$45+INDEX(ele[p],O$41)-INDEX(ele[o],O$41),360) -> 235.2 | P47: =MOD(P$45+INDEX(ele[p],P$41)-INDEX(ele[o],P$41),360) -> 245.2 | Q47: =MOD(Q$45+INDEX(ele[p],Q$41)-INDEX(ele[o],Q$41),360) -> 255.3 | R47: =MOD(R$45+INDEX(ele[p],R$41)-INDEX(ele[o],R$41),360) -> 265.3 | S47: =MOD(S$45+INDEX(ele[p],S$41)-INDEX(ele[o],S$41),360) -> 275.3 | T47: =MOD(T$45+INDEX(ele[p],T$41)-INDEX(ele[o],T$41),360) -> 285.2 | U47: =MOD(U$45+INDEX(ele[p],U$41)-INDEX(ele[o],U$41),360) -> 295.2 | V47: =MOD(V$45+INDEX(ele[p],V$41)-INDEX(ele[o],V$41),360) -> 305.1 | W47: =MOD(W$45+INDEX(ele[p],W$41)-INDEX(ele[o],W$41),360) -> 315.1 | X47: =MOD(X$45+INDEX(ele[p],X$41)-INDEX(ele[o],X$41),360) -> 325.1 | Y47: =MOD(Y$45+INDEX(ele[p],Y$41)-INDEX(ele[o],Y$41),360) -> 335.1 | Z47: =MOD(Z$45+INDEX(ele[p],Z$41)-INDEX(ele[o],Z$41),360) -> 345.1 | AA47: =MOD(AA$45+INDEX(ele[p],AA$41)-INDEX(ele[o],AA$41),360) -> 355.2 | AB47: =MOD(AB$45+INDEX(ele[p],AB$41)-INDEX(ele[o],AB$41),360) -> 5.4 | AC47: =MOD(AC$45+INDEX(ele[p],AC$41)-INDEX(ele[o],AC$41),360) -> 15.6 | AD47: =MOD(AD$45+INDEX(ele[p],AD$41)-INDEX(ele[o],AD$41),360) -> 25.9 | AE47: =MOD(AE$45+INDEX(ele[p],AE$41)-INDEX(ele[o],AE$41),360) -> 36.2 | AF47: =MOD(AF$45+INDEX(ele[p],AF$41)-INDEX(ele[o],AF$41),360) -> 46.6 | AG47: =MOD(AG$45+INDEX(ele[p],AG$41)-INDEX(ele[o],AG$41),360) -> 57.1 | AH47: =MOD(AH$45+INDEX(ele[p],AH$41)-INDEX(ele[o],AH$41),360) -> 67.6 | AI47: =MOD(AI$45+INDEX(ele[p],AI$41)-INDEX(ele[o],AI$41),360) -> 78.1 | AJ47: =MOD(AJ$45+INDEX(ele[p],AJ$41)-INDEX(ele[o],AJ$41),360) -> 88.7 | AK47: =MOD(AK$45+INDEX(ele[p],AK$41)-INDEX(ele[o],AK$41),360) -> 99.3 | AL47: =MOD(AL$45+INDEX(ele[p],AL$41)-INDEX(ele[o],AL$41),360) -> 110.0
A49: Heliocentric coordinates | B49: x | C49: =C$46 * (COS(INDEX(ele[o],C$41)/180*PI()) * COS(C$47/180*PI()) - SIN(INDEX(ele[o],C$41)/180*PI()) * SIN(C$47/180*PI()) * COS(INDEX(ele[i],C$41)/180*PI())) -> -0.156720 | D49: =D$46 * (COS(INDEX(ele[o],D$41)/180*PI()) * COS(D$47/180*PI()) - SIN(INDEX(ele[o],D$41)/180*PI()) * SIN(D$47/180*PI()) * COS(INDEX(ele[i],D$41)/180*PI())) -> -0.333223 | E49: =E$46 * (COS(INDEX(ele[o],E$41)/180*PI()) * COS(E$47/180*PI()) - SIN(INDEX(ele[o],E$41)/180*PI()) * SIN(E$47/180*PI()) * COS(INDEX(ele[i],E$41)/180*PI())) -> -0.498471 | F49: =F$46 * (COS(INDEX(ele[o],F$41)/180*PI()) * COS(F$47/180*PI()) - SIN(INDEX(ele[o],F$41)/180*PI()) * SIN(F$47/180*PI()) * COS(INDEX(ele[i],F$41)/180*PI())) -> -0.646914 | G49: =G$46 * (COS(INDEX(ele[o],G$41)/180*PI()) * COS(G$47/180*PI()) - SIN(INDEX(ele[o],G$41)/180*PI()) * SIN(G$47/180*PI()) * COS(INDEX(ele[i],G$41)/180*PI())) -> -0.773627 | H49: =H$46 * (COS(INDEX(ele[o],H$41)/180*PI()) * COS(H$47/180*PI()) - SIN(INDEX(ele[o],H$41)/180*PI()) * SIN(H$47/180*PI()) * COS(INDEX(ele[i],H$41)/180*PI())) -> -0.874480 | I49: =I$46 * (COS(INDEX(ele[o],I$41)/180*PI()) * COS(I$47/180*PI()) - SIN(INDEX(ele[o],I$41)/180*PI()) * SIN(I$47/180*PI()) * COS(INDEX(ele[i],I$41)/180*PI())) -> -0.946286 | J49: =J$46 * (COS(INDEX(ele[o],J$41)/180*PI()) * COS(J$47/180*PI()) - SIN(INDEX(ele[o],J$41)/180*PI()) * SIN(J$47/180*PI()) * COS(INDEX(ele[i],J$41)/180*PI())) -> -0.986887 | K49: =K$46 * (COS(INDEX(ele[o],K$41)/180*PI()) * COS(K$47/180*PI()) - SIN(INDEX(ele[o],K$41)/180*PI()) * SIN(K$47/180*PI()) * COS(INDEX(ele[i],K$41)/180*PI())) -> -0.995209 | L49: =L$46 * (COS(INDEX(ele[o],L$41)/180*PI()) * COS(L$47/180*PI()) - SIN(INDEX(ele[o],L$41)/180*PI()) * SIN(L$47/180*PI()) * COS(INDEX(ele[i],L$41)/180*PI())) -> -0.971259 | M49: =M$46 * (COS(INDEX(ele[o],M$41)/180*PI()) * COS(M$47/180*PI()) - SIN(INDEX(ele[o],M$41)/180*PI()) * SIN(M$47/180*PI()) * COS(INDEX(ele[i],M$41)/180*PI())) -> -0.916091 | N49: =N$46 * (COS(INDEX(ele[o],N$41)/180*PI()) * COS(N$47/180*PI()) - SIN(INDEX(ele[o],N$41)/180*PI()) * SIN(N$47/180*PI()) * COS(INDEX(ele[i],N$41)/180*PI())) -> -0.831738 | O49: =O$46 * (COS(INDEX(ele[o],O$41)/180*PI()) * COS(O$47/180*PI()) - SIN(INDEX(ele[o],O$41)/180*PI()) * SIN(O$47/180*PI()) * COS(INDEX(ele[i],O$41)/180*PI())) -> -0.721111 | P49: =P$46 * (COS(INDEX(ele[o],P$41)/180*PI()) * COS(P$47/180*PI()) - SIN(INDEX(ele[o],P$41)/180*PI()) * SIN(P$47/180*PI()) * COS(INDEX(ele[i],P$41)/180*PI())) -> -0.587883 | Q49: =Q$46 * (COS(INDEX(ele[o],Q$41)/180*PI()) * COS(Q$47/180*PI()) - SIN(INDEX(ele[o],Q$41)/180*PI()) * SIN(Q$47/180*PI()) * COS(INDEX(ele[i],Q$41)/180*PI())) -> -0.436359 | R49: =R$46 * (COS(INDEX(ele[o],R$41)/180*PI()) * COS(R$47/180*PI()) - SIN(INDEX(ele[o],R$41)/180*PI()) * SIN(R$47/180*PI()) * COS(INDEX(ele[i],R$41)/180*PI())) -> -0.271337 | S49: =S$46 * (COS(INDEX(ele[o],S$41)/180*PI()) * COS(S$47/180*PI()) - SIN(INDEX(ele[o],S$41)/180*PI()) * SIN(S$47/180*PI()) * COS(INDEX(ele[i],S$41)/180*PI())) -> -0.097961 | T49: =T$46 * (COS(INDEX(ele[o],T$41)/180*PI()) * COS(T$47/180*PI()) - SIN(INDEX(ele[o],T$41)/180*PI()) * SIN(T$47/180*PI()) * COS(INDEX(ele[i],T$41)/180*PI())) -> 0.078422 | U49: =U$46 * (COS(INDEX(ele[o],U$41)/180*PI()) * COS(U$47/180*PI()) - SIN(INDEX(ele[o],U$41)/180*PI()) * SIN(U$47/180*PI()) * COS(INDEX(ele[i],U$41)/180*PI())) -> 0.252406 | V49: =V$46 * (COS(INDEX(ele[o],V$41)/180*PI()) * COS(V$47/180*PI()) - SIN(INDEX(ele[o],V$41)/180*PI()) * SIN(V$47/180*PI()) * COS(INDEX(ele[i],V$41)/180*PI())) -> 0.418669 | W49: =W$46 * (COS(INDEX(ele[o],W$41)/180*PI()) * COS(W$47/180*PI()) - SIN(INDEX(ele[o],W$41)/180*PI()) * SIN(W$47/180*PI()) * COS(INDEX(ele[i],W$41)/180*PI())) -> 0.572111 | X49: =X$46 * (COS(INDEX(ele[o],X$41)/180*PI()) * COS(X$47/180*PI()) - SIN(INDEX(ele[o],X$41)/180*PI()) * SIN(X$47/180*PI()) * COS(INDEX(ele[i],X$41)/180*PI())) -> 0.707989 | Y49: =Y$46 * (COS(INDEX(ele[o],Y$41)/180*PI()) * COS(Y$47/180*PI()) - SIN(INDEX(ele[o],Y$41)/180*PI()) * SIN(Y$47/180*PI()) * COS(INDEX(ele[i],Y$41)/180*PI())) -> 0.822047 | Z49: =Z$46 * (COS(INDEX(ele[o],Z$41)/180*PI()) * COS(Z$47/180*PI()) - SIN(INDEX(ele[o],Z$41)/180*PI()) * SIN(Z$47/180*PI()) * COS(INDEX(ele[i],Z$41)/180*PI())) -> 0.910637 | AA49: =AA$46 * (COS(INDEX(ele[o],AA$41)/180*PI()) * COS(AA$47/180*PI()) - SIN(INDEX(ele[o],AA$41)/180*PI()) * SIN(AA$47/180*PI()) * COS(INDEX(ele[i],AA$41)/180*PI())) -> 0.970833 | AB49: =AB$46 * (COS(INDEX(ele[o],AB$41)/180*PI()) * COS(AB$47/180*PI()) - SIN(INDEX(ele[o],AB$41)/180*PI()) * SIN(AB$47/180*PI()) * COS(INDEX(ele[i],AB$41)/180*PI())) -> 1.000534 | AC49: =AC$46 * (COS(INDEX(ele[o],AC$41)/180*PI()) * COS(AC$47/180*PI()) - SIN(INDEX(ele[o],AC$41)/180*PI()) * SIN(AC$47/180*PI()) * COS(INDEX(ele[i],AC$41)/180*PI())) -> 0.998553 | AD49: =AD$46 * (COS(INDEX(ele[o],AD$41)/180*PI()) * COS(AD$47/180*PI()) - SIN(INDEX(ele[o],AD$41)/180*PI()) * SIN(AD$47/180*PI()) * COS(INDEX(ele[i],AD$41)/180*PI())) -> 0.964677 | AE49: =AE$46 * (COS(INDEX(ele[o],AE$41)/180*PI()) * COS(AE$47/180*PI()) - SIN(INDEX(ele[o],AE$41)/180*PI()) * SIN(AE$47/180*PI()) * COS(INDEX(ele[i],AE$41)/180*PI())) -> 0.899715 | AF49: =AF$46 * (COS(INDEX(ele[o],AF$41)/180*PI()) * COS(AF$47/180*PI()) - SIN(INDEX(ele[o],AF$41)/180*PI()) * SIN(AF$47/180*PI()) * COS(INDEX(ele[i],AF$41)/180*PI())) -> 0.805503 | AG49: =AG$46 * (COS(INDEX(ele[o],AG$41)/180*PI()) * COS(AG$47/180*PI()) - SIN(INDEX(ele[o],AG$41)/180*PI()) * SIN(AG$47/180*PI()) * COS(INDEX(ele[i],AG$41)/180*PI())) -> 0.684880 | AH49: =AH$46 * (COS(INDEX(ele[o],AH$41)/180*PI()) * COS(AH$47/180*PI()) - SIN(INDEX(ele[o],AH$41)/180*PI()) * SIN(AH$47/180*PI()) * COS(INDEX(ele[i],AH$41)/180*PI())) -> 0.541624 | AI49: =AI$46 * (COS(INDEX(ele[o],AI$41)/180*PI()) * COS(AI$47/180*PI()) - SIN(INDEX(ele[o],AI$41)/180*PI()) * SIN(AI$47/180*PI()) * COS(INDEX(ele[i],AI$41)/180*PI())) -> 0.380343 | AJ49: =AJ$46 * (COS(INDEX(ele[o],AJ$41)/180*PI()) * COS(AJ$47/180*PI()) - SIN(INDEX(ele[o],AJ$41)/180*PI()) * SIN(AJ$47/180*PI()) * COS(INDEX(ele[i],AJ$41)/180*PI())) -> 0.206331 | AK49: =AK$46 * (COS(INDEX(ele[o],AK$41)/180*PI()) * COS(AK$47/180*PI()) - SIN(INDEX(ele[o],AK$41)/180*PI()) * SIN(AK$47/180*PI()) * COS(INDEX(ele[i],AK$41)/180*PI())) -> 0.025382 | AL49: =AL$46 * (COS(INDEX(ele[o],AL$41)/180*PI()) * COS(AL$47/180*PI()) - SIN(INDEX(ele[o],AL$41)/180*PI()) * SIN(AL$47/180*PI()) * COS(INDEX(ele[i],AL$41)/180*PI())) -> -0.156421
B50: y | C50: =C$46 * (SIN(INDEX(ele[o],C$41)/180*PI()) * COS(C$47/180*PI()) + COS(INDEX(ele[o],C$41)/180*PI()) * SIN(C$47/180*PI()) * COS(INDEX(ele[i],C$41)/180*PI())) -> 0.970788 | D50: =D$46 * (SIN(INDEX(ele[o],D$41)/180*PI()) * COS(D$47/180*PI()) + COS(INDEX(ele[o],D$41)/180*PI()) * SIN(D$47/180*PI()) * COS(INDEX(ele[i],D$41)/180*PI())) -> 0.925268 | E50: =E$46 * (SIN(INDEX(ele[o],E$41)/180*PI()) * COS(E$47/180*PI()) + COS(INDEX(ele[o],E$41)/180*PI()) * SIN(E$47/180*PI()) * COS(INDEX(ele[i],E$41)/180*PI())) -> 0.848490 | F50: =F$46 * (SIN(INDEX(ele[o],F$41)/180*PI()) * COS(F$47/180*PI()) + COS(INDEX(ele[o],F$41)/180*PI()) * SIN(F$47/180*PI()) * COS(INDEX(ele[i],F$41)/180*PI())) -> 0.743104 | G50: =G$46 * (SIN(INDEX(ele[o],G$41)/180*PI()) * COS(G$47/180*PI()) + COS(INDEX(ele[o],G$41)/180*PI()) * SIN(G$47/180*PI()) * COS(INDEX(ele[i],G$41)/180*PI())) -> 0.612748 | H50: =H$46 * (SIN(INDEX(ele[o],H$41)/180*PI()) * COS(H$47/180*PI()) + COS(INDEX(ele[o],H$41)/180*PI()) * SIN(H$47/180*PI()) * COS(INDEX(ele[i],H$41)/180*PI())) -> 0.461904 | I50: =I$46 * (SIN(INDEX(ele[o],I$41)/180*PI()) * COS(I$47/180*PI()) + COS(INDEX(ele[o],I$41)/180*PI()) * SIN(I$47/180*PI()) * COS(INDEX(ele[i],I$41)/180*PI())) -> 0.295709 | J50: =J$46 * (SIN(INDEX(ele[o],J$41)/180*PI()) * COS(J$47/180*PI()) + COS(INDEX(ele[o],J$41)/180*PI()) * SIN(J$47/180*PI()) * COS(INDEX(ele[i],J$41)/180*PI())) -> 0.119754 | K50: =K$46 * (SIN(INDEX(ele[o],K$41)/180*PI()) * COS(K$47/180*PI()) + COS(INDEX(ele[o],K$41)/180*PI()) * SIN(K$47/180*PI()) * COS(INDEX(ele[i],K$41)/180*PI())) -> -0.060126 | L50: =L$46 * (SIN(INDEX(ele[o],L$41)/180*PI()) * COS(L$47/180*PI()) + COS(INDEX(ele[o],L$41)/180*PI()) * SIN(L$47/180*PI()) * COS(INDEX(ele[i],L$41)/180*PI())) -> -0.238065 | M50: =M$46 * (SIN(INDEX(ele[o],M$41)/180*PI()) * COS(M$47/180*PI()) + COS(INDEX(ele[o],M$41)/180*PI()) * SIN(M$47/180*PI()) * COS(INDEX(ele[i],M$41)/180*PI())) -> -0.408360 | N50: =N$46 * (SIN(INDEX(ele[o],N$41)/180*PI()) * COS(N$47/180*PI()) + COS(INDEX(ele[o],N$41)/180*PI()) * SIN(N$47/180*PI()) * COS(INDEX(ele[i],N$41)/180*PI())) -> -0.565656 | O50: =O$46 * (SIN(INDEX(ele[o],O$41)/180*PI()) * COS(O$47/180*PI()) + COS(INDEX(ele[o],O$41)/180*PI()) * SIN(O$47/180*PI()) * COS(INDEX(ele[i],O$41)/180*PI())) -> -0.705092 | P50: =P$46 * (SIN(INDEX(ele[o],P$41)/180*PI()) * COS(P$47/180*PI()) + COS(INDEX(ele[o],P$41)/180*PI()) * SIN(P$47/180*PI()) * COS(INDEX(ele[i],P$41)/180*PI())) -> -0.822439 | Q50: =Q$46 * (SIN(INDEX(ele[o],Q$41)/180*PI()) * COS(Q$47/180*PI()) + COS(INDEX(ele[o],Q$41)/180*PI()) * SIN(Q$47/180*PI()) * COS(INDEX(ele[i],Q$41)/180*PI())) -> -0.914202 | R50: =R$46 * (SIN(INDEX(ele[o],R$41)/180*PI()) * COS(R$47/180*PI()) + COS(INDEX(ele[o],R$41)/180*PI()) * SIN(R$47/180*PI()) * COS(INDEX(ele[i],R$41)/180*PI())) -> -0.977696 | S50: =S$46 * (SIN(INDEX(ele[o],S$41)/180*PI()) * COS(S$47/180*PI()) + COS(INDEX(ele[o],S$41)/180*PI()) * SIN(S$47/180*PI()) * COS(INDEX(ele[i],S$41)/180*PI())) -> -1.011102 | T50: =T$46 * (SIN(INDEX(ele[o],T$41)/180*PI()) * COS(T$47/180*PI()) + COS(INDEX(ele[o],T$41)/180*PI()) * SIN(T$47/180*PI()) * COS(INDEX(ele[i],T$41)/180*PI())) -> -1.013501 | U50: =U$46 * (SIN(INDEX(ele[o],U$41)/180*PI()) * COS(U$47/180*PI()) + COS(INDEX(ele[o],U$41)/180*PI()) * SIN(U$47/180*PI()) * COS(INDEX(ele[i],U$41)/180*PI())) -> -0.984882 | V50: =V$46 * (SIN(INDEX(ele[o],V$41)/180*PI()) * COS(V$47/180*PI()) + COS(INDEX(ele[o],V$41)/180*PI()) * SIN(V$47/180*PI()) * COS(INDEX(ele[i],V$41)/180*PI())) -> -0.926136 | W50: =W$46 * (SIN(INDEX(ele[o],W$41)/180*PI()) * COS(W$47/180*PI()) + COS(INDEX(ele[o],W$41)/180*PI()) * SIN(W$47/180*PI()) * COS(INDEX(ele[i],W$41)/180*PI())) -> -0.839034 | X50: =X$46 * (SIN(INDEX(ele[o],X$41)/180*PI()) * COS(X$47/180*PI()) + COS(INDEX(ele[o],X$41)/180*PI()) * SIN(X$47/180*PI()) * COS(INDEX(ele[i],X$41)/180*PI())) -> -0.726179 | Y50: =Y$46 * (SIN(INDEX(ele[o],Y$41)/180*PI()) * COS(Y$47/180*PI()) + COS(INDEX(ele[o],Y$41)/180*PI()) * SIN(Y$47/180*PI()) * COS(INDEX(ele[i],Y$41)/180*PI())) -> -0.590948 | Z50: =Z$46 * (SIN(INDEX(ele[o],Z$41)/180*PI()) * COS(Z$47/180*PI()) + COS(INDEX(ele[o],Z$41)/180*PI()) * SIN(Z$47/180*PI()) * COS(INDEX(ele[i],Z$41)/180*PI())) -> -0.437416 | AA50: =AA$46 * (SIN(INDEX(ele[o],AA$41)/180*PI()) * COS(AA$47/180*PI()) + COS(INDEX(ele[o],AA$41)/180*PI()) * SIN(AA$47/180*PI()) * COS(INDEX(ele[i],AA$41)/180*PI())) -> -0.270252 | AB50: =AB$46 * (SIN(INDEX(ele[o],AB$41)/180*PI()) * COS(AB$47/180*PI()) + COS(INDEX(ele[o],AB$41)/180*PI()) * SIN(AB$47/180*PI()) * COS(INDEX(ele[i],AB$41)/180*PI())) -> -0.094607 | AC50: =AC$46 * (SIN(INDEX(ele[o],AC$41)/180*PI()) * COS(AC$47/180*PI()) + COS(INDEX(ele[o],AC$41)/180*PI()) * SIN(AC$47/180*PI()) * COS(INDEX(ele[i],AC$41)/180*PI())) -> 0.084026 | AD50: =AD$46 * (SIN(INDEX(ele[o],AD$41)/180*PI()) * COS(AD$47/180*PI()) + COS(INDEX(ele[o],AD$41)/180*PI()) * SIN(AD$47/180*PI()) * COS(INDEX(ele[i],AD$41)/180*PI())) -> 0.259967 | AE50: =AE$46 * (SIN(INDEX(ele[o],AE$41)/180*PI()) * COS(AE$47/180*PI()) + COS(INDEX(ele[o],AE$41)/180*PI()) * SIN(AE$47/180*PI()) * COS(INDEX(ele[i],AE$41)/180*PI())) -> 0.427521 | AF50: =AF$46 * (SIN(INDEX(ele[o],AF$41)/180*PI()) * COS(AF$47/180*PI()) + COS(INDEX(ele[o],AF$41)/180*PI()) * SIN(AF$47/180*PI()) * COS(INDEX(ele[i],AF$41)/180*PI())) -> 0.581167 | AG50: =AG$46 * (SIN(INDEX(ele[o],AG$41)/180*PI()) * COS(AG$47/180*PI()) + COS(INDEX(ele[o],AG$41)/180*PI()) * SIN(AG$47/180*PI()) * COS(INDEX(ele[i],AG$41)/180*PI())) -> 0.715747 | AH50: =AH$46 * (SIN(INDEX(ele[o],AH$41)/180*PI()) * COS(AH$47/180*PI()) + COS(INDEX(ele[o],AH$41)/180*PI()) * SIN(AH$47/180*PI()) * COS(INDEX(ele[i],AH$41)/180*PI())) -> 0.826664 | AI50: =AI$46 * (SIN(INDEX(ele[o],AI$41)/180*PI()) * COS(AI$47/180*PI()) + COS(INDEX(ele[o],AI$41)/180*PI()) * SIN(AI$47/180*PI()) * COS(INDEX(ele[i],AI$41)/180*PI())) -> 0.910058 | AJ50: =AJ$46 * (SIN(INDEX(ele[o],AJ$41)/180*PI()) * COS(AJ$47/180*PI()) + COS(INDEX(ele[o],AJ$41)/180*PI()) * SIN(AJ$47/180*PI()) * COS(INDEX(ele[i],AJ$41)/180*PI())) -> 0.962975 | AK50: =AK$46 * (SIN(INDEX(ele[o],AK$41)/180*PI()) * COS(AK$47/180*PI()) + COS(INDEX(ele[o],AK$41)/180*PI()) * SIN(AK$47/180*PI()) * COS(INDEX(ele[i],AK$41)/180*PI())) -> 0.983498 | AL50: =AL$46 * (SIN(INDEX(ele[o],AL$41)/180*PI()) * COS(AL$47/180*PI()) + COS(INDEX(ele[o],AL$41)/180*PI()) * SIN(AL$47/180*PI()) * COS(INDEX(ele[i],AL$41)/180*PI())) -> 0.970836
B51: z | C51: =C$46 * (SIN(C$47/180*PI()) * SIN(INDEX(ele[i],C$41)/180*PI())) -> 0.000007 | D51: =D$46 * (SIN(D$47/180*PI()) * SIN(INDEX(ele[i],D$41)/180*PI())) -> 0.000006 | E51: =E$46 * (SIN(E$47/180*PI()) * SIN(INDEX(ele[i],E$41)/180*PI())) -> 0.000005 | F51: =F$46 * (SIN(F$47/180*PI()) * SIN(INDEX(ele[i],F$41)/180*PI())) -> 0.000004 | G51: =G$46 * (SIN(G$47/180*PI()) * SIN(INDEX(ele[i],G$41)/180*PI())) -> 0.000003 | H51: =H$46 * (SIN(H$47/180*PI()) * SIN(INDEX(ele[i],H$41)/180*PI())) -> 0.000002 | I51: =I$46 * (SIN(I$47/180*PI()) * SIN(INDEX(ele[i],I$41)/180*PI())) -> 0.000001 | J51: =J$46 * (SIN(J$47/180*PI()) * SIN(INDEX(ele[i],J$41)/180*PI())) -> -0.000000 | K51: =K$46 * (SIN(K$47/180*PI()) * SIN(INDEX(ele[i],K$41)/180*PI())) -> -0.000002 | L51: =L$46 * (SIN(L$47/180*PI()) * SIN(INDEX(ele[i],L$41)/180*PI())) -> -0.000003 | M51: =M$46 * (SIN(M$47/180*PI()) * SIN(INDEX(ele[i],M$41)/180*PI())) -> -0.000004 | N51: =N$46 * (SIN(N$47/180*PI()) * SIN(INDEX(ele[i],N$41)/180*PI())) -> -0.000005 | O51: =O$46 * (SIN(O$47/180*PI()) * SIN(INDEX(ele[i],O$41)/180*PI())) -> -0.000006 | P51: =P$46 * (SIN(P$47/180*PI()) * SIN(INDEX(ele[i],P$41)/180*PI())) -> -0.000007 | Q51: =Q$46 * (SIN(Q$47/180*PI()) * SIN(INDEX(ele[i],Q$41)/180*PI())) -> -0.000007 | R51: =R$46 * (SIN(R$47/180*PI()) * SIN(INDEX(ele[i],R$41)/180*PI())) -> -0.000007 | S51: =S$46 * (SIN(S$47/180*PI()) * SIN(INDEX(ele[i],S$41)/180*PI())) -> -0.000007 | T51: =T$46 * (SIN(T$47/180*PI()) * SIN(INDEX(ele[i],T$41)/180*PI())) -> -0.000007 | U51: =U$46 * (SIN(U$47/180*PI()) * SIN(INDEX(ele[i],U$41)/180*PI())) -> -0.000007 | V51: =V$46 * (SIN(V$47/180*PI()) * SIN(INDEX(ele[i],V$41)/180*PI())) -> -0.000006 | W51: =W$46 * (SIN(W$47/180*PI()) * SIN(INDEX(ele[i],W$41)/180*PI())) -> -0.000005 | X51: =X$46 * (SIN(X$47/180*PI()) * SIN(INDEX(ele[i],X$41)/180*PI())) -> -0.000004 | Y51: =Y$46 * (SIN(Y$47/180*PI()) * SIN(INDEX(ele[i],Y$41)/180*PI())) -> -0.000003 | Z51: =Z$46 * (SIN(Z$47/180*PI()) * SIN(INDEX(ele[i],Z$41)/180*PI())) -> -0.000002 | AA51: =AA$46 * (SIN(AA$47/180*PI()) * SIN(INDEX(ele[i],AA$41)/180*PI())) -> -0.000001 | AB51: =AB$46 * (SIN(AB$47/180*PI()) * SIN(INDEX(ele[i],AB$41)/180*PI())) -> 0.000001 | AC51: =AC$46 * (SIN(AC$47/180*PI()) * SIN(INDEX(ele[i],AC$41)/180*PI())) -> 0.000002 | AD51: =AD$46 * (SIN(AD$47/180*PI()) * SIN(INDEX(ele[i],AD$41)/180*PI())) -> 0.000003 | AE51: =AE$46 * (SIN(AE$47/180*PI()) * SIN(INDEX(ele[i],AE$41)/180*PI())) -> 0.000004 | AF51: =AF$46 * (SIN(AF$47/180*PI()) * SIN(INDEX(ele[i],AF$41)/180*PI())) -> 0.000005 | AG51: =AG$46 * (SIN(AG$47/180*PI()) * SIN(INDEX(ele[i],AG$41)/180*PI())) -> 0.000006 | AH51: =AH$46 * (SIN(AH$47/180*PI()) * SIN(INDEX(ele[i],AH$41)/180*PI())) -> 0.000007 | AI51: =AI$46 * (SIN(AI$47/180*PI()) * SIN(INDEX(ele[i],AI$41)/180*PI())) -> 0.000007 | AJ51: =AJ$46 * (SIN(AJ$47/180*PI()) * SIN(INDEX(ele[i],AJ$41)/180*PI())) -> 0.000007 | AK51: =AK$46 * (SIN(AK$47/180*PI()) * SIN(INDEX(ele[i],AK$41)/180*PI())) -> 0.000007 | AL51: =AL$46 * (SIN(AL$47/180*PI()) * SIN(INDEX(ele[i],AL$41)/180*PI())) -> 0.000007
A54: Points
A55: Orbit period | C55: Planet 1 departure | D55: Planet 2 departure | E55: Planet 2 arrival 1st iteration | F55: Planet 2 arrival 2nd iteration
C56: =G82 -> 2050-05-01 | D56: =G82 -> 2050-05-01
A57: Time zone hrs | C57: 2 | D57: 2
A58: Offset days | C58: 0 | D58: 0
A59: Unix Epoch | C59: =(C56-DATE(1970,1,1)-0.5-C57/24)+C58 -> 29339.42 | D59: =(D56-DATE(1970,1,1)-0.5-D57/24)+D58 -> 29339.42
A60: Distance km iterations | E60: =SQRT(POWER($C$73-D73,2)+POWER($C$74-D74,2)+POWER($C$75-D75,2))*149500000 -> 142,063,869 | F60: =SQRT(POWER($C$73-E73,2)+POWER($C$74-E74,2)+POWER($C$75-E75,2))*149500000 -> 126,082,096
A61: Trip time days iterations | E61: =SQRT(2*E$60*1000/2/(($F$82-0.01)*9.81))*2/86400 -> 6.4 | F61: =SQRT(2*F$60*1000/2/(($F$82-0.01)*9.81))*2/86400 -> 6.0
A62: Julian Day | C62: =2440587.5 + C59 -> 2469926.9 | D62: =2440587.5 + D59 -> 2469926.9 | E62: =$C$62+E61 -> 2469933.3 | F62: =$C$62+F61 -> 2469932.9
A63: Date | C63: =C56+C58 -> 2050-05-01 | D63: =D56+D58 -> 2050-05-01
C65: 1 | D65: 2 | E65: 2 | F65: 2 | H65: ="[Flight data] Departure: "&TEXT(G82,"[$-en-US]d mmm yyyy;@")&" Distance: "&ROUND(J82/1000000,0)&" million km Acceleration: "&F82&"g Top velocity: "&ROUND(L82,0)&" km/s Relative to c: "&ROUND(M82,4)*100&"% Duration: "&ROUND(K82,1)&" days" -> [Flight data] Departure: 1 May 2050 Distance: 142 million km Acceleration: 0.2g Top velocity: 110 km/s Relative to c: 0.04% Duration: 6.4 days
C66: =C3 -> Mars | D66: =$C$4 -> Earth | E66: =$C$4 -> Earth | F66: =$C$4 -> Earth
A67: D | B67: D | C67: =C$62-INDEX(ele[Dele],C$65) -> 19246.4 | D67: =D$62-INDEX(ele[Dele],D$65) -> 19246.4 | E67: =E62-INDEX(ele[Dele],E65) -> 19252.8 | F67: =F62-INDEX(ele[Dele],F65) -> 19252.4
A68: Mean anomaly | B68: M | C68: =MOD(INDEX(ele[n],C$65)*C67+INDEX(ele[l],C$65)-INDEX(ele[p],C$65),360) -> 292.6 | D68: =MOD(INDEX(ele[n],D$65)*D67+INDEX(ele[l],D$65)-INDEX(ele[p],D$65),360) -> 114.4 | E68: =MOD(INDEX(ele[n],E$65)*E67+INDEX(ele[l],E$65)-INDEX(ele[p],E$65),360) -> 120.7 | F68: =MOD(INDEX(ele[n],F$65)*F67+INDEX(ele[l],F$65)-INDEX(ele[p],F$65),360) -> 120.4
A69: True anomaly | B69: v | C69: =C$68 + 180/PI()*((2*INDEX(ele[e],C$65)-POWER(INDEX(ele[e],C$65),3)/4)*SIN(C$68/180*PI())+5/4*POWER(INDEX(ele[e],C$65),2)*SIN(2*C$68/180*PI())+13/12*POWER(INDEX(ele[e],C$65),3)*SIN(3*C$68/180*PI())) -> 282.3 | D69: =D$68 + 180/PI()*((2*INDEX(ele[e],D$65)-POWER(INDEX(ele[e],D$65),3)/4)*SIN(D$68/180*PI())+5/4*POWER(INDEX(ele[e],D$65),2)*SIN(2*D$68/180*PI())+13/12*POWER(INDEX(ele[e],D$65),3)*SIN(3*D$68/180*PI())) -> 116.2 | E69: =E$68 + 180/PI()*((2*INDEX(ele[e],E$65)-POWER(INDEX(ele[e],E$65),3)/4)*SIN(E$68/180*PI())+5/4*POWER(INDEX(ele[e],E$65),2)*SIN(2*E$68/180*PI())+13/12*POWER(INDEX(ele[e],E$65),3)*SIN(3*E$68/180*PI())) -> 122.4 | F69: =F$68 + 180/PI()*((2*INDEX(ele[e],F$65)-POWER(INDEX(ele[e],F$65),3)/4)*SIN(F$68/180*PI())+5/4*POWER(INDEX(ele[e],F$65),2)*SIN(2*F$68/180*PI())+13/12*POWER(INDEX(ele[e],F$65),3)*SIN(3*F$68/180*PI())) -> 122.0
A70: Radius vector of the object | B70: r | C70: =INDEX(ele[a],C$65) * (1 - POWER(INDEX(ele[e],C$65),2)) / (1 + INDEX(ele[e],C$65) * COS(C69/180*PI())) -> 1.48 | D70: =INDEX(ele[a],D$65) * (1 - POWER(INDEX(ele[e],D$65),2)) / (1 + INDEX(ele[e],D$65) * COS(D69/180*PI())) -> 1.01 | E70: =INDEX(ele[a],E$65) * (1 - POWER(INDEX(ele[e],E$65),2)) / (1 + INDEX(ele[e],E$65) * COS(E69/180*PI())) -> 1.01 | F70: =INDEX(ele[a],F$65) * (1 - POWER(INDEX(ele[e],F$65),2)) / (1 + INDEX(ele[e],F$65) * COS(F69/180*PI())) -> 1.01
A71: Angle of planet from ascending node (v+p-o) | B71: vpo | C71: =MOD(C$69+INDEX(ele[p],C$65)-INDEX(ele[o],C$65),360) -> 208.9 | D71: =MOD(D$69+INDEX(ele[p],D$65)-INDEX(ele[o],D$65),360) -> 229.8 | E71: =MOD(E$69+INDEX(ele[p],E$65)-INDEX(ele[o],E$65),360) -> 236.0 | F71: =MOD(F$69+INDEX(ele[p],F$65)-INDEX(ele[o],F$65),360) -> 235.6
A73: Heliocentric coordinates | B73: x | C73: =C$70 * (COS(INDEX(ele[o],C$65)/180*PI()) * COS(C$71/180*PI()) - SIN(INDEX(ele[o],C$65)/180*PI()) * SIN(C$71/180*PI()) * COS(INDEX(ele[i],C$65)/180*PI())) -> -0.297141 | D73: =D$70 * (COS(INDEX(ele[o],D$65)/180*PI()) * COS(D$71/180*PI()) - SIN(INDEX(ele[o],D$65)/180*PI()) * SIN(D$71/180*PI()) * COS(INDEX(ele[i],D$65)/180*PI())) -> -0.782639 | E73: =E$70 * (COS(INDEX(ele[o],E$65)/180*PI()) * COS(E$71/180*PI()) - SIN(INDEX(ele[o],E$65)/180*PI()) * SIN(E$71/180*PI()) * COS(INDEX(ele[i],E$65)/180*PI())) -> -0.710743 | F73: =F$70 * (COS(INDEX(ele[o],F$65)/180*PI()) * COS(F$71/180*PI()) - SIN(INDEX(ele[o],F$65)/180*PI()) * SIN(F$71/180*PI()) * COS(INDEX(ele[i],F$65)/180*PI())) -> -0.715144
B74: y | C74: =C$70 * (SIN(INDEX(ele[o],C$65)/180*PI()) * COS(C$71/180*PI()) + COS(INDEX(ele[o],C$65)/180*PI()) * SIN(C$71/180*PI()) * COS(INDEX(ele[i],C$65)/180*PI())) -> -1.450454 | D74: =D$70 * (SIN(INDEX(ele[o],D$65)/180*PI()) * COS(D$71/180*PI()) + COS(INDEX(ele[o],D$65)/180*PI()) * SIN(D$71/180*PI()) * COS(INDEX(ele[i],D$65)/180*PI())) -> -0.633905 | E74: =E$70 * (SIN(INDEX(ele[o],E$65)/180*PI()) * COS(E$71/180*PI()) + COS(INDEX(ele[o],E$65)/180*PI()) * SIN(E$71/180*PI()) * COS(INDEX(ele[i],E$65)/180*PI())) -> -0.715842 | F74: =F$70 * (SIN(INDEX(ele[o],F$65)/180*PI()) * COS(F$71/180*PI()) + COS(INDEX(ele[o],F$65)/180*PI()) * SIN(F$71/180*PI()) * COS(INDEX(ele[i],F$65)/180*PI())) -> -0.711317
B75: z | C75: =C$70 * (SIN(C$71/180*PI()) * SIN(INDEX(ele[i],C$65)/180*PI())) -> -0.023079 | D75: =D$70 * (SIN(D$71/180*PI()) * SIN(INDEX(ele[i],D$65)/180*PI())) -> -0.000006 | E75: =E$70 * (SIN(E$71/180*PI()) * SIN(INDEX(ele[i],E$65)/180*PI())) -> -0.000006 | F75: =F$70 * (SIN(F$71/180*PI()) * SIN(INDEX(ele[i],F$65)/180*PI())) -> -0.000006
A76: Distance km | D76: =SQRT(POWER($C$73-D73,2)+POWER($C$74-D74,2)+POWER($C$75-D75,2))*149500000 -> 142,063,869 | E76: =SQRT(POWER($C$73-E73,2)+POWER($C$74-E74,2)+POWER($C$75-E75,2))*149500000 -> 126,082,096 | F76: =SQRT(POWER($C$73-F73,2)+POWER($C$74-F74,2)+POWER($C$75-F75,2))*149500000 -> 126,994,328
A77: Trip time days | D77: =SQRT(2*D$76*1000/2/(($F$82-0.01)*9.81))*2/86400 -> 6.4 | E77: =SQRT(2*E$76*1000/2/(($F$82-0.01)*9.81))*2/86400 -> 6.0 | F77: =SQRT(2*F$76*1000/2/(($F$82-0.01)*9.81))*2/86400 -> 6.0
A80: SLOW TRANSIT | F80: FAST TRANSIT
A81: Select g | B81: Starting date | C81: Departure | D81: Arrival | F81: Select g | G81: Starting date | H81: Departure | I81: Arrival | J81: Distance km | K81: Travel time days | L81: Top velocity km/s | M81: Speed of light %
A82: 0 | B82: 2052-09-06 | C82: Earth | D82: Mars | F82: 0.2 | G82: 2050-05-01 | H82: Mars | I82: Earth | J82: =SQRT(POWER(C73-D73,2)+POWER(C74-D74,2)+POWER(C75-D75,2))*149500000 -> 142,063,869 | K82: =SQRT(2*J$82*1000/2/(($F82-0.01)*9.81))*2/86400 -> 6.4 | L82: =K82*3600*24*F82/1000 -> 110 | M82: =L82/300000 -> 0.04%
M84: Price
L85: Economy | M85: =ROUND((F82*1500000+K82*10000)/1000,0)*1000 -> $364,000
H88: =C21&" at departure" -> Mars at departure | I88: =C42&" at arrival" -> Earth at arrival | J88: Mars at departure | L88: Premiere | M88: =M85*3 -> $1,092,000
G89: Date | H89: =C62 -> 2469926.9 | J89: =D62 -> 2469926.9
G90: x | H90: =C73 -> -0.297141 | I90: =E73 -> -0.710743 | J90: =D73 -> -0.782639
G91: y | H91: =C74 -> -1.450454 | I91: =E74 -> -0.715842 | J91: =D74 -> -0.633905
G92: z | H92: =C75 -> -0.023079 | I92: =E75 -> -0.000006 | J92: =D75 -> -0.000006
G96: ="Travel time "&ROUND(K82,1)&" days" -> Travel time 6.4 days

Sheet Full flight model
A1: Physics model to integrate antimatter engine acceleration
A3: Single engine
A4: t, hrs | B4: Thrust (N) | D4: Mass flowrate(kg/s)
A5: 0 | B5: 0 | D5: 0
A6: 10 | B6: 13075 | D6: 0.0021
A7: 20 | B7: 26150 | D7: 0.0042
A8: 50 | B8: 26150 | D8: 0.0042
A9: 2000 | B9: 26150 | D9: 0.0042
B10: =26150/20*10 -> 13075 | D10: =0.0042/20*10 -> 0.0021
A12: Isp | B12: =B9/D9/9.81 -> 634678
A13: Engine mass kg | B13: 1152
A14: Fuel flow kg/s | B14: 0.0042
A16: Spacecraft
A17: Engine count | B17: 15
A18: Total mass | B18: 196800 | C18: kg
A19: Fuel mass | B19: 90000 | C19: kg
A21: 60 | D21: One engine | F21: All engines | I21: Spacecraft | K21: 2.415 | L21: days to flip | N21: =INDEX(A44:A9953,MATCH(0,N44:N9953,-1))/3600/24 -> 4.3 | O21: =INDEX(P44:P9953,MATCH(0,N44:N9953,-1)) -> 59,153,179 | P21: 4.3
A22: Time s | B22: Time h | C22: Time d | D22: Thrust N | E22: Fuel flow kg/s | F22: Engine on/off | G22: Thrust N | H22: Fuel flow kg/s | I22: Total mass kg | J22: Fuel on board kg | K22: Acceleration m/s2 | L22: Less sun m/s2 | M22: Net acceleration g | N22: Velocity m/s | O22: Position m | P22: Position km | R22: Full flight | Z22: First 50 hours
A23: 0 | B23: =A23/3600 -> 0 | C23: =B23/24 -> 0.0 | D23: =26150/20*MIN(20,B23) -> 0 | E23: =0.0042/20*MIN(20,B23) -> 0.00 | F23: 1 | G23: =D23*$B$17*F23 -> 0 | H23: =E23*$B$17*F23 -> 0.0 | I23: =B18 -> 196800 | J23: =$B$19 -> 90000 | K23: =IF(F23=0,NA(),IF(C23<$K$21,1,-1)*G23/I23) -> 0.00 | L23: =K23- 0.0000000000667408*1.989E+30/POWER(115*1000000000,2) -> -0.01 | M23: =L23/9.81 -> -0.00 | N23: 0 | O23: 0 | P23: =O23/1000 -> 0
A24: =A23+$A$21 -> 60 | B24: =A24/3600 -> 0 | C24: =B24/24 -> 0.0 | D24: =26150/20*MIN(20,B24) -> 22 | E24: =0.0042/20*MIN(20,B24) -> 0.00 | F24: 1 | G24: =D24*$B$17*F24 -> 327 | H24: =E24*$B$17*F24 -> 0.0 | I24: =I23-H24*$A$21 -> 196800 | J24: =J23-H24*$A$21 -> 90000 | K24: 0.00 | L24: =K24- 0.0000000000667408*1.989E+30/POWER(115*1000000000,2) -> -0.01 | M24: =K24/9.81 -> 0.00 | N24: =N23+L24*$A$21 -> -1 | O24: =O23+N24*$A$21 -> -30 | P24: =O24/1000 -> -0
A25: =A24+$A$21 -> 120 | B25: =A25/3600 -> 0 | C25: =B25/24 -> 0.0 | D25: 44 | E25: 0.00 | F25: 1 | G25: =D25*$B$17*F25 -> 654 | H25: =E25*$B$17*F25 -> 0.0 | I25: =I24-H25*$A$21 -> 196800 | J25: =J24-H25*$A$21 -> 90000 | K25: 0.00 | L25: -0.01 | M25: 0.00 | N25: =N24+L25*$A$21 -> -1 | O25: =O24+N25*$A$21 -> -84 | P25: =O25/1000 -> -0
A26: 180 | B26: 0 | C26: 0.0 | D26: 65 | E26: 0.00 | F26: 1 | G26: 981 | H26: =E26*$B$17*F26 -> 0.0 | I26: 196800 | J26: 90000 | K26: 0.00 | L26: -0.01 | M26: 0.00 | N26: -1 | O26: -157 | P26: -0
A27: 240 | B27: 0 | C27: 0.0 | D27: 87 | E27: 0.00 | F27: 1 | G27: 1,308 | H27: =E27*$B$17*F27 -> 0.0 | I27: 196800 | J27: 90000 | K27: 0.01 | L27: -0.00 | M27: 0.00 | N27: -1 | O27: -242 | P27: -0
A28: 300 | B28: 0 | C28: 0.0 | D28: 109 | E28: 0.00 | F28: 1 | G28: 1,634 | H28: =E28*$B$17*F28 -> 0.0 | I28: 196800 | J28: 90000 | K28: 0.01 | L28: -0.00 | M28: 0.00 | N28: -2 | O28: -333 | P28: -0
A29: 360 | B29: 0 | C29: 0.0 | D29: 131 | E29: 0.00 | F29: 1 | G29: 1,961 | H29: 0.0 | I29: 196800 | J29: 90000 | K29: 0.01 | L29: -0.00 | M29: 0.00 | N29: -2 | O29: -424 | P29: -0
A30: 420 | B30: 0 | C30: 0.0 | D30: 153 | E30: 0.00 | F30: 1 | G30: 2,288 | H30: 0.0 | I30: 196800 | J30: 90000 | K30: 0.01 | L30: 0.00 | M30: 0.00 | N30: -1 | O30: -510 | P30: -1
A31: 480 | B31: 0 | C31: 0.0 | D31: 174 | E31: 0.00 | F31: 1 | G31: 2,615 | H31: 0.0 | I31: 196800 | J31: 90000 | K31: 0.01 | L31: 0.00 | M31: 0.00 | N31: -1 | O31: -583 | P31: -1
A32: 540 | B32: 0 | C32: 0.0 | D32: 196 | E32: 0.00 | F32: 1 | G32: 2,942 | H32: 0.0 | I32: 196800 | J32: 90000 | K32: 0.01 | L32: 0.00 | M32: 0.00 | N32: -1 | O32: -639 | P32: -1
A33: 600 | B33: 0 | C33: 0.0 | D33: 218 | E33: 0.00 | F33: 1 | G33: 3,269 | H33: 0.0 | I33: 196800 | J33: 90000 | K33: 0.02 | L33: 0.01 | M33: 0.00 | N33: -1 | O33: -672 | P33: -1
A34: 660 | B34: 0 | C34: 0.0 | D34: 240 | E34: 0.00 | F34: 1 | G34: 3,596 | H34: 0.0 | I34: 196800 | J34: 90000 | K34: 0.02 | L34: 0.01 | M34: 0.00 | N34: -0 | O34: -675 | P34: -1
A35: 720 | B35: 0 | C35: 0.0 | D35: 262 | E35: 0.00 | F35: 1 | G35: 3,923 | H35: 0.0 | I35: 196800 | J35: 90000 | K35: 0.02 | L35: 0.01 | M35: 0.00 | N35: 1 | O35: -642 | P35: -1
A36: 780 | B36: 0 | C36: 0.0 | D36: 283 | E36: 0.00 | F36: 1 | G36: 4,249 | H36: 0.0 | I36: 196800 | J36: 90000 | K36: 0.02 | L36: 0.01 | M36: 0.00 | N36: 1 | O36: -568 | P36: -1
A37: 840 | B37: 0 | C37: 0.0 | D37: 305 | E37: 0.00 | F37: 1 | G37: 4,576 | H37: 0.0 | I37: 196800 | J37: 90000 | K37: 0.02 | L37: 0.01 | M37: 0.00 | N37: 2 | O37: -446 | P37: -0
A38: 900 | B38: 0 | C38: 0.0 | D38: 327 | E38: 0.00 | F38: 1 | G38: 4,903 | H38: 0.0 | I38: 196800 | J38: 90000 | K38: 0.02 | L38: 0.01 | M38: 0.00 | N38: 3 | O38: -270 | P38: -0
A39: 960 | B39: 0 | C39: 0.0 | D39: 349 | E39: 0.00 | F39: 1 | G39: 5,230 | H39: 0.0 | I39: 196800 | J39: 90000 | K39: 0.03 | L39: 0.02 | M39: 0.00 | N39: 4 | O39: -35 | P39: -0
A40: 1020 | B40: 0 | C40: 0.0 | D40: 370 | E40: 0.00 | F40: 1 | G40: 5,557 | H40: 0.0 | I40: 196800 | J40: 90000 | K40: 0.03 | L40: 0.02 | M40: 0.00 | N40: 5 | O40: 265 | P40: 0
A41: 1080 | B41: 0 | C41: 0.0 | D41: 392 | E41: 0.00 | F41: 1 | G41: 5,884 | H41: 0.0 | I41: 196799 | J41: 89999 | K41: 0.03 | L41: 0.02 | M41: 0.00 | N41: 6 | O41: 637 | P41: 1
A42: 1140 | B42: 0 | C42: 0.0 | D42: 414 | E42: 0.00 | F42: 1 | G42: 6,211 | H42: 0.0 | I42: 196799 | J42: 89999 | K42: 0.03 | L42: 0.02 | M42: 0.00 | N42: 7 | O42: 1,087 | P42: 1
A43: 1200 | B43: 0 | C43: 0.0 | D43: 436 | E43: 0.00 | F43: 1 | G43: 6,538 | H43: 0.0 | I43: 196799 | J43: 89999 | K43: 0.03 | L43: 0.02 | M43: 0.00 | N43: 9 | O43: 1,620 | P43: 2
A44: 1260 | B44: 0 | C44: 0.0 | D44: 458 | E44: 0.00 | F44: 1 | G44: 6,864 | H44: 0.0 | I44: 196799 | J44: 89999 | K44: 0.03 | L44: 0.02 | M44: 0.00 | N44: 10 | O44: 2,242 | P44: 2
A45: 1320 | B45: 0 | C45: 0.0 | D45: 479 | E45: 0.00 | F45: 1 | G45: 7,191 | H45: 0.0 | I45: 196799 | J45: 89999 | K45: 0.04 | L45: 0.03 | M45: 0.00 | N45: 12 | O45: 2,960 | P45: 3
A46: 1380 | B46: 0 | C46: 0.0 | D46: 501 | E46: 0.00 | F46: 1 | G46: 7,518 | H46: 0.0 | I46: 196799 | J46: 89999 | K46: 0.04 | L46: 0.03 | M46: 0.00 | N46: 14 | O46: 3,779 | P46: 4
A47: 1440 | B47: 0 | C47: 0.0 | D47: 523 | E47: 0.00 | F47: 1 | G47: 7,845 | H47: 0.0 | I47: 196799 | J47: 89999 | K47: 0.04 | L47: 0.03 | M47: 0.00 | N47: 15 | O47: 4,706 | P47: 5
A48: 1500 | B48: 0 | C48: 0.0 | D48: 545 | E48: 0.00 | F48: =IF(C47>$P$21,NA(),IF(C48>$P$21,0,1)) -> 1 | G48: 8,172 | H48: 0.0 | I48: 196799 | J48: 89999 | K48: 0.04 | L48: 0.03 | M48: 0.00 | N48: 17 | O48: 5,746 | P48: 6
A49: 1560 | B49: 0 | C49: 0.0 | D49: 567 | E49: 0.00 | F49: 1 | G49: 8,499 | H49: 0.0 | I49: 196799 | J49: 89999 | K49: 0.04 | L49: 0.03 | M49: 0.00 | N49: 19 | O49: 6,905 | P49: 7
A50: 1620 | B50: 0 | C50: 0.0 | D50: 588 | E50: 0.00 | F50: 1 | G50: 8,826 | H50: 0.0 | I50: 196799 | J50: 89999 | K50: 0.04 | L50: 0.03 | M50: 0.00 | N50: 21 | O50: 8,190 | P50: 8
A51: 1680 | B51: 0 | C51: 0.0 | D51: 610 | E51: 0.00 | F51: 1 | G51: 9,153 | H51: 0.0 | I51: 196799 | J51: 89999 | K51: 0.05 | L51: 0.04 | M51: 0.00 | N51: 24 | O51: 9,606 | P51: 10
A52: 1740 | B52: 0 | C52: 0.0 | D52: 632 | E52: 0.00 | F52: 1 | G52: 9,479 | H52: 0.0 | I52: 196799 | J52: 89999 | K52: 0.05 | L52: 0.04 | M52: 0.00 | N52: 26 | O52: 11,159 | P52: 11
A53: 1800 | B53: 1 | C53: 0.0 | D53: 654 | E53: 0.00 | F53: 1 | G53: 9,806 | H53: 0.0 | I53: 196799 | J53: 89999 | K53: 0.05 | L53: 0.04 | M53: 0.01 | N53: 28 | O53: 12,855 | P53: 13
A54: 1860 | B54: 1 | C54: 0.0 | D54: 676 | E54: 0.00 | F54: 1 | G54: 10,133 | H54: 0.0 | I54: 196798 | J54: 89998 | K54: 0.05 | L54: 0.04 | M54: 0.01 | N54: 31 | O54: 14,701 | P54: 15
A55: 1920 | B55: 1 | C55: 0.0 | D55: 697 | E55: 0.00 | F55: 1 | G55: 10,460 | H55: 0.0 | I55: 196798 | J55: 89998 | K55: 0.05 | L55: 0.04 | M55: 0.01 | N55: 33 | O55: 16,701 | P55: 17
A56: 1980 | B56: 1 | C56: 0.0 | D56: 719 | E56: 0.00 | F56: 1 | G56: 10,787 | H56: 0.0 | I56: 196798 | J56: 89998 | K56: 0.05 | L56: 0.04 | M56: 0.01 | N56: 36 | O56: 18,863 | P56: 19
A57: 2040 | B57: 1 | C57: 0.0 | D57: 741 | E57: 0.00 | F57: 1 | G57: 11,114 | H57: 0.0 | I57: 196798 | J57: 89998 | K57: 0.06 | L57: 0.05 | M57: 0.01 | N57: 39 | O57: 21,193 | P57: 21
A58: 2100 | B58: 1 | C58: 0.0 | D58: 763 | E58: 0.00 | F58: 1 | G58: 11,441 | H58: 0.0 | I58: 196798 | J58: 89998 | K58: 0.06 | L58: 0.05 | M58: 0.01 | N58: 42 | O58: 23,695 | P58: 24
A59: 2160 | B59: 1 | C59: 0.0 | D59: 785 | E59: 0.00 | F59: 1 | G59: 11,768 | H59: 0.0 | I59: 196798 | J59: 89998 | K59: 0.06 | L59: 0.05 | M59: 0.01 | N59: 45 | O59: 26,376 | P59: 26
A60: 2220 | B60: 1 | C60: 0.0 | D60: 806 | E60: 0.00 | F60: 1 | G60: 12,094 | H60: 0.0 | I60: 196798 | J60: 89998 | K60: 0.06 | L60: 0.05 | M60: 0.01 | N60: 48 | O60: 29,243 | P60: 29
A61: 2280 | B61: 1 | C61: 0.0 | D61: 828 | E61: 0.00 | F61: 1 | G61: 12,421 | H61: 0.0 | I61: 196798 | J61: 89998 | K61: 0.06 | L61: 0.05 | M61: 0.01 | N61: 51 | O61: 32,301 | P61: 32
A62: 2340 | B62: 1 | C62: 0.0 | D62: 850 | E62: 0.00 | F62: 1 | G62: 12,748 | H62: 0.0 | I62: 196798 | J62: 89998 | K62: 0.06 | L62: 0.05 | M62: 0.01 | N62: 54 | O62: 35,555 | P62: 36
A63: 2400 | B63: 1 | C63: 0.0 | D63: 872 | E63: 0.00 | F63: 1 | G63: 13,075 | H63: 0.0 | I63: 196797 | J63: 89997 | K63: 0.07 | L63: 0.06 | M63: 0.01 | N63: 58 | O63: 39,013 | P63: 39
A64: 2460 | B64: 1 | C64: 0.0 | D64: 893 | E64: 0.00 | F64: 1 | G64: 13,402 | H64: 0.0 | I64: 196797 | J64: 89997 | K64: 0.07 | L64: 0.06 | M64: 0.01 | N64: 61 | O64: 42,680 | P64: 43
A65: 2520 | B65: 1 | C65: 0.0 | D65: 915 | E65: 0.00 | F65: 1 | G65: 13,729 | H65: 0.0 | I65: 196797 | J65: 89997 | K65: 0.07 | L65: 0.06 | M65: 0.01 | N65: 65 | O65: 46,562 | P65: 47
A66: 2580 | B66: 1 | C66: 0.0 | D66: 937 | E66: 0.00 | F66: 1 | G66: 14,056 | H66: 0.0 | I66: 196797 | J66: 89997 | K66: 0.07 | L66: 0.06 | M66: 0.01 | N66: 68 | O66: 50,664 | P66: 51
A67: 2640 | B67: 1 | C67: 0.0 | D67: 959 | E67: 0.00 | F67: 1 | G67: 14,383 | H67: 0.0 | I67: 196797 | J67: 89997 | K67: 0.07 | L67: 0.06 | M67: 0.01 | N67: 72 | O67: 54,994 | P67: 55
A68: 2700 | B68: 1 | C68: 0.0 | D68: 981 | E68: 0.00 | F68: 1 | G68: 14,709 | H68: 0.0 | I68: 196797 | J68: 89997 | K68: 0.07 | L68: 0.06 | M68: 0.01 | N68: 76 | O68: 59,557 | P68: 60
A69: 2760 | B69: 1 | C69: 0.0 | D69: 1002 | E69: 0.00 | F69: 1 | G69: 15,036 | H69: 0.0 | I69: 196797 | J69: 89997 | K69: 0.08 | L69: 0.07 | M69: 0.01 | N69: 80 | O69: 64,358 | P69: 64
A70: 2820 | B70: 1 | C70: 0.0 | D70: 1024 | E70: 0.00 | F70: 1 | G70: 15,363 | H70: 0.0 | I70: 196796 | J70: 89996 | K70: 0.08 | L70: 0.07 | M70: 0.01 | N70: 84 | O70: 69,405 | P70: 69
A71: 2880 | B71: 1 | C71: 0.0 | D71: 1046 | E71: 0.00 | F71: 1 | G71: 15,690 | H71: 0.0 | I71: 196796 | J71: 89996 | K71: 0.08 | L71: 0.07 | M71: 0.01 | N71: 88 | O71: 74,702 | P71: 75
A72: 2940 | B72: 1 | C72: 0.0 | D72: 1068 | E72: 0.00 | F72: 1 | G72: 16,017 | H72: 0.0 | I72: 196796 | J72: 89996 | K72: 0.08 | L72: 0.07 | M72: 0.01 | N72: 93 | O72: 80,256 | P72: 80
A73: 3000 | B73: 1 | C73: 0.0 | D73: 1090 | E73: 0.00 | F73: 1 | G73: 16,344 | H73: 0.0 | I73: 196796 | J73: 89996 | K73: 0.08 | L73: 0.07 | M73: 0.01 | N73: 97 | O73: 86,073 | P73: 86
A74: 3060 | B74: 1 | C74: 0.0 | D74: 1111 | E74: 0.00 | F74: 1 | G74: 16,671 | H74: 0.0 | I74: 196796 | J74: 89996 | K74: 0.08 | L74: 0.07 | M74: 0.01 | N74: 101 | O74: 92,159 | P74: 92
A75: 3120 | B75: 1 | C75: 0.0 | D75: 1133 | E75: 0.00 | F75: 1 | G75: 16,998 | H75: 0.0 | I75: 196796 | J75: 89996 | K75: 0.09 | L75: 0.08 | M75: 0.01 | N75: 106 | O75: 98,520 | P75: 99
A76: 3180 | B76: 1 | C76: 0.0 | D76: 1155 | E76: 0.00 | F76: 1 | G76: 17,324 | H76: 0.0 | I76: 196795 | J76: 89995 | K76: 0.09 | L76: 0.08 | M76: 0.01 | N76: 111 | O76: 105,161 | P76: 105
A77: 3240 | B77: 1 | C77: 0.0 | D77: 1177 | E77: 0.00 | F77: 1 | G77: 17,651 | H77: 0.0 | I77: 196795 | J77: 89995 | K77: 0.09 | L77: 0.08 | M77: 0.01 | N77: 115 | O77: 112,090 | P77: 112
A78: 3300 | B78: 1 | C78: 0.0 | D78: 1199 | E78: 0.00 | F78: 1 | G78: 17,978 | H78: 0.0 | I78: 196795 | J78: 89995 | K78: 0.09 | L78: 0.08 | M78: 0.01 | N78: 120 | O78: 119,311 | P78: 119
A79: 3360 | B79: 1 | C79: 0.0 | D79: 1220 | E79: 0.00 | F79: 1 | G79: 18,305 | H79: 0.0 | I79: 196795 | J79: 89995 | K79: 0.09 | L79: 0.08 | M79: 0.01 | N79: 125 | O79: 126,830 | P79: 127
A80: 3420 | B80: 1 | C80: 0.0 | D80: 1242 | E80: 0.00 | F80: 1 | G80: 18,632 | H80: 0.0 | I80: 196795 | J80: 89995 | K80: 0.09 | L80: 0.08 | M80: 0.01 | N80: 130 | O80: 134,655 | P80: 135
A81: 3480 | B81: 1 | C81: 0.0 | D81: 1264 | E81: 0.00 | F81: 1 | G81: 18,959 | H81: 0.0 | I81: 196795 | J81: 89995 | K81: 0.10 | L81: 0.09 | M81: 0.01 | N81: 136 | O81: 142,790 | P81: 143
A82: 3540 | B82: 1 | C82: 0.0 | D82: 1286 | E82: 0.00 | F82: 1 | G82: 19,286 | H82: 0.0 | I82: 196794 | J82: 89994 | K82: 0.10 | L82: 0.09 | M82: 0.01 | N82: 141 | O82: 151,242 | P82: 151
A83: 3600 | B83: 1 | C83: 0.0 | D83: 1308 | E83: 0.00 | F83: 1 | G83: 19,613 | H83: 0.0 | I83: 196794 | J83: 89994 | K83: 0.10 | L83: 0.09 | M83: 0.01 | N83: 146 | O83: 160,016 | P83: 160
A84: 3660 | B84: 1 | C84: 0.0 | D84: 1329 | E84: 0.00 | F84: 1 | G84: 19,939 | H84: 0.0 | I84: 196794 | J84: 89994 | K84: 0.10 | L84: 0.09 | M84: 0.01 | N84: 152 | O84: 169,119 | P84: 169
A85: 3720 | B85: 1 | C85: 0.0 | D85: 1351 | E85: 0.00 | F85: 1 | G85: 20,266 | H85: 0.0 | I85: 196794 | J85: 89994 | K85: 0.10 | L85: 0.09 | M85: 0.01 | N85: 157 | O85: 178,557 | P85: 179
A86: 3780 | B86: 1 | C86: 0.0 | D86: 1373 | E86: 0.00 | F86: 1 | G86: 20,593 | H86: 0.0 | I86: 196794 | J86: 89994 | K86: 0.10 | L86: 0.09 | M86: 0.01 | N86: 163 | O86: 188,335 | P86: 188
A87: 3840 | B87: 1 | C87: 0.0 | D87: 1395 | E87: 0.00 | F87: 1 | G87: 20,920 | H87: 0.0 | I87: 196793 | J87: 89993 | K87: =IF(F87=0,NA(),IF(C87<$K$21,1,-1)*G87/I87) -> 0.11 | L87: 0.10 | M87: 0.01 | N87: 169 | O87: 198,459 | P87: 198
A88: 3900 | B88: 1 | C88: 0.0 | D88: =26150/20*MIN(20,B88) -> 1416 | E88: =0.0042/20*MIN(20,B88) -> 0.00 | F88: 1 | G88: 21,247 | H88: 0.0 | I88: 196793 | J88: 89993 | K88: 0.11 | L88: =K88- 0.0000000000667408*1.989E+30/POWER(115*1000000000,2) -> 0.10 | M88: =K88/9.81 -> 0.01 | N88: 175 | O88: 208,937 | P88: 209
A89: =A88+$A$21 -> 3960 | B89: =A89/3600 -> 1 | C89: =B89/24 -> 0.0 | D89: 1438 | E89: 0.00 | F89: 1 | G89: =D89*$B$17*F89 -> 21,574 | H89: 0.0 | I89: =I88-H89*$A$21 -> 196793 | J89: =J88-H89*$A$21 -> 89993 | K89: 0.11 | L89: 0.10 | M89: 0.01 | N89: =N88+L89*$A$21 -> 181 | O89: =O88+N89*$A$21 -> 219,773 | P89: =O89/1000 -> 220
A90: 4020 | B90: 1 | C90: 0.0 | D90: 1460 | E90: 0.00 | F90: 1 | G90: 21,901 | H90: 0.0 | I90: 196793 | J90: 89993 | K90: 0.11 | L90: 0.10 | M90: 0.01 | N90: 187 | O90: 230,973 | P90: 231
A91: 4080 | B91: 1 | C91: 0.0 | D91: 1482 | E91: 0.00 | F91: 1 | G91: 22,228 | H91: 0.0 | I91: 196793 | J91: 89993 | K91: 0.11 | L91: 0.10 | M91: 0.01 | N91: 193 | O91: 242,544 | P91: 243
A92: 4140 | B92: 1 | C92: 0.0 | D92: 1504 | E92: 0.00 | F92: 1 | G92: 22,554 | H92: =E92*$B$17*F92 -> 0.0 | I92: 196792 | J92: 89992 | K92: 0.11 | L92: 0.10 | M92: 0.01 | N92: 199 | O92: 254,491 | P92: 254
A93: 4200 | B93: 1 | C93: 0.0 | D93: 1525 | E93: 0.00 | F93: 1 | G93: 22,881 | H93: 0.0 | I93: 196792 | J93: 89992 | K93: 0.12 | L93: 0.11 | M93: 0.01 | N93: 205 | O93: 266,821 | P93: 267
A94: 4260 | B94: 1 | C94: 0.0 | D94: 1547 | E94: 0.00 | F94: 1 | G94: 23,208 | H94: 0.0 | I94: 196792 | J94: 89992 | K94: 0.12 | L94: 0.11 | M94: 0.01 | N94: 212 | O94: 279,539 | P94: 280
A95: 4320 | B95: 1 | C95: 0.1 | D95: 1569 | E95: 0.00 | F95: 1 | G95: 23,535 | H95: 0.0 | I95: 196792 | J95: 89992 | K95: 0.12 | L95: 0.11 | M95: 0.01 | N95: 219 | O95: 292,651 | P95: 293
A96: 4380 | B96: 1 | C96: 0.1 | D96: 1591 | E96: 0.00 | F96: 1 | G96: 23,862 | H96: 0.0 | I96: 196791 | J96: 89991 | K96: 0.12 | L96: 0.11 | M96: 0.01 | N96: 225 | O96: 306,164 | P96: 306
A97: 4440 | B97: 1 | C97: 0.1 | D97: 1613 | E97: 0.00 | F97: 1 | G97: 24,189 | H97: 0.0 | I97: 196791 | J97: 89991 | K97: 0.12 | L97: 0.11 | M97: 0.01 | N97: 232 | O97: 320,083 | P97: 320
A98: 4500 | B98: 1 | C98: 0.1 | D98: 1634 | E98: 0.00 | F98: 1 | G98: 24,516 | H98: 0.0 | I98: 196791 | J98: 89991 | K98: 0.12 | L98: 0.11 | M98: 0.01 | N98: 239 | O98: 334,415 | P98: 334
A99: 4560 | B99: 1 | C99: 0.1 | D99: 1656 | E99: 0.00 | F99: 1 | G99: 24,843 | H99: 0.0 | I99: 196791 | J99: 89991 | K99: 0.13 | L99: 0.12 | M99: 0.01 | N99: 246 | O99: 349,165 | P99: 349
A100: 4620 | B100: 1 | C100: 0.1 | D100: 1678 | E100: 0.00 | F100: 1 | G100: 25,169 | H100: 0.0 | I100: 196791 | J100: 89991 | K100: 0.13 | L100: 0.12 | M100: 0.01 | N100: 253 | O100: 364,339 | P100: 364
A101: 4680 | B101: 1 | C101: 0.1 | D101: 1700 | E101: 0.00 | F101: 1 | G101: 25,496 | H101: 0.0 | I101: 196790 | J101: 89990 | K101: 0.13 | L101: 0.12 | M101: 0.01 | N101: 260 | O101: 379,944 | P101: 380
A102: 4740 | B102: 1 | C102: 0.1 | D102: 1722 | E102: 0.00 | F102: 1 | G102: 25,823 | H102: 0.0 | I102: 196790 | J102: 89990 | K102: 0.13 | L102: 0.12 | M102: 0.01 | N102: 267 | O102: 395,984 | P102: 396
A103: 4800 | B103: 1 | C103: 0.1 | D103: 1743 | E103: 0.00 | F103: 1 | G103: 26,150 | H103: 0.0 | I103: 196790 | J103: 89990 | K103: 0.13 | L103: 0.12 | M103: 0.01 | N103: 275 | O103: 412,467 | P103: 412
A104: 4860 | B104: 1 | C104: 0.1 | D104: 1765 | E104: 0.00 | F104: 1 | G104: 26,477 | H104: 0.0 | I104: 196790 | J104: 89990 | K104: 0.13 | L104: 0.12 | M104: 0.01 | N104: 282 | O104: 429,399 | P104: 429
A105: 4920 | B105: 1 | C105: 0.1 | D105: 1787 | E105: 0.00 | F105: 1 | G105: 26,804 | H105: 0.0 | I105: 196789 | J105: 89989 | K105: 0.14 | L105: 0.13 | M105: 0.01 | N105: 290 | O105: 446,784 | P105: 447
A106: 4980 | B106: 1 | C106: 0.1 | D106: 1809 | E106: 0.00 | F106: 1 | G106: 27,131 | H106: 0.0 | I106: 196789 | J106: 89989 | K106: 0.14 | L106: 0.13 | M106: 0.01 | N106: 297 | O106: 464,630 | P106: 465
A107: 5040 | B107: 1 | C107: 0.1 | D107: 1831 | E107: 0.00 | F107: 1 | G107: 27,458 | H107: 0.0 | I107: 196789 | J107: 89989 | K107: 0.14 | L107: 0.13 | M107: 0.01 | N107: 305 | O107: 482,941 | P107: 483
A108: 5100 | B108: 1 | C108: 0.1 | D108: 1852 | E108: 0.00 | F108: 1 | G108: 27,784 | H108: 0.0 | I108: 196788 | J108: 89988 | K108: 0.14 | L108: 0.13 | M108: 0.01 | N108: 313 | O108: 501,725 | P108: 502
A109: 5160 | B109: 1 | C109: 0.1 | D109: 1874 | E109: 0.00 | F109: 1 | G109: 28,111 | H109: 0.0 | I109: 196788 | J109: 89988 | K109: 0.14 | L109: 0.13 | M109: 0.01 | N109: 321 | O109: 520,987 | P109: 521
A110: 5220 | B110: 1 | C110: 0.1 | D110: 1896 | E110: 0.00 | F110: 1 | G110: 28,438 | H110: 0.0 | I110: 196788 | J110: 89988 | K110: 0.14 | L110: 0.13 | M110: 0.01 | N110: 329 | O110: 540,733 | P110: 541
A111: 5280 | B111: 1 | C111: 0.1 | D111: 1918 | E111: 0.00 | F111: 1 | G111: 28,765 | H111: 0.0 | I111: 196788 | J111: 89988 | K111: 0.15 | L111: 0.14 | M111: 0.01 | N111: 337 | O111: 560,970 | P111: 561
A112: 5340 | B112: 1 | C112: 0.1 | D112: 1939 | E112: 0.00 | F112: =IF(C111>$P$21,NA(),IF(C112>$P$21,0,1)) -> 1 | G112: 29,092 | H112: 0.0 | I112: 196787 | J112: 89987 | K112: 0.15 | L112: 0.14 | M112: 0.02 | N112: 346 | O112: 581,702 | P112: 582
A113: 5400 | B113: 2 | C113: 0.1 | D113: 1961 | E113: 0.00 | F113: 1 | G113: 29,419 | H113: 0.0 | I113: 196787 | J113: 89987 | K113: 0.15 | L113: 0.14 | M113: 0.02 | N113: 354 | O113: 602,936 | P113: 603
A114: 5460 | B114: 2 | C114: 0.1 | D114: 1983 | E114: 0.00 | F114: 1 | G114: 29,746 | H114: 0.0 | I114: 196787 | J114: 89987 | K114: 0.15 | L114: 0.14 | M114: 0.02 | N114: 362 | O114: 624,679 | P114: 625
A115: 5520 | B115: 2 | C115: 0.1 | D115: 2005 | E115: 0.00 | F115: 1 | G115: 30,073 | H115: 0.0 | I115: 196787 | J115: 89987 | K115: 0.15 | L115: 0.14 | M115: 0.02 | N115: 371 | O115: 646,935 | P115: 647
A116: 5580 | B116: 2 | C116: 0.1 | D116: 2027 | E116: 0.00 | F116: 1 | G116: 30,399 | H116: 0.0 | I116: 196786 | J116: 89986 | K116: 0.15 | L116: 0.14 | M116: 0.02 | N116: 380 | O116: 669,712 | P116: 670
A117: 5640 | B117: 2 | C117: 0.1 | D117: 2048 | E117: 0.00 | F117: 1 | G117: 30,726 | H117: 0.0 | I117: 196786 | J117: 89986 | K117: 0.16 | L117: 0.15 | M117: 0.02 | N117: 388 | O117: 693,014 | P117: 693
A118: 5700 | B118: 2 | C118: 0.1 | D118: 2070 | E118: 0.00 | F118: 1 | G118: 31,053 | H118: 0.0 | I118: 196786 | J118: 89986 | K118: 0.16 | L118: 0.15 | M118: 0.02 | N118: 397 | O118: 716,848 | P118: 717
A119: 5760 | B119: 2 | C119: 0.1 | D119: 2092 | E119: 0.00 | F119: 1 | G119: 31,380 | H119: 0.0 | I119: 196785 | J119: 89985 | K119: 0.16 | L119: 0.15 | M119: 0.02 | N119: 406 | O119: 741,220 | P119: 741
A120: 5820 | B120: 2 | C120: 0.1 | D120: 2114 | E120: 0.00 | F120: 1 | G120: 31,707 | H120: 0.0 | I120: 196785 | J120: 89985 | K120: 0.16 | L120: 0.15 | M120: 0.02 | N120: 415 | O120: 766,137 | P120: 766
A121: 5880 | B121: 2 | C121: 0.1 | D121: 2136 | E121: 0.00 | F121: 1 | G121: 32,034 | H121: 0.0 | I121: 196785 | J121: 89985 | K121: 0.16 | L121: 0.15 | M121: 0.02 | N121: 424 | O121: 791,603 | P121: 792
A122: 5940 | B122: 2 | C122: 0.1 | D122: 2157 | E122: 0.00 | F122: 1 | G122: 32,361 | H122: 0.0 | I122: 196784 | J122: 89984 | K122: 0.16 | L122: 0.15 | M122: 0.02 | N122: 434 | O122: 817,624 | P122: 818
A123: 6000 | B123: 2 | C123: 0.1 | D123: 2179 | E123: 0.00 | F123: 1 | G123: 32,688 | H123: 0.0 | I123: 196784 | J123: 89984 | K123: 0.17 | L123: 0.16 | M123: 0.02 | N123: 443 | O123: 844,208 | P123: 844
A124: 6060 | B124: 2 | C124: 0.1 | D124: 2201 | E124: 0.00 | F124: 1 | G124: 33,014 | H124: 0.0 | I124: 196784 | J124: 89984 | K124: 0.17 | L124: 0.16 | M124: 0.02 | N124: 453 | O124: 871,360 | P124: 871
A125: 6120 | B125: 2 | C125: 0.1 | D125: 2223 | E125: 0.00 | F125: 1 | G125: 33,341 | H125: 0.0 | I125: 196783 | J125: 89983 | K125: 0.17 | L125: 0.16 | M125: 0.02 | N125: 462 | O125: 899,085 | P125: 899
A126: 6180 | B126: 2 | C126: 0.1 | D126: 2245 | E126: 0.00 | F126: 1 | G126: 33,668 | H126: 0.0 | I126: 196783 | J126: 89983 | K126: 0.17 | L126: 0.16 | M126: 0.02 | N126: 472 | O126: 927,391 | P126: 927
A127: 6240 | B127: 2 | C127: 0.1 | D127: 2266 | E127: 0.00 | F127: 1 | G127: 33,995 | H127: 0.0 | I127: 196783 | J127: 89983 | K127: 0.17 | L127: 0.16 | M127: 0.02 | N127: 482 | O127: 956,282 | P127: 956
A128: 6300 | B128: 2 | C128: 0.1 | D128: 2288 | E128: 0.00 | F128: 1 | G128: 34,322 | H128: 0.0 | I128: 196782 | J128: 89982 | K128: 0.17 | L128: 0.16 | M128: 0.02 | N128: 491 | O128: 985,764 | P128: 986
A129: 6360 | B129: 2 | C129: 0.1 | D129: 2310 | E129: 0.00 | F129: 1 | G129: 34,649 | H129: 0.0 | I129: 196782 | J129: 89982 | K129: 0.18 | L129: 0.17 | M129: 0.02 | N129: 501 | O129: 1,015,845 | P129: 1,016
A130: 6420 | B130: 2 | C130: 0.1 | D130: 2332 | E130: 0.00 | F130: 1 | G130: 34,976 | H130: 0.0 | I130: 196782 | J130: 89982 | K130: 0.18 | L130: 0.17 | M130: 0.02 | N130: 511 | O130: 1,046,529 | P130: 1,047
A131: 6480 | B131: 2 | C131: 0.1 | D131: 2354 | E131: 0.00 | F131: 1 | G131: 35,303 | H131: 0.0 | I131: 196781 | J131: 89981 | K131: 0.18 | L131: 0.17 | M131: 0.02 | N131: 522 | O131: 1,077,823 | P131: 1,078
A132: 6540 | B132: 2 | C132: 0.1 | D132: 2375 | E132: 0.00 | F132: 1 | G132: 35,629 | H132: 0.0 | I132: 196781 | J132: 89981 | K132: 0.18 | L132: 0.17 | M132: 0.02 | N132: 532 | O132: 1,109,733 | P132: 1,110
A133: 6600 | B133: 2 | C133: 0.1 | D133: 2397 | E133: 0.00 | F133: 1 | G133: 35,956 | H133: 0.0 | I133: 196781 | J133: 89981 | K133: 0.18 | L133: 0.17 | M133: 0.02 | N133: 542 | O133: 1,142,264 | P133: 1,142
A134: 6660 | B134: 2 | C134: 0.1 | D134: 2419 | E134: 0.00 | F134: 1 | G134: 36,283 | H134: 0.0 | I134: 196780 | J134: 89980 | K134: 0.18 | L134: 0.17 | M134: 0.02 | N134: 553 | O134: 1,175,423 | P134: 1,175
A135: 6720 | B135: 2 | C135: 0.1 | D135: 2441 | E135: 0.00 | F135: 1 | G135: 36,610 | H135: 0.0 | I135: 196780 | J135: 89980 | K135: 0.19 | L135: 0.18 | M135: 0.02 | N135: 563 | O135: 1,209,215 | P135: 1,209
A136: 6780 | B136: 2 | C136: 0.1 | D136: 2462 | E136: 0.00 | F136: 1 | G136: 36,937 | H136: 0.0 | I136: 196780 | J136: 89980 | K136: 0.19 | L136: 0.18 | M136: 0.02 | N136: 574 | O136: 1,243,647 | P136: 1,244
A137: 6840 | B137: 2 | C137: 0.1 | D137: 2484 | E137: 0.00 | F137: 1 | G137: 37,264 | H137: 0.0 | I137: 196779 | J137: 89979 | K137: 0.19 | L137: 0.18 | M137: 0.02 | N137: 585 | O137: 1,278,725 | P137: 1,279
A138: 6900 | B138: 2 | C138: 0.1 | D138: 2506 | E138: 0.00 | F138: 1 | G138: 37,591 | H138: 0.0 | I138: 196779 | J138: 89979 | K138: 0.19 | L138: 0.18 | M138: 0.02 | N138: 595 | O138: 1,314,454 | P138: 1,314
A139: 6960 | B139: 2 | C139: 0.1 | D139: 2528 | E139: 0.00 | F139: 1 | G139: 37,918 | H139: 0.0 | I139: 196779 | J139: 89979 | K139: 0.19 | L139: 0.18 | M139: 0.02 | N139: 606 | O139: 1,350,841 | P139: 1,351
A140: 7020 | B140: 2 | C140: 0.1 | D140: 2550 | E140: 0.00 | F140: 1 | G140: 38,244 | H140: 0.0 | I140: 196778 | J140: 89978 | K140: 0.19 | L140: 0.18 | M140: 0.02 | N140: 618 | O140: 1,387,892 | P140: 1,388
A141: 7080 | B141: 2 | C141: 0.1 | D141: 2571 | E141: 0.00 | F141: 1 | G141: 38,571 | H141: 0.0 | I141: 196778 | J141: 89978 | K141: 0.20 | L141: 0.19 | M141: 0.02 | N141: 629 | O141: 1,425,612 | P141: 1,426
A142: 7140 | B142: 2 | C142: 0.1 | D142: 2593 | E142: 0.00 | F142: 1 | G142: 38,898 | H142: 0.0 | I142: 196778 | J142: 89978 | K142: 0.20 | L142: 0.19 | M142: 0.02 | N142: 640 | O142: 1,464,007 | P142: 1,464
A143: 7200 | B143: 2 | C143: 0.1 | D143: 2615 | E143: 0.00 | F143: 1 | G143: 39,225 | H143: 0.0 | I143: 196777 | J143: 89977 | K143: 0.20 | L143: 0.19 | M143: 0.02 | N143: 651 | O143: 1,503,084 | P143: 1,503
A144: 7260 | B144: 2 | C144: 0.1 | D144: 2637 | E144: 0.00 | F144: 1 | G144: 39,552 | H144: 0.0 | I144: 196777 | J144: 89977 | K144: 0.20 | L144: 0.19 | M144: 0.02 | N144: 663 | O144: 1,542,848 | P144: 1,543
A145: 7320 | B145: 2 | C145: 0.1 | D145: 2659 | E145: 0.00 | F145: 1 | G145: 39,879 | H145: 0.0 | I145: 196776 | J145: 89976 | K145: 0.20 | L145: 0.19 | M145: 0.02 | N145: 674 | O145: 1,583,306 | P145: 1,583
A146: 7380 | B146: 2 | C146: 0.1 | D146: 2680 | E146: 0.00 | F146: 1 | G146: 40,206 | H146: 0.0 | I146: 196776 | J146: 89976 | K146: 0.20 | L146: 0.19 | M146: 0.02 | N146: 686 | O146: 1,624,463 | P146: 1,624
A147: 7440 | B147: 2 | C147: 0.1 | D147: 2702 | E147: 0.00 | F147: 1 | G147: 40,533 | H147: 0.0 | I147: 196776 | J147: 89976 | K147: 0.21 | L147: 0.20 | M147: 0.02 | N147: 698 | O147: 1,666,326 | P147: 1,666
A148: 7500 | B148: 2 | C148: 0.1 | D148: 2724 | E148: 0.00 | F148: 1 | G148: 40,859 | H148: 0.0 | I148: 196775 | J148: 89975 | K148: 0.21 | L148: 0.20 | M148: 0.02 | N148: 710 | O148: 1,708,900 | P148: 1,709
A149: 7560 | B149: 2 | C149: 0.1 | D149: 2746 | E149: 0.00 | F149: 1 | G149: 41,186 | H149: 0.0 | I149: 196775 | J149: 89975 | K149: 0.21 | L149: 0.20 | M149: 0.02 | N149: 722 | O149: 1,752,191 | P149: 1,752
A150: 7620 | B150: 2 | C150: 0.1 | D150: 2768 | E150: 0.00 | F150: 1 | G150: 41,513 | H150: 0.0 | I150: 196774 | J150: 89974 | K150: 0.21 | L150: 0.20 | M150: 0.02 | N150: 734 | O150: 1,796,206 | P150: 1,796
A151: 7680 | B151: 2 | C151: 0.1 | D151: 2789 | E151: 0.00 | F151: 1 | G151: 41,840 | H151: 0.0 | I151: 196774 | J151: 89974 | K151: =IF(F151=0,NA(),IF(C151<$K$21,1,-1)*G151/I151) -> 0.21 | L151: 0.20 | M151: 0.02 | N151: 746 | O151: 1,840,950 | P151: 1,841
A152: 7740 | B152: 2 | C152: 0.1 | D152: =26150/20*MIN(20,B152) -> 2811 | E152: =0.0042/20*MIN(20,B152) -> 0.00 | F152: 1 | G152: 42,167 | H152: 0.0 | I152: 196774 | J152: 89974 | K152: 0.21 | L152: =K152- 0.0000000000667408*1.989E+30/POWER(115*1000000000,2) -> 0.20 | M152: =K152/9.81 -> 0.02 | N152: 758 | O152: 1,886,430 | P152: 1,886
A153: =A152+$A$21 -> 7800 | B153: =A153/3600 -> 2 | C153: =B153/24 -> 0.1 | D153: 2833 | E153: 0.00 | F153: 1 | G153: =D153*$B$17*F153 -> 42,494 | H153: 0.0 | I153: =I152-H153*$A$21 -> 196773 | J153: =J152-H153*$A$21 -> 89973 | K153: 0.22 | L153: 0.21 | M153: 0.02 | N153: =N152+L153*$A$21 -> 770 | O153: =O152+N153*$A$21 -> 1,932,650 | P153: =O153/1000 -> 1,933
A154: 7860 | B154: 2 | C154: 0.1 | D154: 2855 | E154: 0.00 | F154: 1 | G154: 42,821 | H154: 0.0 | I154: 196773 | J154: 89973 | K154: 0.22 | L154: 0.21 | M154: 0.02 | N154: 783 | O154: 1,979,618 | P154: 1,980
A155: 7920 | B155: 2 | C155: 0.1 | D155: 2877 | E155: 0.00 | F155: 1 | G155: 43,148 | H155: 0.0 | I155: 196772 | J155: 89972 | K155: 0.22 | L155: 0.21 | M155: 0.02 | N155: 795 | O155: 2,027,339 | P155: 2,027
A156: 7980 | B156: 2 | C156: 0.1 | D156: 2898 | E156: 0.00 | F156: 1 | G156: 43,474 | H156: =E156*$B$17*F156 -> 0.0 | I156: 196772 | J156: 89972 | K156: 0.22 | L156: 0.21 | M156: 0.02 | N156: 808 | O156: 2,075,820 | P156: 2,076
A157: 8040 | B157: 2 | C157: 0.1 | D157: 2920 | E157: 0.00 | F157: 1 | G157: 43,801 | H157: 0.0 | I157: 196772 | J157: 89972 | K157: 0.22 | L157: 0.21 | M157: 0.02 | N157: 821 | O157: 2,125,065 | P157: 2,125
A158: 8100 | B158: 2 | C158: 0.1 | D158: 2942 | E158: 0.00 | F158: 1 | G158: 44,128 | H158: 0.0 | I158: 196771 | J158: 89971 | K158: 0.22 | L158: 0.21 | M158: 0.02 | N158: 834 | O158: 2,175,082 | P158: 2,175
A159: 8160 | B159: 2 | C159: 0.1 | D159: 2964 | E159: 0.00 | F159: 1 | G159: 44,455 | H159: 0.0 | I159: 196771 | J159: 89971 | K159: 0.23 | L159: 0.22 | M159: 0.02 | N159: 847 | O159: 2,225,876 | P159: 2,226
A160: 8220 | B160: 2 | C160: 0.1 | D160: 2985 | E160: 0.00 | F160: 1 | G160: 44,782 | H160: 0.0 | I160: 196770 | J160: 89970 | K160: 0.23 | L160: 0.22 | M160: 0.02 | N160: 860 | O160: 2,277,454 | P160: 2,277
A161: 8280 | B161: 2 | C161: 0.1 | D161: 3007 | E161: 0.00 | F161: 1 | G161: 45,109 | H161: 0.0 | I161: 196770 | J161: 89970 | K161: 0.23 | L161: 0.22 | M161: 0.02 | N161: 873 | O161: 2,329,820 | P161: 2,330
A162: 8340 | B162: 2 | C162: 0.1 | D162: 3029 | E162: 0.00 | F162: 1 | G162: 45,436 | H162: 0.0 | I162: 196769 | J162: 89969 | K162: 0.23 | L162: 0.22 | M162: 0.02 | N162: 886 | O162: 2,382,982 | P162: 2,383
A163: 8400 | B163: 2 | C163: 0.1 | D163: 3051 | E163: 0.00 | F163: 1 | G163: 45,763 | H163: 0.0 | I163: 196769 | J163: 89969 | K163: 0.23 | L163: 0.22 | M163: 0.02 | N163: 899 | O163: 2,436,944 | P163: 2,437
A164: 8460 | B164: 2 | C164: 0.1 | D164: 3073 | E164: 0.00 | F164: 1 | G164: 46,089 | H164: 0.0 | I164: 196768 | J164: 89968 | K164: 0.23 | L164: 0.22 | M164: 0.02 | N164: 913 | O164: 2,491,714 | P164: 2,492
A165: 8520 | B165: 2 | C165: 0.1 | D165: 3094 | E165: 0.00 | F165: 1 | G165: 46,416 | H165: 0.0 | I165: 196768 | J165: 89968 | K165: 0.24 | L165: 0.23 | M165: 0.02 | N165: 926 | O165: 2,547,297 | P165: 2,547
A166: 8580 | B166: 2 | C166: 0.1 | D166: 3116 | E166: 0.00 | F166: 1 | G166: 46,743 | H166: 0.0 | I166: 196768 | J166: 89968 | K166: 0.24 | L166: 0.23 | M166: 0.02 | N166: 940 | O166: 2,603,699 | P166: 2,604
A167: 8640 | B167: 2 | C167: 0.1 | D167: 3138 | E167: 0.00 | F167: 1 | G167: 47,070 | H167: 0.0 | I167: 196767 | J167: 89967 | K167: 0.24 | L167: 0.23 | M167: 0.02 | N167: 954 | O167: 2,660,926 | P167: 2,661
A168: 8700 | B168: 2 | C168: 0.1 | D168: 3160 | E168: 0.00 | F168: 1 | G168: 47,397 | H168: 0.0 | I168: 196767 | J168: 89967 | K168: 0.24 | L168: 0.23 | M168: 0.02 | N168: 968 | O168: 2,718,983 | P168: 2,719
A169: 8760 | B169: 2 | C169: 0.1 | D169: 3182 | E169: 0.00 | F169: 1 | G169: 47,724 | H169: 0.0 | I169: 196766 | J169: 89966 | K169: 0.24 | L169: 0.23 | M169: 0.02 | N169: 982 | O169: 2,777,878 | P169: 2,778
A170: 8820 | B170: 2 | C170: 0.1 | D170: 3203 | E170: 0.00 | F170: 1 | G170: 48,051 | H170: 0.0 | I170: 196766 | J170: 89966 | K170: 0.24 | L170: 0.23 | M170: 0.02 | N170: 996 | O170: 2,837,616 | P170: 2,838
A171: 8880 | B171: 2 | C171: 0.1 | D171: 3225 | E171: 0.00 | F171: 1 | G171: 48,378 | H171: 0.0 | I171: 196765 | J171: 89965 | K171: 0.25 | L171: 0.24 | M171: 0.03 | N171: 1,010 | O171: 2,898,203 | P171: 2,898
A172: 8940 | B172: 2 | C172: 0.1 | D172: 3247 | E172: 0.00 | F172: 1 | G172: 48,704 | H172: 0.0 | I172: 196765 | J172: 89965 | K172: 0.25 | L172: 0.24 | M172: 0.03 | N172: 1,024 | O172: 2,959,645 | P172: 2,960
A173: 9000 | B173: 3 | C173: 0.1 | D173: 3269 | E173: 0.00 | F173: 1 | G173: 49,031 | H173: 0.0 | I173: 196764 | J173: 89964 | K173: 0.25 | L173: 0.24 | M173: 0.03 | N173: 1,038 | O173: 3,021,948 | P173: 3,022
A174: 9060 | B174: 3 | C174: 0.1 | D174: 3291 | E174: 0.00 | F174: 1 | G174: 49,358 | H174: 0.0 | I174: 196764 | J174: 89964 | K174: 0.25 | L174: 0.24 | M174: 0.03 | N174: 1,053 | O174: 3,085,118 | P174: 3,085
A175: 9120 | B175: 3 | C175: 0.1 | D175: 3312 | E175: 0.00 | F175: 1 | G175: 49,685 | H175: 0.0 | I175: 196763 | J175: 89963 | K175: 0.25 | L175: 0.24 | M175: 0.03 | N175: 1,067 | O175: 3,149,160 | P175: 3,149
A176: 9180 | B176: 3 | C176: 0.1 | D176: 3334 | E176: 0.00 | F176: =IF(C175>$P$21,NA(),IF(C176>$P$21,0,1)) -> 1 | G176: 50,012 | H176: 0.0 | I176: 196763 | J176: 89963 | K176: 0.25 | L176: 0.24 | M176: 0.03 | N176: 1,082 | O176: 3,214,082 | P176: 3,214
A177: 9240 | B177: 3 | C177: 0.1 | D177: 3356 | E177: 0.00 | F177: 1 | G177: 50,339 | H177: 0.0 | I177: 196762 | J177: 89962 | K177: 0.26 | L177: 0.25 | M177: 0.03 | N177: 1,097 | O177: 3,279,888 | P177: 3,280
A178: 9300 | B178: 3 | C178: 0.1 | D178: 3378 | E178: 0.00 | F178: 1 | G178: 50,666 | H178: 0.0 | I178: 196762 | J178: 89962 | K178: 0.26 | L178: 0.25 | M178: 0.03 | N178: 1,112 | O178: 3,346,586 | P178: 3,347
A179: 9360 | B179: 3 | C179: 0.1 | D179: 3400 | E179: 0.00 | F179: 1 | G179: 50,993 | H179: 0.0 | I179: 196761 | J179: 89961 | K179: 0.26 | L179: 0.25 | M179: 0.03 | N179: 1,127 | O179: 3,414,180 | P179: 3,414
A180: 9420 | B180: 3 | C180: 0.1 | D180: 3421 | E180: 0.00 | F180: 1 | G180: 51,319 | H180: 0.0 | I180: 196761 | J180: 89961 | K180: 0.26 | L180: 0.25 | M180: 0.03 | N180: 1,142 | O180: 3,482,677 | P180: 3,483
A181: 9480 | B181: 3 | C181: 0.1 | D181: 3443 | E181: 0.00 | F181: 1 | G181: 51,646 | H181: 0.0 | I181: 196760 | J181: 89960 | K181: 0.26 | L181: 0.25 | M181: 0.03 | N181: 1,157 | O181: 3,552,082 | P181: 3,552
A182: 9540 | B182: 3 | C182: 0.1 | D182: 3465 | E182: 0.00 | F182: 1 | G182: 51,973 | H182: 0.0 | I182: 196760 | J182: 89960 | K182: 0.26 | L182: 0.25 | M182: 0.03 | N182: 1,172 | O182: 3,622,403 | P182: 3,622
A183: 9600 | B183: 3 | C183: 0.1 | D183: 3487 | E183: 0.00 | F183: 1 | G183: 52,300 | H183: 0.0 | I183: 196759 | J183: 89959 | K183: 0.27 | L183: 0.26 | M183: 0.03 | N183: 1,187 | O183: 3,693,644 | P183: 3,694
A184: 9660 | B184: 3 | C184: 0.1 | D184: 3508 | E184: 0.00 | F184: 1 | G184: 52,627 | H184: 0.0 | I184: 196759 | J184: 89959 | K184: 0.27 | L184: 0.26 | M184: 0.03 | N184: 1,203 | O184: 3,765,812 | P184: 3,766
A185: 9720 | B185: 3 | C185: 0.1 | D185: 3530 | E185: 0.00 | F185: 1 | G185: 52,954 | H185: 0.0 | I185: 196758 | J185: 89958 | K185: 0.27 | L185: 0.26 | M185: 0.03 | N185: 1,218 | O185: 3,838,913 | P185: 3,839
A186: 9780 | B186: 3 | C186: 0.1 | D186: 3552 | E186: 0.00 | F186: 1 | G186: 53,281 | H186: 0.0 | I186: 196758 | J186: 89958 | K186: 0.27 | L186: 0.26 | M186: 0.03 | N186: 1,234 | O186: 3,912,952 | P186: 3,913
A187: 9840 | B187: 3 | C187: 0.1 | D187: 3574 | E187: 0.00 | F187: 1 | G187: 53,608 | H187: 0.0 | I187: 196757 | J187: 89957 | K187: 0.27 | L187: 0.26 | M187: 0.03 | N187: 1,250 | O187: 3,987,937 | P187: 3,988
A188: 9900 | B188: 3 | C188: 0.1 | D188: 3596 | E188: 0.00 | F188: 1 | G188: 53,934 | H188: 0.0 | I188: 196757 | J188: 89957 | K188: 0.27 | L188: 0.26 | M188: 0.03 | N188: 1,266 | O188: 4,063,871 | P188: 4,064
A189: 9960 | B189: 3 | C189: 0.1 | D189: 3617 | E189: 0.00 | F189: 1 | G189: 54,261 | H189: 0.0 | I189: 196756 | J189: 89956 | K189: 0.28 | L189: 0.27 | M189: 0.03 | N189: 1,282 | O189: 4,140,763 | P189: 4,141
A190: 10020 | B190: 3 | C190: 0.1 | D190: 3639 | E190: 0.00 | F190: 1 | G190: 54,588 | H190: 0.0 | I190: 196756 | J190: 89956 | K190: 0.28 | L190: 0.27 | M190: 0.03 | N190: 1,298 | O190: 4,218,617 | P190: 4,219
A191: 10080 | B191: 3 | C191: 0.1 | D191: 3661 | E191: 0.00 | F191: 1 | G191: 54,915 | H191: 0.0 | I191: 196755 | J191: 89955 | K191: 0.28 | L191: 0.27 | M191: 0.03 | N191: 1,314 | O191: 4,297,440 | P191: 4,297
A192: 10140 | B192: 3 | C192: 0.1 | D192: 3683 | E192: 0.00 | F192: 1 | G192: 55,242 | H192: 0.0 | I192: 196755 | J192: 89955 | K192: 0.28 | L192: 0.27 | M192: 0.03 | N192: 1,330 | O192: 4,377,237 | P192: 4,377
A193: 10200 | B193: 3 | C193: 0.1 | D193: 3705 | E193: 0.00 | F193: 1 | G193: 55,569 | H193: 0.0 | I193: 196754 | J193: 89954 | K193: 0.28 | L193: 0.27 | M193: 0.03 | N193: 1,346 | O193: 4,458,016 | P193: 4,458
A194: 10260 | B194: 3 | C194: 0.1 | D194: 3726 | E194: 0.00 | F194: 1 | G194: 55,896 | H194: 0.0 | I194: 196754 | J194: 89954 | K194: 0.28 | L194: 0.27 | M194: 0.03 | N194: 1,363 | O194: 4,539,780 | P194: 4,540
A195: 10320 | B195: 3 | C195: 0.1 | D195: 3748 | E195: 0.00 | F195: 1 | G195: 56,223 | H195: 0.0 | I195: 196753 | J195: 89953 | K195: 0.29 | L195: 0.28 | M195: 0.03 | N195: 1,379 | O195: 4,622,537 | P195: 4,623
A196: 10380 | B196: 3 | C196: 0.1 | D196: 3770 | E196: 0.00 | F196: 1 | G196: 56,549 | H196: 0.0 | I196: 196753 | J196: 89953 | K196: 0.29 | L196: 0.28 | M196: 0.03 | N196: 1,396 | O196: 4,706,293 | P196: 4,706
A197: 10440 | B197: 3 | C197: 0.1 | D197: 3792 | E197: 0.00 | F197: 1 | G197: 56,876 | H197: 0.0 | I197: 196752 | J197: 89952 | K197: 0.29 | L197: 0.28 | M197: 0.03 | N197: 1,413 | O197: 4,791,053 | P197: 4,791
A198: 10500 | B198: 3 | C198: 0.1 | D198: 3814 | E198: 0.00 | F198: 1 | G198: 57,203 | H198: 0.0 | I198: 196751 | J198: 89951 | K198: 0.29 | L198: 0.28 | M198: 0.03 | N198: 1,430 | O198: 4,876,824 | P198: 4,877
A199: 10560 | B199: 3 | C199: 0.1 | D199: 3835 | E199: 0.00 | F199: 1 | G199: 57,530 | H199: 0.0 | I199: 196751 | J199: 89951 | K199: 0.29 | L199: 0.28 | M199: 0.03 | N199: 1,446 | O199: 4,963,612 | P199: 4,964
A200: 10620 | B200: 3 | C200: 0.1 | D200: 3857 | E200: 0.00 | F200: 1 | G200: 57,857 | H200: 0.0 | I200: 196750 | J200: 89950 | K200: 0.29 | L200: 0.28 | M200: 0.03 | N200: 1,463 | O200: 5,051,421 | P200: 5,051
A201: 10680 | B201: 3 | C201: 0.1 | D201: 3879 | E201: 0.00 | F201: 1 | G201: 58,184 | H201: 0.0 | I201: 196750 | J201: 89950 | K201: 0.30 | L201: 0.29 | M201: 0.03 | N201: 1,481 | O201: 5,140,260 | P201: 5,140
A202: 10740 | B202: 3 | C202: 0.1 | D202: 3901 | E202: 0.00 | F202: 1 | G202: 58,511 | H202: 0.0 | I202: 196749 | J202: 89949 | K202: 0.30 | L202: 0.29 | M202: 0.03 | N202: 1,498 | O202: 5,230,132 | P202: 5,230
A203: 10800 | B203: 3 | C203: 0.1 | D203: 3923 | E203: 0.00 | F203: 1 | G203: 58,838 | H203: 0.0 | I203: 196749 | J203: 89949 | K203: 0.30 | L203: 0.29 | M203: 0.03 | N203: 1,515 | O203: 5,321,046 | P203: 5,321
A204: 10860 | B204: 3 | C204: 0.1 | D204: 3944 | E204: 0.00 | F204: 1 | G204: 59,164 | H204: 0.0 | I204: 196748 | J204: 89948 | K204: 0.30 | L204: 0.29 | M204: 0.03 | N204: 1,533 | O204: 5,413,005 | P204: 5,413
... 4296 more rows

Sheet Planet orbital elements
A1: Name | B1: i | C1: o | D1: p | E1: a | F1: n | G1: e | H1: l | I1: diam | J1: orbit days | K1: Dele
A2: Mercury | B2: 7.00507 | C2: 48.3339 | D2: 77.454 | E2: 0.3870978 | F2: 4.092353 | G2: 0.2056324 | H2: 314.42369 | I2: 4800 | J2: 88 | K2: 2450680.5
A3: Venus | B3: 3.39472 | C3: 76.6889 | D3: 131.761 | E3: 0.7233238 | F3: 1.602158 | G3: 0.0067933 | H3: 236.94045 | I3: 12100 | J3: 224.7 | K3: 2450680.5
A4: Earth | B4: 0.00041 | C4: 349.2 | D4: 102.8517 | E4: 1.00002 | F4: 0.9855796 | G4: 0.0166967 | H4: 328.40353 | I4: 12750 | J4: 365.25 | K4: 2450680.5
A5: Mars | B5: 1.84992 | C5: 49.5664 | D5: 336.0882 | E5: 1.5236365 | F5: 0.5240613 | G5: 0.0934231 | H5: 262.42784 | I5: 6800 | J5: 687 | K5: 2450680.5
A6: Jupiter | B6: 1.30463 | C6: 100.4713 | D6: 15.6978 | E6: 5.202597 | F6: 0.08309618 | G6: 0.0484646 | H6: 322.55983 | I6: 14280 | J6: 4332 | K6: 2450680.5
A7: Saturn | B7: 2.48524 | C7: 113.6358 | D7: 88.863 | E7: 9.5719 | F7: 0.03328656 | G7: 0.0531651 | H7: 20.95759 | I7: 12066 | J7: 10760 | K7: 2450680.5
A8: Uranus | B8: 0.77343 | C8: 74.0954 | D8: 175.6807 | E8: 19.30181 | F8: 0.01162295 | G8: 0.0428959 | H8: 303.18967 | I8: 10360 | J8: 30700 | K8: 2450680.5
A9: Neptune | B9: 1.7681 | C9: 131.7925 | D9: 7.206 | E9: 30.26664 | F9: 0.005919282 | G9: 0.0102981 | H9: 299.8641 | I9: 9900 | J9: 60200 | K9: 2450680.5
A10: Pluto | B10: 17.12137 | C10: 110.3833 | D10: 224.8025 | E10: 39.5804 | F10: 0.003958072 | G10: 0.2501272 | H10: 235.7656 | I10: 3300 | J10: 90600 | K10: 2450680.5
A11: Tesla | B11: 1.084119 | C11: 317.308 | D11: 137 | E11: 1.32792307 | F11: 0.644087245 | G11: 0.257443509 | H11: 145.15 | I11: 5000 | J11: 558 | K11: 2458168.5
